Organisation Code,Organisation Label,Effective Date,Organisational Unit,Service Division Label,Category Internal Name,Purpose,Detailed Expenditure Code,Payment Date,Transaction Number,Irrecoverable VAT Amount,Amount,Capital Or Revenue,Beneficiary Name,Procurement Card
Http://opendatacommunities.org/id/metropolitan-district-council/leeds,Leeds City Council,30/11/2020,Adults and Health,Services For Older People Under 65 P/Dis,Third Party Payments,Sheltered Accommodation,569,11/11/2020,2011-00001,0.00,5400.00,R,A & V TRANSITIONAL HOMES,No
Http://opendatacommunities.org/id/metropolitan-district-council/leeds,Leeds City Council,30/11/2020,Resources and Housing,Leeds Building Services,Supplies and Services,Operational Materials,205,17/11/2020,2011-00002,0.00,19.75,R,A ANDREWS & SONS (MARBLES & TILES),No
Http://opendatacommunities.org/id/metropolitan-district-council/leeds,Leeds City Council,30/11/2020,Resources and Housing,Leeds Building Services,Supplies and Services,Operational Materials,205,27/11/2020,2011-00003,0.00,20.65,R,A ANDREWS & SONS (MARBLES & TILES),No
Http://opendatacommunities.org/id/metropolitan-district-council/leeds,Leeds City Council,30/11/2020,Resources and Housing,HRA Housing Leeds,Capital,OTHER COSTS,7,11/11/2020,2011-00004,0.00,60.00,C,REDACTED PERSONAL DATA,No
Http://opendatacommunities.org/id/metropolitan-district-council/leeds,Leeds City Council,30/11/2020,Resources and Housing,HRA Housing Leeds,Capital,OTHER COSTS,7,20/11/2020,2011-00005,0.00,60.00,C,REDACTED PERSONAL DATA,No
Http://opendatacommunities.org/id/metropolitan-district-council/leeds,Leeds City Council,30/11/2020,Resources and Housing,Leeds Building Services,Supplies and Services,Other Hired And Contracted Services,265,12/11/2020,2011-00006,0.00,1492.15,R,A Buckler (Haulage) Ltd,No
Http://opendatacommunities.org/id/metropolitan-district-council/leeds,Leeds City Council,30/11/2020,Resources and Housing,Leeds Building Services,Supplies and Services,Other Hired And Contracted Services,265,12/11/2020,2011-00007,0.00,5465.65,R,A Buckler (Haulage) Ltd,No
Http://opendatacommunities.org/id/metropolitan-district-council/leeds,Leeds City Council,30/11/2020,Resources and Housing,Leeds Building Services,Supplies and Services,Other Hired And Contracted Services,265,27/11/2020,2011-00008,0.00,365.00,R,A Buckler (Haulage) Ltd,No
Http://opendatacommunities.org/id/metropolitan-district-council/leeds,Leeds City Council,30/11/2020,Children and Families,Social Care,Third Party Payments,Services Rendered By Other Organisations,511,06/11/2020,2011-00009,0.00,173.01,R,REDACTED PERSONAL DATA,No
Http://opendatacommunities.org/id/metropolitan-district-council/leeds,Leeds City Council,30/11/2020,Children and Families,Social Care,Third Party Payments,Services Rendered By Other Organisations,511,04/11/2020,2011-00010,0.00,526.68,R,REDACTED PERSONAL DATA,No
Http://opendatacommunities.org/id/metropolitan-district-council/leeds,Leeds City Council,30/11/2020,Children and Families,Social Care,Third Party Payments,Services Rendered By Other Organisations,511,06/11/2020,2011-00011,0.00,873.81,R,REDACTED PERSONAL DATA,No
Http://opendatacommunities.org/id/metropolitan-district-council/leeds,Leeds City Council,30/11/2020,Resources and Housing,HRA Housing Leeds,Capital,CONSTRUCTION,3,11/11/2020,2011-00012,0.00,248319.63,C,A Connolly Limited,No
Http://opendatacommunities.org/id/metropolitan-district-council/leeds,Leeds City Council,30/11/2020,Resources and Housing,Leeds Building Services,Supplies and Services,Other Hired And Contracted Services,265,11/11/2020,2011-00013,0.00,2213.00,R,A Coole Electrical Ltd,No
Http://opendatacommunities.org/id/metropolitan-district-council/leeds,Leeds City Council,30/11/2020,Resources and Housing,Leeds Building Services,Supplies and Services,Other Hired And Contracted Services,265,11/11/2020,2011-00014,0.00,2643.00,R,A Coole Electrical Ltd,No
Http://opendatacommunities.org/id/metropolitan-district-council/leeds,Leeds City Council,30/11/2020,Resources and Housing,Leeds Building Services,Supplies and Services,Other Hired And Contracted Services,265,11/11/2020,2011-00015,0.00,2213.00,R,A Coole Electrical Ltd,No
Http://opendatacommunities.org/id/metropolitan-district-council/leeds,Leeds City Council,30/11/2020,Resources and Housing,Leeds Building Services,Supplies and Services,Other Hired And Contracted Services,265,11/11/2020,2011-00016,0.00,2213.00,R,A Coole Electrical Ltd,No
Http://opendatacommunities.org/id/metropolitan-district-council/leeds,Leeds City Council,30/11/2020,Communities and Environment,Customer Access,Supplies and Services,Bought In Professional Services,277,11/11/2020,2011-00017,0.00,22.50,R,A D Dumitru,No
Http://opendatacommunities.org/id/metropolitan-district-council/leeds,Leeds City Council,30/11/2020,Communities and Environment,Communities,Supplies and Services,Other Hired And Contracted Services,265,17/11/2020,2011-00018,0.00,75.00,R,A D Dumitru,No
Http://opendatacommunities.org/id/metropolitan-district-council/leeds,Leeds City Council,30/11/2020,Communities and Environment,Customer Access,Supplies and Services,Bought In Professional Services,277,25/11/2020,2011-00019,0.00,36.00,R,A D Dumitru,No
Http://opendatacommunities.org/id/metropolitan-district-council/leeds,Leeds City Council,30/11/2020,Children and Families,Social Care,Third Party Payments,Services Rendered By Voluntary Sector,505,04/11/2020,2011-00020,0.00,1029.60,R,REDACTED PERSONAL DATA,No
Http://opendatacommunities.org/id/metropolitan-district-council/leeds,Leeds City Council,30/11/2020,Children and Families,Social Care,Third Party Payments,Services Rendered By Voluntary Sector,505,06/11/2020,2011-00021,0.00,5252.72,R,REDACTED PERSONAL DATA,No
Http://opendatacommunities.org/id/metropolitan-district-council/leeds,Leeds City Council,30/11/2020,City Development,Highways,Capital,CONSTRUCTION,3,05/11/2020,2011-00022,0.00,45884.18,C,A E YATES LTD,No
Http://opendatacommunities.org/id/metropolitan-district-council/leeds,Leeds City Council,30/11/2020,Children and Families,Social Care,Third Party Payments,Services Rendered By Other Organisations,511,04/11/2020,2011-00023,0.00,514.80,R,REDACTED PERSONAL DATA,No
Http://opendatacommunities.org/id/metropolitan-district-council/leeds,Leeds City Council,30/11/2020,Children and Families,Social Care,Third Party Payments,Services Rendered By Other Organisations,511,06/11/2020,2011-00024,0.00,473.04,R,REDACTED PERSONAL DATA,No
Http://opendatacommunities.org/id/metropolitan-district-council/leeds,Leeds City Council,30/11/2020,Children and Families,Social Care,Third Party Payments,Services Rendered By Other Organisations,511,06/11/2020,2011-00025,0.00,213.53,R,REDACTED PERSONAL DATA,No
Http://opendatacommunities.org/id/metropolitan-district-council/leeds,Leeds City Council,30/11/2020,Children and Families,Social Care,Third Party Payments,Contact,548,09/11/2020,2011-00026,0.00,15.00,R,REDACTED PERSONAL DATA,No
Http://opendatacommunities.org/id/metropolitan-district-council/leeds,Leeds City Council,30/11/2020,Children and Families,Social Care,Third Party Payments,Contact,548,11/11/2020,2011-00027,0.00,14.00,R,REDACTED PERSONAL DATA,No
Http://opendatacommunities.org/id/metropolitan-district-council/leeds,Leeds City Council,30/11/2020,Children and Families,Social Care,Third Party Payments,Contact,548,23/11/2020,2011-00028,0.00,15.00,R,REDACTED PERSONAL DATA,No
Http://opendatacommunities.org/id/metropolitan-district-council/leeds,Leeds City Council,30/11/2020,Communities and Environment,Benefits  Wlefare and Poverty,Supplies and Services,Grant Related Expenditure,290,20/11/2020,2011-00029,0.00,500.00,R,REDACTED PERSONAL DATA,No
Http://opendatacommunities.org/id/metropolitan-district-council/leeds,Leeds City Council,30/11/2020,Children and Families,Social Care,Third Party Payments,Services Rendered By Other Organisations,511,06/11/2020,2011-00030,0.00,886.95,R,REDACTED PERSONAL DATA,No
Http://opendatacommunities.org/id/metropolitan-district-council/leeds,Leeds City Council,30/11/2020,Children and Families,Social Care,Third Party Payments,Services Rendered By Other Organisations,511,04/11/2020,2011-00031,0.00,514.80,R,REDACTED PERSONAL DATA,No
Http://opendatacommunities.org/id/metropolitan-district-council/leeds,Leeds City Council,30/11/2020,Children and Families,Social Care,Third Party Payments,Services Rendered By Other Organisations,511,06/11/2020,2011-00032,0.00,213.53,R,REDACTED PERSONAL DATA,No
Http://opendatacommunities.org/id/metropolitan-district-council/leeds,Leeds City Council,30/11/2020,Adults and Health,Other Generic Services,Third Party Payments,Fees To Carers,563,06/11/2020,2011-00033,0.00,40.15,R,REDACTED PERSONAL DATA,No
Http://opendatacommunities.org/id/metropolitan-district-council/leeds,Leeds City Council,30/11/2020,Adults and Health,Other Generic Services,Third Party Payments,Fees To Carers,563,13/11/2020,2011-00034,0.00,445.24,R,REDACTED PERSONAL DATA,No
Http://opendatacommunities.org/id/metropolitan-district-council/leeds,Leeds City Council,30/11/2020,Adults and Health,Other Generic Services,Third Party Payments,Fees To Carers,563,13/11/2020,2011-00035,0.00,50.40,R,REDACTED PERSONAL DATA,No
Http://opendatacommunities.org/id/metropolitan-district-council/leeds,Leeds City Council,30/11/2020,Adults and Health,Other Generic Services,Third Party Payments,Fees To Carers,563,13/11/2020,2011-00036,0.00,80.30,R,REDACTED PERSONAL DATA,No
Http://opendatacommunities.org/id/metropolitan-district-council/leeds,Leeds City Council,30/11/2020,Adults and Health,Other Generic Services,Third Party Payments,Fees To Carers,563,20/11/2020,2011-00037,0.00,40.15,R,REDACTED PERSONAL DATA,No
Http://opendatacommunities.org/id/metropolitan-district-council/leeds,Leeds City Council,30/11/2020,Resources and Housing,Leeds Building Services,Supplies and Services,Operational Materials,205,06/11/2020,2011-00038,0.00,553.00,R,A J H  Pump Supply & Repair Ltd,No
Http://opendatacommunities.org/id/metropolitan-district-council/leeds,Leeds City Council,30/11/2020,Resources and Housing,Leeds Building Services,Supplies and Services,Operational Materials,205,06/11/2020,2011-00039,0.00,35.00,R,A J H  Pump Supply & Repair Ltd,No
Http://opendatacommunities.org/id/metropolitan-district-council/leeds,Leeds City Council,30/11/2020,Resources and Housing,Leeds Building Services,Supplies and Services,Operational Materials,205,06/11/2020,2011-00040,0.00,4410.00,R,A J H  Pump Supply & Repair Ltd,No
Http://opendatacommunities.org/id/metropolitan-district-council/leeds,Leeds City Council,30/11/2020,Resources and Housing,Leeds Building Services,Supplies and Services,Operational Materials,205,06/11/2020,2011-00041,0.00,65.95,R,A J H  Pump Supply & Repair Ltd,No
Http://opendatacommunities.org/id/metropolitan-district-council/leeds,Leeds City Council,30/11/2020,Resources and Housing,Leeds Building Services,Supplies and Services,Operational Materials,205,06/11/2020,2011-00042,0.00,90.47,R,A J H  Pump Supply & Repair Ltd,No
Http://opendatacommunities.org/id/metropolitan-district-council/leeds,Leeds City Council,30/11/2020,Resources and Housing,Leeds Building Services,Supplies and Services,Operational Materials,205,06/11/2020,2011-00043,0.00,207.02,R,A J H  Pump Supply & Repair Ltd,No
Http://opendatacommunities.org/id/metropolitan-district-council/leeds,Leeds City Council,30/11/2020,Resources and Housing,Leeds Building Services,Supplies and Services,Operational Materials,205,06/11/2020,2011-00044,0.00,153.15,R,A J H  Pump Supply & Repair Ltd,No
Http://opendatacommunities.org/id/metropolitan-district-council/leeds,Leeds City Council,30/11/2020,Resources and Housing,Leeds Building Services,Supplies and Services,Operational Materials,205,06/11/2020,2011-00045,0.00,261.17,R,A J H  Pump Supply & Repair Ltd,No
Http://opendatacommunities.org/id/metropolitan-district-council/leeds,Leeds City Council,30/11/2020,Resources and Housing,Leeds Building Services,Supplies and Services,Operational Materials,205,06/11/2020,2011-00046,0.00,74.60,R,A J H  Pump Supply & Repair Ltd,No
Http://opendatacommunities.org/id/metropolitan-district-council/leeds,Leeds City Council,30/11/2020,Resources and Housing,Leeds Building Services,Supplies and Services,Operational Materials,205,10/11/2020,2011-00047,0.00,873.00,R,A J H  Pump Supply & Repair Ltd,No
Http://opendatacommunities.org/id/metropolitan-district-council/leeds,Leeds City Council,30/11/2020,Resources and Housing,Leeds Building Services,Supplies and Services,Operational Materials,205,10/11/2020,2011-00048,0.00,34.80,R,A J H  Pump Supply & Repair Ltd,No
Http://opendatacommunities.org/id/metropolitan-district-council/leeds,Leeds City Council,30/11/2020,Resources and Housing,Leeds Building Services,Supplies and Services,Operational Materials,205,13/11/2020,2011-00049,0.00,450.00,R,A J H  Pump Supply & Repair Ltd,No
Http://opendatacommunities.org/id/metropolitan-district-council/leeds,Leeds City Council,30/11/2020,Resources and Housing,Leeds Building Services,Supplies and Services,Operational Materials,205,13/11/2020,2011-00050,0.00,288.00,R,A J H  Pump Supply & Repair Ltd,No
Http://opendatacommunities.org/id/metropolitan-district-council/leeds,Leeds City Council,30/11/2020,Resources and Housing,Leeds Building Services,Supplies and Services,Operational Materials,205,13/11/2020,2011-00051,0.00,316.86,R,A J H  Pump Supply & Repair Ltd,No
Http://opendatacommunities.org/id/metropolitan-district-council/leeds,Leeds City Council,30/11/2020,Resources and Housing,Leeds Building Services,Supplies and Services,Operational Materials,205,13/11/2020,2011-00052,0.00,48.85,R,A J H  Pump Supply & Repair Ltd,No
Http://opendatacommunities.org/id/metropolitan-district-council/leeds,Leeds City Council,30/11/2020,Resources and Housing,Leeds Building Services,Supplies and Services,Operational Materials,205,13/11/2020,2011-00053,0.00,31.65,R,A J H  Pump Supply & Repair Ltd,No
Http://opendatacommunities.org/id/metropolitan-district-council/leeds,Leeds City Council,30/11/2020,Resources and Housing,Leeds Building Services,Supplies and Services,Operational Materials,205,13/11/2020,2011-00054,0.00,133.00,R,A J H  Pump Supply & Repair Ltd,No
Http://opendatacommunities.org/id/metropolitan-district-council/leeds,Leeds City Council,30/11/2020,Resources and Housing,Leeds Building Services,Supplies and Services,Operational Materials,205,13/11/2020,2011-00055,0.00,65.25,R,A J H  Pump Supply & Repair Ltd,No
Http://opendatacommunities.org/id/metropolitan-district-council/leeds,Leeds City Council,30/11/2020,Resources and Housing,Leeds Building Services,Supplies and Services,Operational Materials,205,13/11/2020,2011-00056,0.00,34.07,R,A J H  Pump Supply & Repair Ltd,No
Http://opendatacommunities.org/id/metropolitan-district-council/leeds,Leeds City Council,30/11/2020,Resources and Housing,Leeds Building Services,Supplies and Services,Operational Materials,205,13/11/2020,2011-00057,0.00,943.33,R,A J H  Pump Supply & Repair Ltd,No
Http://opendatacommunities.org/id/metropolitan-district-council/leeds,Leeds City Council,30/11/2020,Resources and Housing,Leeds Building Services,Supplies and Services,Operational Materials,205,13/11/2020,2011-00058,0.00,50.55,R,A J H  Pump Supply & Repair Ltd,No
Http://opendatacommunities.org/id/metropolitan-district-council/leeds,Leeds City Council,30/11/2020,Resources and Housing,Leeds Building Services,Supplies and Services,Operational Materials,205,13/11/2020,2011-00059,0.00,359.23,R,A J H  Pump Supply & Repair Ltd,No
Http://opendatacommunities.org/id/metropolitan-district-council/leeds,Leeds City Council,30/11/2020,Resources and Housing,Leeds Building Services,Supplies and Services,Operational Materials,205,13/11/2020,2011-00060,0.00,157.45,R,A J H  Pump Supply & Repair Ltd,No
Http://opendatacommunities.org/id/metropolitan-district-council/leeds,Leeds City Council,30/11/2020,Resources and Housing,Leeds Building Services,Supplies and Services,Operational Materials,205,13/11/2020,2011-00061,0.00,65.00,R,A J H  Pump Supply & Repair Ltd,No
Http://opendatacommunities.org/id/metropolitan-district-council/leeds,Leeds City Council,30/11/2020,Resources and Housing,Leeds Building Services,Supplies and Services,Operational Materials,205,13/11/2020,2011-00062,0.00,228.77,R,A J H  Pump Supply & Repair Ltd,No
Http://opendatacommunities.org/id/metropolitan-district-council/leeds,Leeds City Council,30/11/2020,Resources and Housing,Leeds Building Services,Supplies and Services,Operational Materials,205,13/11/2020,2011-00063,0.00,107.99,R,A J H  Pump Supply & Repair Ltd,No
Http://opendatacommunities.org/id/metropolitan-district-council/leeds,Leeds City Council,30/11/2020,Resources and Housing,Leeds Building Services,Supplies and Services,Operational Materials,205,13/11/2020,2011-00064,0.00,79.75,R,A J H  Pump Supply & Repair Ltd,No
Http://opendatacommunities.org/id/metropolitan-district-council/leeds,Leeds City Council,30/11/2020,Resources and Housing,Leeds Building Services,Supplies and Services,Operational Materials,205,13/11/2020,2011-00065,0.00,291.00,R,A J H  Pump Supply & Repair Ltd,No
Http://opendatacommunities.org/id/metropolitan-district-council/leeds,Leeds City Council,30/11/2020,Resources and Housing,Leeds Building Services,Supplies and Services,Operational Materials,205,13/11/2020,2011-00066,0.00,80.19,R,A J H  Pump Supply & Repair Ltd,No
Http://opendatacommunities.org/id/metropolitan-district-council/leeds,Leeds City Council,30/11/2020,Resources and Housing,Leeds Building Services,Supplies and Services,Operational Materials,205,13/11/2020,2011-00067,0.00,150.50,R,A J H  Pump Supply & Repair Ltd,No
Http://opendatacommunities.org/id/metropolitan-district-council/leeds,Leeds City Council,30/11/2020,Resources and Housing,Leeds Building Services,Supplies and Services,Operational Materials,205,24/11/2020,2011-00068,0.00,997.00,R,A J H  Pump Supply & Repair Ltd,No
Http://opendatacommunities.org/id/metropolitan-district-council/leeds,Leeds City Council,30/11/2020,Resources and Housing,Leeds Building Services,Supplies and Services,Operational Materials,205,24/11/2020,2011-00069,0.00,79.00,R,A J H  Pump Supply & Repair Ltd,No
Http://opendatacommunities.org/id/metropolitan-district-council/leeds,Leeds City Council,30/11/2020,Resources and Housing,Leeds Building Services,Supplies and Services,Operational Materials,205,24/11/2020,2011-00070,0.00,69.06,R,A J H  Pump Supply & Repair Ltd,No
Http://opendatacommunities.org/id/metropolitan-district-council/leeds,Leeds City Council,30/11/2020,Resources and Housing,Leeds Building Services,Supplies and Services,Operational Materials,205,24/11/2020,2011-00071,0.00,262.55,R,A J H  Pump Supply & Repair Ltd,No
Http://opendatacommunities.org/id/metropolitan-district-council/leeds,Leeds City Council,30/11/2020,Resources and Housing,Leeds Building Services,Supplies and Services,Operational Materials,205,24/11/2020,2011-00072,0.00,60.40,R,A J H  Pump Supply & Repair Ltd,No
Http://opendatacommunities.org/id/metropolitan-district-council/leeds,Leeds City Council,30/11/2020,Resources and Housing,Leeds Building Services,Supplies and Services,Operational Materials,205,24/11/2020,2011-00073,0.00,157.95,R,A J H  Pump Supply & Repair Ltd,No
Http://opendatacommunities.org/id/metropolitan-district-council/leeds,Leeds City Council,30/11/2020,Resources and Housing,Leeds Building Services,Supplies and Services,Operational Materials,205,24/11/2020,2011-00074,0.00,69.06,R,A J H  Pump Supply & Repair Ltd,No
Http://opendatacommunities.org/id/metropolitan-district-council/leeds,Leeds City Council,30/11/2020,Resources and Housing,Leeds Building Services,Supplies and Services,Operational Materials,205,24/11/2020,2011-00075,0.00,52.47,R,A J H  Pump Supply & Repair Ltd,No
Http://opendatacommunities.org/id/metropolitan-district-council/leeds,Leeds City Council,30/11/2020,Resources and Housing,Leeds Building Services,Supplies and Services,Operational Materials,205,24/11/2020,2011-00076,0.00,444.84,R,A J H  Pump Supply & Repair Ltd,No
Http://opendatacommunities.org/id/metropolitan-district-council/leeds,Leeds City Council,30/11/2020,Resources and Housing,Leeds Building Services,Supplies and Services,Operational Materials,205,24/11/2020,2011-00077,0.00,12.95,R,A J H  Pump Supply & Repair Ltd,No
Http://opendatacommunities.org/id/metropolitan-district-council/leeds,Leeds City Council,30/11/2020,Resources and Housing,Leeds Building Services,Supplies and Services,Operational Materials,205,24/11/2020,2011-00078,0.00,186.90,R,A J H  Pump Supply & Repair Ltd,No
Http://opendatacommunities.org/id/metropolitan-district-council/leeds,Leeds City Council,30/11/2020,Resources and Housing,Leeds Building Services,Supplies and Services,Operational Materials,205,24/11/2020,2011-00079,0.00,34.50,R,A J H  Pump Supply & Repair Ltd,No
Http://opendatacommunities.org/id/metropolitan-district-council/leeds,Leeds City Council,30/11/2020,Resources and Housing,Leeds Building Services,Supplies and Services,Operational Materials,205,24/11/2020,2011-00080,0.00,449.95,R,A J H  Pump Supply & Repair Ltd,No
Http://opendatacommunities.org/id/metropolitan-district-council/leeds,Leeds City Council,30/11/2020,Resources and Housing,Leeds Building Services,Supplies and Services,Operational Materials,205,24/11/2020,2011-00081,0.00,282.00,R,A J H  Pump Supply & Repair Ltd,No
Http://opendatacommunities.org/id/metropolitan-district-council/leeds,Leeds City Council,30/11/2020,Resources and Housing,Leeds Building Services,Supplies and Services,Operational Materials,205,24/11/2020,2011-00082,0.00,131.00,R,A J H  Pump Supply & Repair Ltd,No
Http://opendatacommunities.org/id/metropolitan-district-council/leeds,Leeds City Council,30/11/2020,Resources and Housing,Leeds Building Services,Supplies and Services,Operational Materials,205,24/11/2020,2011-00083,0.00,830.00,R,A J H  Pump Supply & Repair Ltd,No
Http://opendatacommunities.org/id/metropolitan-district-council/leeds,Leeds City Council,30/11/2020,Resources and Housing,Leeds Building Services,Supplies and Services,Operational Materials,205,24/11/2020,2011-00084,0.00,36.40,R,A J H  Pump Supply & Repair Ltd,No
Http://opendatacommunities.org/id/metropolitan-district-council/leeds,Leeds City Council,30/11/2020,Resources and Housing,Leeds Building Services,Supplies and Services,Operational Materials,205,24/11/2020,2011-00085,0.00,178.39,R,A J H  Pump Supply & Repair Ltd,No
Http://opendatacommunities.org/id/metropolitan-district-council/leeds,Leeds City Council,30/11/2020,Resources and Housing,Leeds Building Services,Supplies and Services,Operational Materials,205,24/11/2020,2011-00086,0.00,1185.00,R,A J H  Pump Supply & Repair Ltd,No
Http://opendatacommunities.org/id/metropolitan-district-council/leeds,Leeds City Council,30/11/2020,Resources and Housing,Leeds Building Services,Supplies and Services,Operational Materials,205,24/11/2020,2011-00087,0.00,850.00,R,A J H  Pump Supply & Repair Ltd,No
Http://opendatacommunities.org/id/metropolitan-district-council/leeds,Leeds City Council,30/11/2020,Resources and Housing,Leeds Building Services,Supplies and Services,Operational Materials,205,24/11/2020,2011-00088,0.00,750.00,R,A J H  Pump Supply & Repair Ltd,No
Http://opendatacommunities.org/id/metropolitan-district-council/leeds,Leeds City Council,30/11/2020,Resources and Housing,Leeds Building Services,Supplies and Services,Operational Materials,205,26/11/2020,2011-00089,0.00,750.00,R,A J H  Pump Supply & Repair Ltd,No
Http://opendatacommunities.org/id/metropolitan-district-council/leeds,Leeds City Council,30/11/2020,Resources and Housing,Leeds Building Services,Supplies and Services,Operational Materials,205,27/11/2020,2011-00090,0.00,59.00,R,A J H  Pump Supply & Repair Ltd,No
Http://opendatacommunities.org/id/metropolitan-district-council/leeds,Leeds City Council,30/11/2020,Resources and Housing,Leeds Building Services,Supplies and Services,Operational Materials,205,27/11/2020,2011-00091,0.00,119.70,R,A J H  Pump Supply & Repair Ltd,No
Http://opendatacommunities.org/id/metropolitan-district-council/leeds,Leeds City Council,30/11/2020,Resources and Housing,Leeds Building Services,Supplies and Services,Operational Materials,205,27/11/2020,2011-00092,0.00,58.82,R,A J H  Pump Supply & Repair Ltd,No
Http://opendatacommunities.org/id/metropolitan-district-council/leeds,Leeds City Council,30/11/2020,Resources and Housing,Leeds Building Services,Supplies and Services,Operational Materials,205,27/11/2020,2011-00093,0.00,80.08,R,A J H  Pump Supply & Repair Ltd,No
Http://opendatacommunities.org/id/metropolitan-district-council/leeds,Leeds City Council,30/11/2020,Resources and Housing,Leeds Building Services,Supplies and Services,Operational Materials,205,27/11/2020,2011-00094,0.00,32.49,R,A J H  Pump Supply & Repair Ltd,No
Http://opendatacommunities.org/id/metropolitan-district-council/leeds,Leeds City Council,30/11/2020,Resources and Housing,Leeds Building Services,Supplies and Services,Operational Materials,205,27/11/2020,2011-00095,0.00,26.61,R,A J H  Pump Supply & Repair Ltd,No
Http://opendatacommunities.org/id/metropolitan-district-council/leeds,Leeds City Council,30/11/2020,Resources and Housing,Leeds Building Services,Supplies and Services,Operational Materials,205,27/11/2020,2011-00096,0.00,50.00,R,A J H  Pump Supply & Repair Ltd,No
Http://opendatacommunities.org/id/metropolitan-district-council/leeds,Leeds City Council,30/11/2020,Resources and Housing,Leeds Building Services,Supplies and Services,Operational Materials,205,27/11/2020,2011-00097,0.00,725.00,R,A J H  Pump Supply & Repair Ltd,No
Http://opendatacommunities.org/id/metropolitan-district-council/leeds,Leeds City Council,30/11/2020,Resources and Housing,Leeds Building Services,Supplies and Services,Operational Materials,205,27/11/2020,2011-00098,0.00,68.88,R,A J H  Pump Supply & Repair Ltd,No
Http://opendatacommunities.org/id/metropolitan-district-council/leeds,Leeds City Council,30/11/2020,Resources and Housing,Leeds Building Services,Supplies and Services,Operational Materials,205,27/11/2020,2011-00099,0.00,107.80,R,A J H  Pump Supply & Repair Ltd,No
Http://opendatacommunities.org/id/metropolitan-district-council/leeds,Leeds City Council,30/11/2020,Resources and Housing,Leeds Building Services,Supplies and Services,Operational Materials,205,27/11/2020,2011-00100,0.00,64.25,R,A J H  Pump Supply & Repair Ltd,No
Http://opendatacommunities.org/id/metropolitan-district-council/leeds,Leeds City Council,30/11/2020,Resources and Housing,Leeds Building Services,Supplies and Services,Operational Materials,205,27/11/2020,2011-00101,0.00,85.00,R,A J H  Pump Supply & Repair Ltd,No
Http://opendatacommunities.org/id/metropolitan-district-council/leeds,Leeds City Council,30/11/2020,Resources and Housing,Leeds Building Services,Supplies and Services,Operational Materials,205,27/11/2020,2011-00102,0.00,53.85,R,A J H  Pump Supply & Repair Ltd,No
Http://opendatacommunities.org/id/metropolitan-district-council/leeds,Leeds City Council,30/11/2020,Resources and Housing,Leeds Building Services,Supplies and Services,Operational Materials,205,27/11/2020,2011-00103,0.00,298.00,R,A J H  Pump Supply & Repair Ltd,No
Http://opendatacommunities.org/id/metropolitan-district-council/leeds,Leeds City Council,30/11/2020,Resources and Housing,Leeds Building Services,Supplies and Services,Operational Materials,205,27/11/2020,2011-00104,0.00,44.00,R,A J H  Pump Supply & Repair Ltd,No
Http://opendatacommunities.org/id/metropolitan-district-council/leeds,Leeds City Council,30/11/2020,Resources and Housing,Leeds Building Services,Supplies and Services,Operational Materials,205,27/11/2020,2011-00105,0.00,79.50,R,A J H  Pump Supply & Repair Ltd,No
Http://opendatacommunities.org/id/metropolitan-district-council/leeds,Leeds City Council,30/11/2020,City Development,Libraries  Arts & Heritage,Supplies and Services,ART GALLERIES TOTAL STORES,3,20/11/2020,2011-00106,0.00,55.00,R,A J PROMOTIONS,No
Http://opendatacommunities.org/id/metropolitan-district-council/leeds,Leeds City Council,30/11/2020,Children and Families,Social Care,Third Party Payments,Services Rendered By Other Organisations,511,04/11/2020,2011-00107,0.00,171.60,R,REDACTED PERSONAL DATA,No
Http://opendatacommunities.org/id/metropolitan-district-council/leeds,Leeds City Council,30/11/2020,Children and Families,Social Care,Third Party Payments,Services Rendered By Other Organisations,511,06/11/2020,2011-00108,0.00,2064.08,R,REDACTED PERSONAL DATA,No
Http://opendatacommunities.org/id/metropolitan-district-council/leeds,Leeds City Council,30/11/2020,Resources and Housing,HRA Housing Leeds,Capital,OTHER COSTS,7,16/11/2020,2011-00109,0.00,100.00,C,REDACTED PERSONAL DATA,No
Http://opendatacommunities.org/id/metropolitan-district-council/leeds,Leeds City Council,30/11/2020,City Development,Libraries  Arts & Heritage,Supplies and Services,Other Hired And Contracted Services,265,04/11/2020,2011-00110,0.00,5000.00,R,A M Miller,No
Http://opendatacommunities.org/id/metropolitan-district-council/leeds,Leeds City Council,30/11/2020,Communities and Environment,Customer Access,Supplies and Services,Bought In Professional Services,277,04/11/2020,2011-00111,0.00,22.50,R,A MOHAMMED,No
Http://opendatacommunities.org/id/metropolitan-district-council/leeds,Leeds City Council,30/11/2020,Communities and Environment,Customer Access,Supplies and Services,Bought In Professional Services,277,04/11/2020,2011-00112,0.00,18.00,R,A MOHAMMED,No
Http://opendatacommunities.org/id/metropolitan-district-council/leeds,Leeds City Council,30/11/2020,Communities and Environment,Customer Access,Supplies and Services,Bought In Professional Services,277,04/11/2020,2011-00113,0.00,18.00,R,A MOHAMMED,No
Http://opendatacommunities.org/id/metropolitan-district-council/leeds,Leeds City Council,30/11/2020,Communities and Environment,Customer Access,Supplies and Services,Bought In Professional Services,277,04/11/2020,2011-00114,0.00,22.50,R,A MOHAMMED,No
Http://opendatacommunities.org/id/metropolitan-district-council/leeds,Leeds City Council,30/11/2020,Communities and Environment,Customer Access,Supplies and Services,Bought In Professional Services,277,11/11/2020,2011-00115,0.00,18.00,R,A MOHAMMED,No
Http://opendatacommunities.org/id/metropolitan-district-council/leeds,Leeds City Council,30/11/2020,Communities and Environment,Customer Access,Supplies and Services,Bought In Professional Services,277,11/11/2020,2011-00116,0.00,22.50,R,A MOHAMMED,No
Http://opendatacommunities.org/id/metropolitan-district-council/leeds,Leeds City Council,30/11/2020,Communities and Environment,Customer Access,Supplies and Services,Bought In Professional Services,277,11/11/2020,2011-00117,0.00,18.00,R,A MOHAMMED,No
Http://opendatacommunities.org/id/metropolitan-district-council/leeds,Leeds City Council,30/11/2020,Communities and Environment,Customer Access,Supplies and Services,Bought In Professional Services,277,11/11/2020,2011-00118,0.00,27.00,R,A MOHAMMED,No
Http://opendatacommunities.org/id/metropolitan-district-council/leeds,Leeds City Council,30/11/2020,Communities and Environment,Customer Access,Supplies and Services,Bought In Professional Services,277,18/11/2020,2011-00119,0.00,22.50,R,A MOHAMMED,No
Http://opendatacommunities.org/id/metropolitan-district-council/leeds,Leeds City Council,30/11/2020,Communities and Environment,Customer Access,Supplies and Services,Bought In Professional Services,277,18/11/2020,2011-00120,0.00,18.00,R,A MOHAMMED,No
Http://opendatacommunities.org/id/metropolitan-district-council/leeds,Leeds City Council,30/11/2020,Communities and Environment,Customer Access,Supplies and Services,Bought In Professional Services,277,18/11/2020,2011-00121,0.00,18.00,R,A MOHAMMED,No
Http://opendatacommunities.org/id/metropolitan-district-council/leeds,Leeds City Council,30/11/2020,Communities and Environment,Customer Access,Supplies and Services,Bought In Professional Services,277,25/11/2020,2011-00122,0.00,18.00,R,A MOHAMMED,No
Http://opendatacommunities.org/id/metropolitan-district-council/leeds,Leeds City Council,30/11/2020,Communities and Environment,Customer Access,Supplies and Services,Bought In Professional Services,277,25/11/2020,2011-00123,0.00,18.00,R,A MOHAMMED,No
Http://opendatacommunities.org/id/metropolitan-district-council/leeds,Leeds City Council,30/11/2020,Communities and Environment,Customer Access,Supplies and Services,Bought In Professional Services,277,25/11/2020,2011-00124,0.00,18.00,R,A MOHAMMED,No
Http://opendatacommunities.org/id/metropolitan-district-council/leeds,Leeds City Council,30/11/2020,Communities and Environment,Customer Access,Supplies and Services,Bought In Professional Services,277,25/11/2020,2011-00125,0.00,18.00,R,A MOHAMMED,No
Http://opendatacommunities.org/id/metropolitan-district-council/leeds,Leeds City Council,30/11/2020,Communities and Environment,Customer Access,Supplies and Services,Bought In Professional Services,277,25/11/2020,2011-00126,0.00,27.00,R,A MOHAMMED,No
Http://opendatacommunities.org/id/metropolitan-district-council/leeds,Leeds City Council,30/11/2020,Communities and Environment,Customer Access,Supplies and Services,Bought In Professional Services,277,25/11/2020,2011-00127,0.00,18.00,R,A MOHAMMED,No
Http://opendatacommunities.org/id/metropolitan-district-council/leeds,Leeds City Council,30/11/2020,Communities and Environment,Customer Access,Supplies and Services,Bought In Professional Services,277,25/11/2020,2011-00128,0.00,18.00,R,A MOHAMMED,No
Http://opendatacommunities.org/id/metropolitan-district-council/leeds,Leeds City Council,30/11/2020,Resources and Housing,HRA Housing Leeds,Capital,OTHER COSTS,7,10/11/2020,2011-00129,0.00,100.00,C,REDACTED PERSONAL DATA,No
Http://opendatacommunities.org/id/metropolitan-district-council/leeds,Leeds City Council,30/11/2020,Children and Families,Social Care,Third Party Payments,Services Rendered By Other Organisations,511,04/11/2020,2011-00130,0.00,1544.40,R,REDACTED PERSONAL DATA,No
Http://opendatacommunities.org/id/metropolitan-district-council/leeds,Leeds City Council,30/11/2020,Children and Families,Social Care,Third Party Payments,Services Rendered By Other Organisations,511,06/11/2020,2011-00131,0.00,2699.18,R,REDACTED PERSONAL DATA,No
Http://opendatacommunities.org/id/metropolitan-district-council/leeds,Leeds City Council,30/11/2020,Communities and Environment,Customer Access,Supplies and Services,Bought In Professional Services,277,04/11/2020,2011-00132,0.00,18.00,R,A NAMAKI,No
Http://opendatacommunities.org/id/metropolitan-district-council/leeds,Leeds City Council,30/11/2020,Communities and Environment,Customer Access,Supplies and Services,Bought In Professional Services,277,04/11/2020,2011-00133,0.00,9.00,R,A NAMAKI,No
Http://opendatacommunities.org/id/metropolitan-district-council/leeds,Leeds City Council,30/11/2020,Communities and Environment,Customer Access,Supplies and Services,Bought In Professional Services,277,11/11/2020,2011-00134,0.00,22.50,R,A NAMAKI,No
Http://opendatacommunities.org/id/metropolitan-district-council/leeds,Leeds City Council,30/11/2020,Communities and Environment,Customer Access,Supplies and Services,Bought In Professional Services,277,18/11/2020,2011-00135,0.00,27.00,R,A NAMAKI,No
Http://opendatacommunities.org/id/metropolitan-district-council/leeds,Leeds City Council,30/11/2020,Communities and Environment,Customer Access,Supplies and Services,Bought In Professional Services,277,25/11/2020,2011-00136,0.00,18.00,R,A NAMAKI,No
Http://opendatacommunities.org/id/metropolitan-district-council/leeds,Leeds City Council,30/11/2020,Communities and Environment,Customer Access,Supplies and Services,Bought In Professional Services,277,25/11/2020,2011-00137,0.00,27.00,R,A NAMAKI,No
Http://opendatacommunities.org/id/metropolitan-district-council/leeds,Leeds City Council,30/11/2020,Children and Families,Social Care,Third Party Payments,Services Rendered By Other Organisations,511,06/11/2020,2011-00138,0.00,229.95,R,REDACTED PERSONAL DATA,No
Http://opendatacommunities.org/id/metropolitan-district-council/leeds,Leeds City Council,30/11/2020,Strategic Landlord,Housing Management,Supplies and Services,Compensation Claims,200,23/11/2020,2011-00139,0.00,100.00,R,REDACTED PERSONAL DATA,No
Http://opendatacommunities.org/id/metropolitan-district-council/leeds,Leeds City Council,30/11/2020,Strategic Landlord,Housing Management,Supplies and Services,Compensation Claims,200,10/11/2020,2011-00140,0.00,500.00,R,REDACTED PERSONAL DATA,No
Http://opendatacommunities.org/id/metropolitan-district-council/leeds,Leeds City Council,30/11/2020,Resources and Housing,HRA Housing Leeds,Capital,OTHER COSTS,7,26/11/2020,2011-00141,0.00,80.00,C,REDACTED PERSONAL DATA,No
Http://opendatacommunities.org/id/metropolitan-district-council/leeds,Leeds City Council,30/11/2020,Children and Families,Social Care,Third Party Payments,Services Rendered By Other Organisations,511,04/11/2020,2011-00142,0.00,257.40,R,REDACTED PERSONAL DATA,No
Http://opendatacommunities.org/id/metropolitan-district-council/leeds,Leeds City Council,30/11/2020,Children and Families,Social Care,Third Party Payments,Services Rendered By Other Organisations,511,06/11/2020,2011-00143,0.00,284.70,R,REDACTED PERSONAL DATA,No
Http://opendatacommunities.org/id/metropolitan-district-council/leeds,Leeds City Council,30/11/2020,Resources and Housing,HRA Housing Leeds,Capital,OTHER COSTS,7,23/11/2020,2011-00144,0.00,100.00,C,REDACTED PERSONAL DATA,No
Http://opendatacommunities.org/id/metropolitan-district-council/leeds,Leeds City Council,30/11/2020,Resources and Housing,HRA Housing Leeds,Capital,OTHER COSTS,7,23/11/2020,2011-00145,0.00,100.00,C,REDACTED PERSONAL DATA,No
Http://opendatacommunities.org/id/metropolitan-district-council/leeds,Leeds City Council,30/11/2020,Children and Families,Social Care,Third Party Payments,Services Rendered By Other Organisations,511,04/11/2020,2011-00146,0.00,343.20,R,REDACTED PERSONAL DATA,No
Http://opendatacommunities.org/id/metropolitan-district-council/leeds,Leeds City Council,30/11/2020,Children and Families,Social Care,Third Party Payments,Services Rendered By Other Organisations,511,06/11/2020,2011-00147,0.00,427.05,R,REDACTED PERSONAL DATA,No
Http://opendatacommunities.org/id/metropolitan-district-council/leeds,Leeds City Council,30/11/2020,Children and Families,Social Care,Third Party Payments,General External Residential Placements,507,05/11/2020,2011-00148,0.00,33595.01,R,A Wilderness Way Ltd,No
Http://opendatacommunities.org/id/metropolitan-district-council/leeds,Leeds City Council,30/11/2020,Children and Families,Social Care,Third Party Payments,General External Residential Placements,507,05/11/2020,2011-00149,0.00,33595.01,R,A Wilderness Way Ltd,No
Http://opendatacommunities.org/id/metropolitan-district-council/leeds,Leeds City Council,30/11/2020,Children and Families,Social Care,Third Party Payments,General External Residential Placements,507,05/11/2020,2011-00150,0.00,2380.00,R,A Wilderness Way Ltd,No
Http://opendatacommunities.org/id/metropolitan-district-council/leeds,Leeds City Council,30/11/2020,Communities and Environment,Waste Management,Capital,FURNITURE AND EQUIPMENT,5,18/11/2020,2011-00151,0.00,11120.00,C,A&C Weber Uk Ltd,No
Http://opendatacommunities.org/id/metropolitan-district-council/leeds,Leeds City Council,30/11/2020,Communities and Environment,Parks and Countryside  ,Supplies and Services,Resaleable Materials,204,07/10/2020,2011-00152,0.00,1965.00,R,A.Mir & Co Ltd,Yes
Http://opendatacommunities.org/id/metropolitan-district-council/leeds,Leeds City Council,30/11/2020,Communities and Environment,Parks and Countryside  ,Supplies and Services,Resaleable Materials,204,20/10/2020,2011-00153,0.00,175.00,R,A.Mir & Co Ltd,Yes
Http://opendatacommunities.org/id/metropolitan-district-council/leeds,Leeds City Council,30/11/2020,Resources and Housing,Leeds Building Services,Supplies and Services,Other Hired And Contracted Services,265,06/11/2020,2011-00154,0.00,9207.00,R,A1 BRIDGE FLUE SYSTEMS,No
Http://opendatacommunities.org/id/metropolitan-district-council/leeds,Leeds City Council,30/11/2020,Resources and Housing,Leeds Building Services,Supplies and Services,Other Hired And Contracted Services,265,04/11/2020,2011-00155,0.00,3895.00,R,A1 STAIR LIFT SERVICES,No
Http://opendatacommunities.org/id/metropolitan-district-council/leeds,Leeds City Council,30/11/2020,Children and Families,Social Care,Transfer Payments,Leaving Care Allowances,634,02/11/2020,2011-00156,0.00,20.00,R,REDACTED PERSONAL DATA,No
Http://opendatacommunities.org/id/metropolitan-district-council/leeds,Leeds City Council,30/11/2020,Children and Families,Social Care,Transfer Payments,Leaving Care Grants,635,04/11/2020,2011-00157,0.00,139.99,R,REDACTED PERSONAL DATA,No
Http://opendatacommunities.org/id/metropolitan-district-council/leeds,Leeds City Council,30/11/2020,Children and Families,Social Care,Transfer Payments,Leaving Care Allowances,634,20/11/2020,2011-00158,0.00,20.00,R,REDACTED PERSONAL DATA,No
Http://opendatacommunities.org/id/metropolitan-district-council/leeds,Leeds City Council,30/11/2020,Children and Families,Social Care,Transfer Payments,Leaving Care Allowances,634,30/11/2020,2011-00159,0.00,50.00,R,REDACTED PERSONAL DATA,No
Http://opendatacommunities.org/id/metropolitan-district-council/leeds,Leeds City Council as Accountable Body,30/11/2020,Social Services Pooled Budgets,Leeds Community Equip Store Pooled Budgt,Supplies and Services,Other Equipment,203,05/11/2020,2011-00160,0.00,1134.00,R,AAT (GB) LTD,No
Http://opendatacommunities.org/id/metropolitan-district-council/leeds,Leeds City Council as Accountable Body,30/11/2020,Social Services Pooled Budgets,Leeds Community Equip Store Pooled Budgt,Supplies and Services,Other Equipment,203,20/11/2020,2011-00161,0.00,1099.00,R,AAT (GB) LTD,No
Http://opendatacommunities.org/id/metropolitan-district-council/leeds,Leeds City Council,30/11/2020,Adults and Health,Public Health,Third Party Payments,Public Health Commissioned Services,526,20/11/2020,2011-00162,0.00,1254.84,R,Abbey Grange Medical Practice,No
Http://opendatacommunities.org/id/metropolitan-district-council/leeds,Leeds City Council,30/11/2020,Resources and Housing,Shared Services,Income,Income from Hire Of Rooms & Equipment,956,16/11/2020,2011-00163,0.00,2234.00,R,Abbey Multi Academy Trust,No
Http://opendatacommunities.org/id/metropolitan-district-council/leeds,Leeds City Council,30/11/2020,Communities and Environment,Benefits  Wlefare and Poverty,Supplies and Services,Grant Related Expenditure,298,17/11/2020,2011-00164,0.00,500.00,R,REDACTED PERSONAL DATA,No
Http://opendatacommunities.org/id/metropolitan-district-council/leeds,Leeds City Council,30/11/2020,Children and Families,Social Care,Third Party Payments,Allowances,546,24/11/2020,2011-00165,0.00,712.68,R,ABBIE OMAHONY,No
Http://opendatacommunities.org/id/metropolitan-district-council/leeds,Leeds City Council,30/11/2020,Children and Families,Social Care,Third Party Payments,Services Rendered By Other Organisations,511,04/11/2020,2011-00166,0.00,290.40,R,REDACTED PERSONAL DATA,No
Http://opendatacommunities.org/id/metropolitan-district-council/leeds,Leeds City Council,30/11/2020,Communities and Environment,Benefits  Wlefare and Poverty,Supplies and Services,Grant Related Expenditure,290,20/11/2020,2011-00167,0.00,500.00,R,REDACTED PERSONAL DATA,No
Http://opendatacommunities.org/id/metropolitan-district-council/leeds,Leeds City Council,30/11/2020,Communities and Environment,Parks and Countryside,Supplies and Services,Other Hired And Contracted Services,265,20/11/2020,2011-00168,0.00,550.00,R,Abbotts Memorials,No
Http://opendatacommunities.org/id/metropolitan-district-council/leeds,Leeds City Council,30/11/2020,Communities and Environment,Parks and Countryside,Supplies and Services,Other Hired And Contracted Services,265,26/11/2020,2011-00169,0.00,550.00,R,Abbotts Memorials,No
Http://opendatacommunities.org/id/metropolitan-district-council/leeds,Leeds City Council,30/11/2020,Communities and Environment,Parks and Countryside,Supplies and Services,Other Hired And Contracted Services,265,26/11/2020,2011-00170,0.00,550.00,R,Abbotts Memorials,No
Http://opendatacommunities.org/id/metropolitan-district-council/leeds,Leeds City Council,30/11/2020,Communities and Environment,Parks and Countryside,Supplies and Services,Other Hired And Contracted Services,265,26/11/2020,2011-00171,0.00,550.00,R,Abbotts Memorials,No
Http://opendatacommunities.org/id/metropolitan-district-council/leeds,Leeds City Council,30/11/2020,Communities and Environment,Parks and Countryside,Supplies and Services,Other Hired And Contracted Services,265,27/11/2020,2011-00172,0.00,550.00,R,Abbotts Memorials,No
Http://opendatacommunities.org/id/metropolitan-district-council/leeds,Leeds City Council,30/11/2020,Communities and Environment,Parks and Countryside,Supplies and Services,Other Hired And Contracted Services,265,30/11/2020,2011-00173,0.00,550.00,R,Abbotts Memorials,No
Http://opendatacommunities.org/id/metropolitan-district-council/leeds,Leeds City Council,30/11/2020,Children and Families,Social Care,Third Party Payments,Services Rendered By Other Organisations,511,04/11/2020,2011-00174,0.00,1887.60,R,Abc Daycare And Ozone Out Of School,No
Http://opendatacommunities.org/id/metropolitan-district-council/leeds,Leeds City Council,30/11/2020,Children and Families,Social Care,Third Party Payments,Services Rendered By Other Organisations,511,06/11/2020,2011-00175,0.00,4462.13,R,Abc Daycare And Ozone Out Of School,No
Http://opendatacommunities.org/id/metropolitan-district-council/leeds,Leeds City Council,30/11/2020,Children and Families,Social Care,Third Party Payments,Services Rendered By Other Organisations,511,04/11/2020,2011-00176,0.00,3088.80,R,ABC NURSERY AT LUFC,No
Http://opendatacommunities.org/id/metropolitan-district-council/leeds,Leeds City Council,30/11/2020,Children and Families,Social Care,Third Party Payments,Services Rendered By Other Organisations,511,06/11/2020,2011-00177,0.00,5338.13,R,ABC NURSERY AT LUFC,No
Http://opendatacommunities.org/id/metropolitan-district-council/leeds,Leeds City Council,30/11/2020,Children and Families,Social Care,Third Party Payments,Services Rendered By Other Organisations,511,04/11/2020,2011-00178,0.00,2316.60,R,Abc@D'S Childcare,No
Http://opendatacommunities.org/id/metropolitan-district-council/leeds,Leeds City Council,30/11/2020,Children and Families,Social Care,Third Party Payments,Services Rendered By Other Organisations,511,06/11/2020,2011-00179,0.00,3202.88,R,Abc@D'S Childcare,No
Http://opendatacommunities.org/id/metropolitan-district-council/leeds,Leeds City Council,30/11/2020,Communities and Environment,Benefits  Wlefare and Poverty,Supplies and Services,Grant Related Expenditure,290,24/11/2020,2011-00180,0.00,500.00,R,REDACTED PERSONAL DATA,No
Http://opendatacommunities.org/id/metropolitan-district-council/leeds,Leeds City Council,30/11/2020,Communities and Environment,Elections  Licensing and Registration,Income,Admissions  Booking Fees & Ticket Sales,933,12/11/2020,2011-00181,0.00,135.00,R,Abdul Ghaffar,No
Http://opendatacommunities.org/id/metropolitan-district-council/leeds,Leeds City Council,30/11/2020,Communities and Environment,Customer Access,Supplies and Services,Bought In Professional Services,277,04/11/2020,2011-00182,0.00,31.50,R,Abdul Kalam,No
Http://opendatacommunities.org/id/metropolitan-district-council/leeds,Leeds City Council,30/11/2020,Communities and Environment,Customer Access,Supplies and Services,Bought In Professional Services,277,11/11/2020,2011-00183,0.00,18.00,R,Abdul Kalam,No
Http://opendatacommunities.org/id/metropolitan-district-council/leeds,Leeds City Council,30/11/2020,Communities and Environment,Customer Access,Supplies and Services,Bought In Professional Services,277,18/11/2020,2011-00184,0.00,22.50,R,Abdul Kalam,No
Http://opendatacommunities.org/id/metropolitan-district-council/leeds,Leeds City Council,30/11/2020,Communities and Environment,Customer Access,Supplies and Services,Bought In Professional Services,277,18/11/2020,2011-00185,0.00,9.00,R,Abdul Kalam,No
Http://opendatacommunities.org/id/metropolitan-district-council/leeds,Leeds City Council,30/11/2020,Communities and Environment,Customer Access,Supplies and Services,Bought In Professional Services,277,18/11/2020,2011-00186,0.00,27.00,R,Abdul Kalam,No
Http://opendatacommunities.org/id/metropolitan-district-council/leeds,Leeds City Council,30/11/2020,Communities and Environment,Benefits  Wlefare and Poverty,Supplies and Services,Grant Related Expenditure,290,04/11/2020,2011-00187,0.00,500.00,R,REDACTED PERSONAL DATA,No
Http://opendatacommunities.org/id/metropolitan-district-council/leeds,Leeds City Council,30/11/2020,Communities and Environment,Benefits  Wlefare and Poverty,Supplies and Services,Grant Related Expenditure,290,20/11/2020,2011-00188,0.00,500.00,R,REDACTED PERSONAL DATA,No
Http://opendatacommunities.org/id/metropolitan-district-council/leeds,Leeds City Council,30/11/2020,Children and Families,Social Care,Transfer Payments,Leaving Care Allowances,634,12/11/2020,2011-00189,0.00,665.00,R,REDACTED PERSONAL DATA,No
Http://opendatacommunities.org/id/metropolitan-district-council/leeds,Leeds City Council,30/11/2020,Communities and Environment,Benefits  Wlefare and Poverty,Supplies and Services,Grant Related Expenditure,298,20/11/2020,2011-00190,0.00,500.00,R,REDACTED PERSONAL DATA,No
Http://opendatacommunities.org/id/metropolitan-district-council/leeds,Leeds City Council,30/11/2020,Communities and Environment,Customer Access,Supplies and Services,Bought In Professional Services,277,04/11/2020,2011-00191,0.00,18.00,R,Abdulrahim Dastyar,No
Http://opendatacommunities.org/id/metropolitan-district-council/leeds,Leeds City Council,30/11/2020,Communities and Environment,Customer Access,Supplies and Services,Bought In Professional Services,277,11/11/2020,2011-00192,0.00,9.00,R,Abdulrahim Dastyar,No
Http://opendatacommunities.org/id/metropolitan-district-council/leeds,Leeds City Council,30/11/2020,Communities and Environment,Customer Access,Supplies and Services,Bought In Professional Services,277,11/11/2020,2011-00193,0.00,27.00,R,Abdulrahim Dastyar,No
Http://opendatacommunities.org/id/metropolitan-district-council/leeds,Leeds City Council,30/11/2020,Communities and Environment,Customer Access,Supplies and Services,Bought In Professional Services,277,18/11/2020,2011-00194,0.00,13.50,R,Abdulrahim Dastyar,No
Http://opendatacommunities.org/id/metropolitan-district-council/leeds,Leeds City Council,30/11/2020,Communities and Environment,Customer Access,Supplies and Services,Bought In Professional Services,277,25/11/2020,2011-00195,0.00,27.00,R,Abdulrahim Dastyar,No
Http://opendatacommunities.org/id/metropolitan-district-council/leeds,Leeds City Council,30/11/2020,Communities and Environment,Customer Access,Supplies and Services,Bought In Professional Services,277,25/11/2020,2011-00196,0.00,18.00,R,Abdulrahim Dastyar,No
Http://opendatacommunities.org/id/metropolitan-district-council/leeds,Leeds City Council,30/11/2020,Communities and Environment,Benefits  Wlefare and Poverty,Supplies and Services,Grant Related Expenditure,290,25/11/2020,2011-00197,0.00,500.00,R,REDACTED PERSONAL DATA,No
Http://opendatacommunities.org/id/metropolitan-district-council/leeds,Leeds City Council,30/11/2020,Adults and Health,Services For Older People - 65 And Over,Third Party Payments,Nursing Home,570,11/11/2020,2011-00198,0.00,20326.14,R,Aberford Hall,No
Http://opendatacommunities.org/id/metropolitan-district-council/leeds,Leeds City Council,30/11/2020,Adults and Health,Services For Older People - 65 And Over,Third Party Payments,Nursing Care Dementia,574,11/11/2020,2011-00199,0.00,20350.01,R,Aberford Hall,No
Http://opendatacommunities.org/id/metropolitan-district-council/leeds,Leeds City Council,30/11/2020,Resources and Housing,Leeds Building Services,Supplies and Services,Operational Materials,205,03/11/2020,2011-00200,0.00,39.90,R,ABI GARAGE DOORS LTD,No
Http://opendatacommunities.org/id/metropolitan-district-council/leeds,Leeds City Council,30/11/2020,Resources and Housing,Leeds Building Services,Supplies and Services,Operational Materials,205,13/11/2020,2011-00201,0.00,40.83,R,ABI GARAGE DOORS LTD,No
Http://opendatacommunities.org/id/metropolitan-district-council/leeds,Leeds City Council,30/11/2020,Resources and Housing,Leeds Building Services,Supplies and Services,Operational Materials,205,26/11/2020,2011-00202,0.00,281.03,R,ABI GARAGE DOORS LTD,No
Http://opendatacommunities.org/id/metropolitan-district-council/leeds,Leeds City Council,30/11/2020,Communities and Environment,Elections  Licensing and Registration,Income,Admissions  Booking Fees & Ticket Sales,933,12/11/2020,2011-00203,0.00,135.00,R,Abid Hussain,No
Http://opendatacommunities.org/id/metropolitan-district-council/leeds,Leeds City Council,30/11/2020,Children and Families,Social Care,Third Party Payments,Allowances,546,16/11/2020,2011-00204,0.00,50.00,R,REDACTED PERSONAL DATA,No
Http://opendatacommunities.org/id/metropolitan-district-council/leeds,Leeds City Council,30/11/2020,Children and Families,Social Care,Transfer Payments,Leaving Care Allowances,634,20/11/2020,2011-00205,0.00,70.00,R,REDACTED PERSONAL DATA,No
Http://opendatacommunities.org/id/metropolitan-district-council/leeds,Leeds City Council,30/11/2020,Children and Families,Social Care,Transfer Payments,Leaving Care Allowances,634,27/11/2020,2011-00206,0.00,70.00,R,REDACTED PERSONAL DATA,No
Http://opendatacommunities.org/id/metropolitan-district-council/leeds,Leeds City Council,30/11/2020,Communities and Environment,Benefits  Wlefare and Poverty,Supplies and Services,Grant Related Expenditure,290,05/11/2020,2011-00207,0.00,500.00,R,REDACTED PERSONAL DATA,No
Http://opendatacommunities.org/id/metropolitan-district-council/leeds,Leeds City Council,30/11/2020,Children and Families,Social Care,Third Party Payments,Placement Support,550,03/11/2020,2011-00208,0.00,30.00,R,REDACTED PERSONAL DATA,No
Http://opendatacommunities.org/id/metropolitan-district-council/leeds,Leeds City Council,30/11/2020,Communities and Environment,Benefits  Wlefare and Poverty,Supplies and Services,Grant Related Expenditure,290,04/11/2020,2011-00209,0.00,500.00,R,REDACTED PERSONAL DATA,No
Http://opendatacommunities.org/id/metropolitan-district-council/leeds,Leeds City Council,30/11/2020,Children and Families,Social Care,Third Party Payments,Contact,548,04/11/2020,2011-00210,0.00,13.73,R,REDACTED PERSONAL DATA,No
Http://opendatacommunities.org/id/metropolitan-district-council/leeds,Leeds City Council,30/11/2020,Communities and Environment,Customer Access  ,Employees,Best Value Training,70,16/10/2020,2011-00211,0.00,415.00,R,Ability Smart,Yes
Http://opendatacommunities.org/id/metropolitan-district-council/leeds,Leeds City Council,30/11/2020,Communities and Environment,Parks and Countryside,Supplies and Services,Operational Materials,205,30/11/2020,2011-00212,0.00,838.00,R,Abram Pulman & Sons Limited,No
Http://opendatacommunities.org/id/metropolitan-district-council/leeds,Leeds City Council,30/11/2020,Communities and Environment,Parks and Countryside,Supplies and Services,Operational Materials,205,30/11/2020,2011-00213,0.00,60.00,R,Abram Pulman & Sons Limited,No
Http://opendatacommunities.org/id/metropolitan-district-council/leeds,Leeds City Council,30/11/2020,Communities and Environment,Parks and Countryside,Supplies and Services,Operational Materials,205,30/11/2020,2011-00214,0.00,146.00,R,Abram Pulman & Sons Limited,No
Http://opendatacommunities.org/id/metropolitan-district-council/leeds,Leeds City Council,30/11/2020,Adults and Health,Services For Adults Under 65 Mental/Dis,Third Party Payments,Fees - Level 4,520,06/11/2020,2011-00215,0.00,175.00,R,Abubaker Denja Mohammed,No
Http://opendatacommunities.org/id/metropolitan-district-council/leeds,Leeds City Council,30/11/2020,Adults and Health,Services For Adults Under 65 Mental/Dis,Third Party Payments,Fees - Level 4,520,06/11/2020,2011-00216,0.00,175.00,R,Abubaker Denja Mohammed,No
Http://opendatacommunities.org/id/metropolitan-district-council/leeds,Leeds City Council,30/11/2020,Adults and Health,Services For Adults Under 65 Mental/Dis,Third Party Payments,Fees - Level 4,520,06/11/2020,2011-00217,0.00,175.00,R,Abubaker Denja Mohammed,No
Http://opendatacommunities.org/id/metropolitan-district-council/leeds,Leeds City Council,30/11/2020,Adults and Health,Services For Adults Under 65 Mental/Dis,Third Party Payments,Fees - Level 4,520,06/11/2020,2011-00218,0.00,175.00,R,Abubaker Denja Mohammed,No
Http://opendatacommunities.org/id/metropolitan-district-council/leeds,Leeds City Council,30/11/2020,Adults and Health,Services For Adults Under 65 Mental/Dis,Third Party Payments,Fees - Level 4,520,20/11/2020,2011-00219,0.00,175.00,R,Abubaker Denja Mohammed,No
Http://opendatacommunities.org/id/metropolitan-district-council/leeds,Leeds City Council,30/11/2020,Adults and Health,Services For Adults Under 65 Mental/Dis,Third Party Payments,Fees - Level 4,520,20/11/2020,2011-00220,0.00,175.00,R,Abubaker Denja Mohammed,No
Http://opendatacommunities.org/id/metropolitan-district-council/leeds,Leeds City Council,30/11/2020,Adults and Health,Services For Adults Under 65 Mental/Dis,Third Party Payments,Fees - Level 4,520,27/11/2020,2011-00221,0.00,175.00,R,Abubaker Denja Mohammed,No
Http://opendatacommunities.org/id/metropolitan-district-council/leeds,Leeds City Council,30/11/2020,Adults and Health,Services For Adults Under 65 Mental/Dis,Third Party Payments,Fees - Level 4,520,27/11/2020,2011-00222,0.00,175.00,R,Abubaker Denja Mohammed,No
Http://opendatacommunities.org/id/metropolitan-district-council/leeds,Leeds City Council,30/11/2020,Children and Families,Social Care,Supplies and Services,Courses For Non-Employees,281,03/11/2020,2011-00223,0.00,1000.00,R,AC EDUCATION,No
Http://opendatacommunities.org/id/metropolitan-district-council/leeds,Leeds City Council,30/11/2020,Adults and Health,Services For Older People - 65 And Over,Third Party Payments,Home Care,568,11/11/2020,2011-00224,0.00,780.78,R,Academy Care Ltd,No
Http://opendatacommunities.org/id/metropolitan-district-council/leeds,Leeds City Council,30/11/2020,Adults and Health,Services For Older People - 65 And Over,Third Party Payments,Home Care,568,11/11/2020,2011-00225,0.00,780.78,R,Academy Care Ltd,No
Http://opendatacommunities.org/id/metropolitan-district-council/leeds,Leeds City Council,30/11/2020,Adults and Health,Services For Older People - 65 And Over,Third Party Payments,Home Care,568,11/11/2020,2011-00226,0.00,780.78,R,Academy Care Ltd,No
Http://opendatacommunities.org/id/metropolitan-district-council/leeds,Leeds City Council,30/11/2020,Adults and Health,Services For Older People - 65 And Over,Third Party Payments,Home Care,568,11/11/2020,2011-00227,0.00,780.78,R,Academy Care Ltd,No
Http://opendatacommunities.org/id/metropolitan-district-council/leeds,Leeds City Council,30/11/2020,Resources and Housing,Commercial Services  ,Supplies and Services,Operational Materials,205,08/10/2020,2011-00228,0.00,838.01,R,Access Locksmiths,Yes
Http://opendatacommunities.org/id/metropolitan-district-council/leeds,Leeds City Council,30/11/2020,Resources and Housing,Facilities Management  ,Premises,Maintenance Of Buildings,101,08/10/2020,2011-00229,0.00,764.20,R,Access Locksmiths,Yes
Http://opendatacommunities.org/id/metropolitan-district-council/leeds,Leeds City Council,30/11/2020,Adults and Health,Services For Older People - 65 And Over  ,Supplies and Services,Operational Furniture And Equipment,203,20/10/2020,2011-00230,0.00,26.75,R,Access Locksmiths,Yes
Http://opendatacommunities.org/id/metropolitan-district-council/leeds,Leeds City Council,30/11/2020,Children and Families,Social Care  ,Supplies and Services,Operational Materials,205,21/10/2020,2011-00231,0.00,15.10,R,Access Locksmiths,Yes
Http://opendatacommunities.org/id/metropolitan-district-council/leeds,Leeds City Council,30/11/2020,Adults and Health,Services For Older People - 65 And Over  ,Supplies and Services,Operational Furniture And Equipment,203,22/10/2020,2011-00232,0.00,31.30,R,Access Locksmiths,Yes
Http://opendatacommunities.org/id/metropolitan-district-council/leeds,Leeds City Council,30/11/2020,Adults and Health,Services For Older People - 65 And Over  ,Supplies and Services,Operational Furniture And Equipment,203,22/10/2020,2011-00233,0.00,7.10,R,Access Locksmiths,Yes
Http://opendatacommunities.org/id/metropolitan-district-council/leeds,Leeds City Council,30/11/2020,Strategic Landlord,Housing Management,Supplies and Services,Research Costs,240,13/11/2020,2011-00234,0.00,57.00,R,ACCESS LOCKSMITHS (LEEDS) LIMITED,No
Http://opendatacommunities.org/id/metropolitan-district-council/leeds,Leeds City Council,30/11/2020,Strategic Landlord,Housing Management,Premises,General Maintenance,104,13/11/2020,2011-00235,0.00,231.00,R,ACCESS LOCKSMITHS (LEEDS) LIMITED,No
Http://opendatacommunities.org/id/metropolitan-district-council/leeds,Leeds City Council,30/11/2020,Strategic Landlord,Housing Management,Supplies and Services,Resaleable Materials,204,13/11/2020,2011-00236,0.00,228.00,R,ACCESS LOCKSMITHS (LEEDS) LIMITED,No
Http://opendatacommunities.org/id/metropolitan-district-council/leeds,Leeds City Council,30/11/2020,Strategic Landlord,PFI,Supplies and Services,Other Hired And Contracted Services,265,13/11/2020,2011-00237,0.00,152.84,R,ACCESS LOCKSMITHS (LEEDS) LIMITED,No
Http://opendatacommunities.org/id/metropolitan-district-council/leeds,Leeds City Council,30/11/2020,Strategic Landlord,Housing Management,Supplies and Services,Resaleable Materials,204,13/11/2020,2011-00238,0.00,22.80,R,ACCESS LOCKSMITHS (LEEDS) LIMITED,No
Http://opendatacommunities.org/id/metropolitan-district-council/leeds,Leeds City Council,30/11/2020,Strategic Landlord,Housing Management,Supplies and Services,Resaleable Materials,204,13/11/2020,2011-00239,0.00,342.00,R,ACCESS LOCKSMITHS (LEEDS) LIMITED,No
Http://opendatacommunities.org/id/metropolitan-district-council/leeds,Leeds City Council,30/11/2020,Strategic Landlord,Housing Management,Supplies and Services,Resaleable Materials,204,13/11/2020,2011-00240,0.00,114.00,R,ACCESS LOCKSMITHS (LEEDS) LIMITED,No
Http://opendatacommunities.org/id/metropolitan-district-council/leeds,Leeds City Council,30/11/2020,Strategic Landlord,Housing Management,Supplies and Services,Resaleable Materials,204,13/11/2020,2011-00241,0.00,228.00,R,ACCESS LOCKSMITHS (LEEDS) LIMITED,No
Http://opendatacommunities.org/id/metropolitan-district-council/leeds,Leeds City Council,30/11/2020,Strategic Landlord,Housing Management,Supplies and Services,Resaleable Materials,204,13/11/2020,2011-00242,0.00,342.00,R,ACCESS LOCKSMITHS (LEEDS) LIMITED,No
Http://opendatacommunities.org/id/metropolitan-district-council/leeds,Leeds City Council,30/11/2020,Resources and Housing,HRA Housing Leeds,Capital,FURNITURE AND EQUIPMENT,5,23/11/2020,2011-00243,0.00,22.40,C,ACCESS LOCKSMITHS (LEEDS) LIMITED,No
Http://opendatacommunities.org/id/metropolitan-district-council/leeds,Leeds City Council,30/11/2020,Resources and Housing,HRA Housing Leeds,Capital,OTHER COSTS,7,23/11/2020,2011-00244,0.00,70.15,C,ACCESS LOCKSMITHS (LEEDS) LIMITED,No
Http://opendatacommunities.org/id/metropolitan-district-council/leeds,Leeds City Council,30/11/2020,Strategic Landlord,Property and Contracts,Transfer Payments,Disrepair Provision,644,23/11/2020,2011-00245,0.00,105.90,R,ACCESS LOCKSMITHS (LEEDS) LIMITED,No
Http://opendatacommunities.org/id/metropolitan-district-council/leeds,Leeds City Council,30/11/2020,Strategic Landlord,Housing Management,Supplies and Services,Resaleable Materials,204,23/11/2020,2011-00246,0.00,114.00,R,ACCESS LOCKSMITHS (LEEDS) LIMITED,No
Http://opendatacommunities.org/id/metropolitan-district-council/leeds,Leeds City Council,30/11/2020,Resources and Housing,HRA Housing Leeds,Capital,FURNITURE AND EQUIPMENT,5,24/11/2020,2011-00247,0.00,68.63,C,ACCESS LOCKSMITHS (LEEDS) LIMITED,No
Http://opendatacommunities.org/id/metropolitan-district-council/leeds,Leeds City Council,30/11/2020,Strategic Landlord,Property and Contracts,Premises,General Maintenance,104,24/11/2020,2011-00248,0.00,208.03,R,ACCESS LOCKSMITHS (LEEDS) LIMITED,No
Http://opendatacommunities.org/id/metropolitan-district-council/leeds,Leeds City Council,30/11/2020,Strategic Landlord,Property and Contracts,Premises,General Maintenance,104,27/11/2020,2011-00249,0.00,95.93,R,ACCESS LOCKSMITHS (LEEDS) LIMITED,No
Http://opendatacommunities.org/id/metropolitan-district-council/leeds,Leeds City Council,30/11/2020,City Development,Libraries  Arts & Heritage,Supplies and Services,Bought In Professional Services,277,03/11/2020,2011-00250,0.00,1000.00,R,ACCESS MOVING IMAGE LTD,No
Http://opendatacommunities.org/id/metropolitan-district-council/leeds,Leeds City Council as Accountable Body,30/11/2020,Social Services Pooled Budgets,Leeds Community Equip Store Pooled Budgt,Supplies and Services,Other Equipment,203,13/11/2020,2011-00251,0.00,2054.00,R,Accora,No
Http://opendatacommunities.org/id/metropolitan-district-council/leeds,Leeds City Council,30/11/2020,City Development,Recreation,Transport,External Hire -Occasional,304,30/11/2020,2011-00252,0.00,124.50,R,ACE CONTAINER SERVICES LIMITED,No
Http://opendatacommunities.org/id/metropolitan-district-council/leeds,Leeds City Council,30/11/2020,City Development,Libraries  Arts & Heritage,Supplies and Services,Other Hired And Contracted Services,265,30/11/2020,2011-00253,0.00,45.00,R,ACE CONTAINER SERVICES LIMITED,No
Http://opendatacommunities.org/id/metropolitan-district-council/leeds,Leeds City Council,30/11/2020,Children and Families,Social Care,Third Party Payments,General External Residential Placements,507,03/11/2020,2011-00254,0.00,16692.86,R,Acorn Care & Education Ltd (Sales),No
Http://opendatacommunities.org/id/metropolitan-district-council/leeds,Leeds City Council,30/11/2020,Adults and Health,Other Adult Services,Third Party Payments,Residential,580,17/11/2020,2011-00255,0.00,1326.44,R,Acorn Care & Education Ltd (Sales),No
Http://opendatacommunities.org/id/metropolitan-district-council/leeds,Leeds City Council,30/11/2020,Children and Families,Partnerships & Health,Third Party Payments,SEN Placements,566,19/11/2020,2011-00256,0.00,19717.22,R,Acorn Care & Education Ltd (Sales),No
Http://opendatacommunities.org/id/metropolitan-district-council/leeds,Leeds City Council,30/11/2020,Children and Families,Partnerships & Health,Third Party Payments,SEN Placements,566,19/11/2020,2011-00257,0.00,23339.44,R,Acorn Care & Education Ltd (Sales),No
Http://opendatacommunities.org/id/metropolitan-district-council/leeds,Leeds City Council,30/11/2020,Children and Families,Partnerships & Health,Third Party Payments,SEN Placements,566,20/11/2020,2011-00258,0.00,20374.46,R,Acorn Care & Education Ltd (Sales),No
Http://opendatacommunities.org/id/metropolitan-district-council/leeds,Leeds City Council,30/11/2020,Children and Families,Partnerships & Health,Third Party Payments,SEN Placements,566,27/11/2020,2011-00259,0.00,24117.42,R,Acorn Care & Education Ltd (Sales),No
Http://opendatacommunities.org/id/metropolitan-district-council/leeds,Leeds City Council,30/11/2020,Children and Families,Social Care,Third Party Payments,General External Residential Placements,507,27/11/2020,2011-00260,0.00,12241.43,R,Acorn Care & Education Ltd (Sales),No
Http://opendatacommunities.org/id/metropolitan-district-council/leeds,Leeds City Council,30/11/2020,Children and Families,Social Care,Third Party Payments,General External Residential Placements,507,27/11/2020,2011-00261,0.00,17249.29,R,Acorn Care & Education Ltd (Sales),No
Http://opendatacommunities.org/id/metropolitan-district-council/leeds,Leeds City Council,30/11/2020,City Development,Libraries  Arts & Heritage,Supplies and Services,Other Hired And Contracted Services,265,05/11/2020,2011-00262,0.00,1560.00,R,Acorn Construction (Yorkshire) Ltd,No
Http://opendatacommunities.org/id/metropolitan-district-council/leeds,Leeds City Council,30/11/2020,Adults and Health,Services For Older People - 65 And Over,Third Party Payments,Nursing Home,570,11/11/2020,2011-00263,0.00,1540.14,R,Acorn Nursing Home,No
Http://opendatacommunities.org/id/metropolitan-district-council/leeds,Leeds City Council,30/11/2020,Adults and Health,Services For Older People - 65 And Over,Third Party Payments,Residential Care Dementia,571,11/11/2020,2011-00264,0.00,1589.72,R,Acorn Nursing Home,No
Http://opendatacommunities.org/id/metropolitan-district-council/leeds,Leeds City Council,30/11/2020,Children and Families,Social Care,Third Party Payments,Services Rendered By Other Organisations,511,06/11/2020,2011-00265,0.00,13025.03,R,ACORNS NURSERY,No
Http://opendatacommunities.org/id/metropolitan-district-council/leeds,Leeds City Council,30/11/2020,Adults and Health,Services For Older People - 65 And Over,Third Party Payments,Nursing Home,570,11/11/2020,2011-00266,0.00,17609.58,R,Acre Green,No
Http://opendatacommunities.org/id/metropolitan-district-council/leeds,Leeds City Council,30/11/2020,Adults and Health,Services For Older People - 65 And Over,Third Party Payments,Residential,580,11/11/2020,2011-00267,0.00,5170.12,R,Acre Green,No
Http://opendatacommunities.org/id/metropolitan-district-council/leeds,Leeds City Council,30/11/2020,Adults and Health,Services For Older People Under 65 P/Dis,Third Party Payments,Nursing Home,570,11/11/2020,2011-00268,0.00,2360.00,R,Acre Green,No
Http://opendatacommunities.org/id/metropolitan-district-council/leeds,Leeds City Council,30/11/2020,Adults and Health,Services For Older People Under 65 P/Dis,Third Party Payments,Residential,580,11/11/2020,2011-00269,0.00,1642.60,R,Acre Green,No
Http://opendatacommunities.org/id/metropolitan-district-council/leeds,Leeds City Council,30/11/2020,Children and Families,Social Care,Third Party Payments,Services Rendered By Other Organisations,511,04/11/2020,2011-00270,0.00,4229.28,R,Acre Wood Day Nursery,No
Http://opendatacommunities.org/id/metropolitan-district-council/leeds,Leeds City Council,30/11/2020,Children and Families,Social Care,Third Party Payments,Services Rendered By Other Organisations,511,06/11/2020,2011-00271,0.00,11530.35,R,Acre Wood Day Nursery,No
Http://opendatacommunities.org/id/metropolitan-district-council/leeds,Leeds City Council,30/11/2020,Resources and Housing,Technology  ,Supplies and Services,Computer Software & Equipment,214,30/09/2020,2011-00272,0.00,38.95,R,Acs Business Supplies Lt,Yes
Http://opendatacommunities.org/id/metropolitan-district-council/leeds,Leeds City Council as Accountable Body,30/11/2020,Social Services Pooled Budgets,Leeds Community Equip Store Pooled Budgt,Supplies and Services,Other Equipment,203,11/11/2020,2011-00273,0.00,1040.00,R,Action Assist Ltd,No
Http://opendatacommunities.org/id/metropolitan-district-council/leeds,Leeds City Council,30/11/2020,Children and Families,Social Care,Third Party Payments,Independent Fostering Agencies,509,03/11/2020,2011-00274,0.00,1165.96,R,Action For Children,No
Http://opendatacommunities.org/id/metropolitan-district-council/leeds,Leeds City Council,30/11/2020,Children and Families,Social Care,Third Party Payments,Independent Fostering Agencies,509,23/11/2020,2011-00275,0.00,1705.00,R,Action For Children Services Ltd,No
Http://opendatacommunities.org/id/metropolitan-district-council/leeds,Leeds City Council,30/11/2020,Children and Families,Social Care,Third Party Payments,Independent Fostering Agencies,509,27/11/2020,2011-00276,0.00,4957.14,R,Action For Children Services Ltd,No
Http://opendatacommunities.org/id/metropolitan-district-council/leeds,Leeds City Council,30/11/2020,Children and Families,Social Care,Third Party Payments,Services Rendered By Other Organisations,511,04/11/2020,2011-00277,0.00,1082.40,R,ACTIVE KIDS YEADON LLP,No
Http://opendatacommunities.org/id/metropolitan-district-council/leeds,Leeds City Council,30/11/2020,Children and Families,Social Care,Third Party Payments,Services Rendered By Other Organisations,511,06/11/2020,2011-00278,0.00,5694.00,R,ACTIVE KIDS YEADON LLP,No
Http://opendatacommunities.org/id/metropolitan-district-council/leeds,Leeds City Council,30/11/2020,Adults and Health,Services For Adults Under 65 Mental/Dis,Third Party Payments,Sheltered Accommodation,569,11/11/2020,2011-00279,0.00,19093.76,R,Active Pathways,No
Http://opendatacommunities.org/id/metropolitan-district-council/leeds,Leeds City Council,30/11/2020,Adults and Health,Services For Older People Under 65 P/Dis,Third Party Payments,Sheltered Accommodation,569,11/11/2020,2011-00280,0.00,7471.52,R,Active Pathways,No
Http://opendatacommunities.org/id/metropolitan-district-council/leeds,Leeds City Council as Accountable Body,30/11/2020,Social Services Pooled Budgets,Jcs For People With Learning Disabilitie,Third Party Payments,Sheltered Accommodation,569,11/11/2020,2011-00281,0.00,8301.68,R,Active Pathways,No
Http://opendatacommunities.org/id/metropolitan-district-council/leeds,Leeds City Council,30/11/2020,Adults and Health,Other Adult Services,Third Party Payments,Residential,580,25/11/2020,2011-00282,0.00,1326.44,R,Active Pathways Supported Living,No
Http://opendatacommunities.org/id/metropolitan-district-council/leeds,Leeds City Council,30/11/2020,Communities and Environment,Waste Management,Supplies and Services,Recycling & Reuse Charges,234,04/11/2020,2011-00283,0.00,1039.02,R,Acumen Waste Services Ltd,No
Http://opendatacommunities.org/id/metropolitan-district-council/leeds,Leeds City Council,30/11/2020,Communities and Environment,Waste Management,Supplies and Services,Recycling & Reuse Charges,234,04/11/2020,2011-00284,0.00,1012.75,R,Acumen Waste Services Ltd,No
Http://opendatacommunities.org/id/metropolitan-district-council/leeds,Leeds City Council,30/11/2020,Communities and Environment,Waste Management,Supplies and Services,Recycling & Reuse Charges,234,06/11/2020,2011-00285,0.00,998.54,R,Acumen Waste Services Ltd,No
Http://opendatacommunities.org/id/metropolitan-district-council/leeds,Leeds City Council,30/11/2020,Communities and Environment,Cleaner Neighbourhood Teams,Premises,Removal Of Workplace Waste,126,06/11/2020,2011-00286,0.00,116.60,R,Acumen Waste Services Ltd,No
Http://opendatacommunities.org/id/metropolitan-district-council/leeds,Leeds City Council,30/11/2020,Communities and Environment,Cleaner Neighbourhood Teams,Premises,Removal Of Workplace Waste,126,06/11/2020,2011-00287,0.00,116.60,R,Acumen Waste Services Ltd,No
Http://opendatacommunities.org/id/metropolitan-district-council/leeds,Leeds City Council,30/11/2020,Communities and Environment,Cleaner Neighbourhood Teams,Premises,Removal Of Workplace Waste,126,06/11/2020,2011-00288,0.00,116.60,R,Acumen Waste Services Ltd,No
Http://opendatacommunities.org/id/metropolitan-district-council/leeds,Leeds City Council,30/11/2020,Communities and Environment,Cleaner Neighbourhood Teams,Premises,Removal Of Workplace Waste,126,06/11/2020,2011-00289,0.00,116.60,R,Acumen Waste Services Ltd,No
Http://opendatacommunities.org/id/metropolitan-district-council/leeds,Leeds City Council,30/11/2020,Communities and Environment,Waste Management,Supplies and Services,Recycling & Reuse Charges,234,06/11/2020,2011-00290,0.00,915.45,R,Acumen Waste Services Ltd,No
Http://opendatacommunities.org/id/metropolitan-district-council/leeds,Leeds City Council,30/11/2020,Communities and Environment,Waste Management,Supplies and Services,Recycling & Reuse Charges,234,06/11/2020,2011-00291,0.00,950.96,R,Acumen Waste Services Ltd,No
Http://opendatacommunities.org/id/metropolitan-district-council/leeds,Leeds City Council,30/11/2020,Communities and Environment,Cleaner Neighbourhood Teams,Premises,Removal Of Workplace Waste,126,06/11/2020,2011-00292,0.00,116.60,R,Acumen Waste Services Ltd,No
Http://opendatacommunities.org/id/metropolitan-district-council/leeds,Leeds City Council,30/11/2020,Communities and Environment,Cleaner Neighbourhood Teams,Premises,Removal Of Workplace Waste,126,06/11/2020,2011-00293,0.00,116.60,R,Acumen Waste Services Ltd,No
Http://opendatacommunities.org/id/metropolitan-district-council/leeds,Leeds City Council,30/11/2020,Communities and Environment,Cleaner Neighbourhood Teams,Premises,Removal Of Workplace Waste,126,11/11/2020,2011-00294,0.00,116.60,R,Acumen Waste Services Ltd,No
Http://opendatacommunities.org/id/metropolitan-district-council/leeds,Leeds City Council,30/11/2020,Communities and Environment,Cleaner Neighbourhood Teams,Premises,Removal Of Workplace Waste,126,11/11/2020,2011-00295,0.00,116.60,R,Acumen Waste Services Ltd,No
Http://opendatacommunities.org/id/metropolitan-district-council/leeds,Leeds City Council,30/11/2020,Communities and Environment,Waste Management,Supplies and Services,Recycling & Reuse Charges,234,11/11/2020,2011-00296,0.00,952.38,R,Acumen Waste Services Ltd,No
Http://opendatacommunities.org/id/metropolitan-district-council/leeds,Leeds City Council,30/11/2020,Communities and Environment,Waste Management,Supplies and Services,Recycling & Reuse Charges,234,11/11/2020,2011-00297,0.00,997.83,R,Acumen Waste Services Ltd,No
Http://opendatacommunities.org/id/metropolitan-district-council/leeds,Leeds City Council,30/11/2020,Communities and Environment,Cleaner Neighbourhood Teams,Premises,Removal Of Workplace Waste,126,13/11/2020,2011-00298,0.00,116.60,R,Acumen Waste Services Ltd,No
Http://opendatacommunities.org/id/metropolitan-district-council/leeds,Leeds City Council,30/11/2020,Communities and Environment,Waste Management,Supplies and Services,Recycling & Reuse Charges,234,16/11/2020,2011-00299,0.00,994.28,R,Acumen Waste Services Ltd,No
Http://opendatacommunities.org/id/metropolitan-district-council/leeds,Leeds City Council,30/11/2020,Communities and Environment,Cleaner Neighbourhood Teams,Premises,Removal Of Workplace Waste,126,17/11/2020,2011-00300,0.00,116.60,R,Acumen Waste Services Ltd,No
Http://opendatacommunities.org/id/metropolitan-district-council/leeds,Leeds City Council,30/11/2020,Communities and Environment,Cleaner Neighbourhood Teams,Premises,Removal Of Workplace Waste,126,18/11/2020,2011-00301,0.00,116.60,R,Acumen Waste Services Ltd,No
Http://opendatacommunities.org/id/metropolitan-district-council/leeds,Leeds City Council,30/11/2020,Communities and Environment,Cleaner Neighbourhood Teams,Premises,Removal Of Workplace Waste,126,18/11/2020,2011-00302,0.00,116.60,R,Acumen Waste Services Ltd,No
Http://opendatacommunities.org/id/metropolitan-district-council/leeds,Leeds City Council,30/11/2020,Communities and Environment,Cleaner Neighbourhood Teams,Premises,Removal Of Workplace Waste,126,18/11/2020,2011-00303,0.00,116.60,R,Acumen Waste Services Ltd,No
Http://opendatacommunities.org/id/metropolitan-district-council/leeds,Leeds City Council,30/11/2020,Communities and Environment,Cleaner Neighbourhood Teams,Supplies and Services,Other Hired And Contracted Services,265,18/11/2020,2011-00304,0.00,116.60,R,Acumen Waste Services Ltd,No
Http://opendatacommunities.org/id/metropolitan-district-council/leeds,Leeds City Council,30/11/2020,Communities and Environment,Waste Management,Supplies and Services,Recycling & Reuse Charges,234,19/11/2020,2011-00305,0.00,1029.08,R,Acumen Waste Services Ltd,No
Http://opendatacommunities.org/id/metropolitan-district-council/leeds,Leeds City Council,30/11/2020,Communities and Environment,Waste Management,Supplies and Services,Recycling & Reuse Charges,234,19/11/2020,2011-00306,0.00,882.78,R,Acumen Waste Services Ltd,No
Http://opendatacommunities.org/id/metropolitan-district-council/leeds,Leeds City Council,30/11/2020,Communities and Environment,Waste Management,Supplies and Services,Recycling & Reuse Charges,234,19/11/2020,2011-00307,0.00,867.86,R,Acumen Waste Services Ltd,No
Http://opendatacommunities.org/id/metropolitan-district-council/leeds,Leeds City Council,30/11/2020,Communities and Environment,Waste Management,Supplies and Services,Recycling & Reuse Charges,234,20/11/2020,2011-00308,0.00,982.92,R,Acumen Waste Services Ltd,No
Http://opendatacommunities.org/id/metropolitan-district-council/leeds,Leeds City Council,30/11/2020,Communities and Environment,Waste Management,Supplies and Services,Recycling & Reuse Charges,234,20/11/2020,2011-00309,0.00,996.41,R,Acumen Waste Services Ltd,No
Http://opendatacommunities.org/id/metropolitan-district-council/leeds,Leeds City Council,30/11/2020,Communities and Environment,Waste Management,Supplies and Services,Recycling & Reuse Charges,234,20/11/2020,2011-00310,0.00,997.83,R,Acumen Waste Services Ltd,No
Http://opendatacommunities.org/id/metropolitan-district-council/leeds,Leeds City Council,30/11/2020,Communities and Environment,Cleaner Neighbourhood Teams,Premises,Removal Of Workplace Waste,126,20/11/2020,2011-00311,0.00,116.60,R,Acumen Waste Services Ltd,No
Http://opendatacommunities.org/id/metropolitan-district-council/leeds,Leeds City Council,30/11/2020,Communities and Environment,Waste Management,Supplies and Services,Recycling & Reuse Charges,234,20/11/2020,2011-00312,0.00,974.39,R,Acumen Waste Services Ltd,No
Http://opendatacommunities.org/id/metropolitan-district-council/leeds,Leeds City Council,30/11/2020,Communities and Environment,Cleaner Neighbourhood Teams,Premises,Removal Of Workplace Waste,126,20/11/2020,2011-00313,0.00,116.60,R,Acumen Waste Services Ltd,No
Http://opendatacommunities.org/id/metropolitan-district-council/leeds,Leeds City Council,30/11/2020,Communities and Environment,Cleaner Neighbourhood Teams,Premises,Removal Of Workplace Waste,126,20/11/2020,2011-00314,0.00,116.60,R,Acumen Waste Services Ltd,No
Http://opendatacommunities.org/id/metropolitan-district-council/leeds,Leeds City Council,30/11/2020,Communities and Environment,Waste Management,Supplies and Services,Recycling & Reuse Charges,234,20/11/2020,2011-00315,0.00,964.45,R,Acumen Waste Services Ltd,No
Http://opendatacommunities.org/id/metropolitan-district-council/leeds,Leeds City Council,30/11/2020,Communities and Environment,Waste Management,Supplies and Services,Recycling & Reuse Charges,234,23/11/2020,2011-00316,0.00,994.99,R,Acumen Waste Services Ltd,No
Http://opendatacommunities.org/id/metropolitan-district-council/leeds,Leeds City Council,30/11/2020,Communities and Environment,Waste Management,Supplies and Services,Recycling & Reuse Charges,234,25/11/2020,2011-00317,0.00,894.85,R,Acumen Waste Services Ltd,No
Http://opendatacommunities.org/id/metropolitan-district-council/leeds,Leeds City Council,30/11/2020,Communities and Environment,Cleaner Neighbourhood Teams,Supplies and Services,Other Hired And Contracted Services,265,26/11/2020,2011-00318,0.00,116.60,R,Acumen Waste Services Ltd,No
Http://opendatacommunities.org/id/metropolitan-district-council/leeds,Leeds City Council,30/11/2020,Communities and Environment,Waste Management,Supplies and Services,Recycling & Reuse Charges,234,26/11/2020,2011-00319,0.00,935.33,R,Acumen Waste Services Ltd,No
Http://opendatacommunities.org/id/metropolitan-district-council/leeds,Leeds City Council,30/11/2020,Communities and Environment,Waste Management,Supplies and Services,Recycling & Reuse Charges,234,26/11/2020,2011-00320,0.00,1085.74,R,Acumen Waste Services Ltd,No
Http://opendatacommunities.org/id/metropolitan-district-council/leeds,Leeds City Council,30/11/2020,Communities and Environment,Cleaner Neighbourhood Teams,Supplies and Services,Other Hired And Contracted Services,265,27/11/2020,2011-00321,0.00,116.60,R,Acumen Waste Services Ltd,No
Http://opendatacommunities.org/id/metropolitan-district-council/leeds,Leeds City Council,30/11/2020,Communities and Environment,Cleaner Neighbourhood Teams,Supplies and Services,Other Hired And Contracted Services,265,27/11/2020,2011-00322,0.00,116.60,R,Acumen Waste Services Ltd,No
Http://opendatacommunities.org/id/metropolitan-district-council/leeds,Leeds City Council,30/11/2020,Communities and Environment,Cleaner Neighbourhood Teams,Supplies and Services,Other Hired And Contracted Services,265,27/11/2020,2011-00323,0.00,116.60,R,Acumen Waste Services Ltd,No
Http://opendatacommunities.org/id/metropolitan-district-council/leeds,Leeds City Council,30/11/2020,Communities and Environment,Cleaner Neighbourhood Teams,Supplies and Services,Other Hired And Contracted Services,265,27/11/2020,2011-00324,0.00,116.60,R,Acumen Waste Services Ltd,No
Http://opendatacommunities.org/id/metropolitan-district-council/leeds,Leeds City Council,30/11/2020,Communities and Environment,Cleaner Neighbourhood Teams,Supplies and Services,Other Hired And Contracted Services,265,27/11/2020,2011-00325,0.00,116.60,R,Acumen Waste Services Ltd,No
Http://opendatacommunities.org/id/metropolitan-district-council/leeds,Leeds City Council,30/11/2020,Communities and Environment,Cleaner Neighbourhood Teams,Supplies and Services,Other Hired And Contracted Services,265,27/11/2020,2011-00326,0.00,116.60,R,Acumen Waste Services Ltd,No
Http://opendatacommunities.org/id/metropolitan-district-council/leeds,Leeds City Council,30/11/2020,Communities and Environment,Cleaner Neighbourhood Teams,Supplies and Services,Other Hired And Contracted Services,265,27/11/2020,2011-00327,0.00,116.60,R,Acumen Waste Services Ltd,No
Http://opendatacommunities.org/id/metropolitan-district-council/leeds,Leeds City Council,30/11/2020,Communities and Environment,Cleaner Neighbourhood Teams,Supplies and Services,Other Hired And Contracted Services,265,27/11/2020,2011-00328,0.00,116.60,R,Acumen Waste Services Ltd,No
Http://opendatacommunities.org/id/metropolitan-district-council/leeds,Leeds City Council,30/11/2020,Communities and Environment,Waste Management,Supplies and Services,Recycling & Reuse Charges,234,27/11/2020,2011-00329,0.00,959.48,R,Acumen Waste Services Ltd,No
Http://opendatacommunities.org/id/metropolitan-district-council/leeds,Leeds City Council,30/11/2020,Communities and Environment,Waste Management,Supplies and Services,Recycling & Reuse Charges,234,27/11/2020,2011-00330,0.00,965.16,R,Acumen Waste Services Ltd,No
Http://opendatacommunities.org/id/metropolitan-district-council/leeds,Leeds City Council,30/11/2020,Communities and Environment,Waste Management,Supplies and Services,Recycling & Reuse Charges,234,27/11/2020,2011-00331,0.00,767.73,R,Acumen Waste Services Ltd,No
Http://opendatacommunities.org/id/metropolitan-district-council/leeds,Leeds City Council,30/11/2020,Communities and Environment,Cleaner Neighbourhood Teams,Supplies and Services,Other Hired And Contracted Services,265,27/11/2020,2011-00332,0.00,116.60,R,Acumen Waste Services Ltd,No
Http://opendatacommunities.org/id/metropolitan-district-council/leeds,Leeds City Council,30/11/2020,Communities and Environment,Cleaner Neighbourhood Teams,Supplies and Services,Other Hired And Contracted Services,265,27/11/2020,2011-00333,0.00,116.60,R,Acumen Waste Services Ltd,No
Http://opendatacommunities.org/id/metropolitan-district-council/leeds,Leeds City Council,30/11/2020,Communities and Environment,Cleaner Neighbourhood Teams,Supplies and Services,Other Hired And Contracted Services,265,27/11/2020,2011-00334,0.00,116.60,R,Acumen Waste Services Ltd,No
Http://opendatacommunities.org/id/metropolitan-district-council/leeds,Leeds City Council,30/11/2020,Communities and Environment,Cleaner Neighbourhood Teams,Supplies and Services,Other Hired And Contracted Services,265,27/11/2020,2011-00335,0.00,116.60,R,Acumen Waste Services Ltd,No
Http://opendatacommunities.org/id/metropolitan-district-council/leeds,Leeds City Council,30/11/2020,Communities and Environment,Parks and Countryside,Supplies and Services,Resaleable Materials,204,12/11/2020,2011-00336,0.00,138.00,R,ACUSHNET EUROPE LIMITED,No
Http://opendatacommunities.org/id/metropolitan-district-council/leeds,Leeds City Council,30/11/2020,Resources and Housing,Shared Services,Supplies and Services,Operational Materials,205,12/11/2020,2011-00337,0.00,1131.75,R,AD3 Envelope Printers Limited,No
Http://opendatacommunities.org/id/metropolitan-district-council/leeds,Leeds City Council,30/11/2020,Resources and Housing,Shared Services,Supplies and Services,Other Hired And Contracted Services,265,13/11/2020,2011-00338,0.00,366.60,R,AD3 Envelope Printers Limited,No
Http://opendatacommunities.org/id/metropolitan-district-council/leeds,Leeds City Council,30/11/2020,Resources and Housing,Shared Services,Supplies and Services,Operational Materials,205,26/11/2020,2011-00339,0.00,1131.75,R,AD3 Envelope Printers Limited,No
Http://opendatacommunities.org/id/metropolitan-district-council/leeds,Leeds City Council,30/11/2020,Resources and Housing,Shared Services,Supplies and Services,Operational Materials,205,30/11/2020,2011-00340,0.00,1131.75,R,AD3 Envelope Printers Limited,No
Http://opendatacommunities.org/id/metropolitan-district-council/leeds,Leeds City Council,30/11/2020,Resources and Housing,Shared Services,Supplies and Services,Other Hired And Contracted Services,265,30/11/2020,2011-00341,0.00,70.40,R,AD3 Envelope Printers Limited,No
Http://opendatacommunities.org/id/metropolitan-district-council/leeds,Leeds City Council,30/11/2020,Communities and Environment,Benefits  Wlefare and Poverty,Supplies and Services,Grant Related Expenditure,298,02/11/2020,2011-00342,0.00,500.00,R,REDACTED PERSONAL DATA,No
Http://opendatacommunities.org/id/metropolitan-district-council/leeds,Leeds City Council,30/11/2020,Communities and Environment,Elections  Licensing and Registration,Income,Admissions  Booking Fees & Ticket Sales,933,13/11/2020,2011-00343,0.00,191.00,R,REDACTED PERSONAL DATA,No
Http://opendatacommunities.org/id/metropolitan-district-council/leeds,Leeds City Council,30/11/2020,Resources and Housing,HRA Housing Leeds,Capital,OTHER COSTS,7,25/11/2020,2011-00344,0.00,80.00,C,REDACTED PERSONAL DATA,No
Http://opendatacommunities.org/id/metropolitan-district-council/leeds,Leeds City Council,30/11/2020,Children and Families,Social Care,Third Party Payments,Contact,548,24/11/2020,2011-00345,0.00,188.00,R,REDACTED PERSONAL DATA,No
Http://opendatacommunities.org/id/metropolitan-district-council/leeds,Leeds City Council,30/11/2020,Adults and Health,Services For Older People - 65 And Over,Third Party Payments,Nursing Home,570,11/11/2020,2011-00346,0.00,2584.00,R,Adbolton Hall,No
Http://opendatacommunities.org/id/metropolitan-district-council/leeds,Leeds City Council,30/11/2020,Resources and Housing,Civic Enterprise Leeds,Capital,TRANSPORT,4,06/11/2020,2011-00347,0.00,29571.72,C,Addison Motors Limited,No
Http://opendatacommunities.org/id/metropolitan-district-council/leeds,Leeds City Council,30/11/2020,Resources and Housing,Civic Enterprise Leeds,Capital,TRANSPORT,4,06/11/2020,2011-00348,0.00,29571.72,C,Addison Motors Limited,No
Http://opendatacommunities.org/id/metropolitan-district-council/leeds,Leeds City Council,30/11/2020,Resources and Housing,Civic Enterprise Leeds,Capital,TRANSPORT,4,11/11/2020,2011-00349,0.00,29571.72,C,Addison Motors Limited,No
Http://opendatacommunities.org/id/metropolitan-district-council/leeds,Leeds City Council,30/11/2020,Resources and Housing,Civic Enterprise Leeds,Capital,TRANSPORT,4,11/11/2020,2011-00350,0.00,29571.72,C,Addison Motors Limited,No
Http://opendatacommunities.org/id/metropolitan-district-council/leeds,Leeds City Council,30/11/2020,Resources and Housing,Civic Enterprise Leeds,Capital,TRANSPORT,4,12/11/2020,2011-00351,0.00,-315.00,C,Addison Motors Limited,No
Http://opendatacommunities.org/id/metropolitan-district-council/leeds,Leeds City Council,30/11/2020,Resources and Housing,Commercial Services,Transport,Road Fund Licences,323,12/11/2020,2011-00352,0.00,315.00,R,Addison Motors Limited,No
Http://opendatacommunities.org/id/metropolitan-district-council/leeds,Leeds City Council,30/11/2020,Resources and Housing,Civic Enterprise Leeds,Capital,TRANSPORT,4,12/11/2020,2011-00353,0.00,-315.00,C,Addison Motors Limited,No
Http://opendatacommunities.org/id/metropolitan-district-council/leeds,Leeds City Council,30/11/2020,Resources and Housing,Commercial Services,Transport,Road Fund Licences,323,12/11/2020,2011-00354,0.00,315.00,R,Addison Motors Limited,No
Http://opendatacommunities.org/id/metropolitan-district-council/leeds,Leeds City Council,30/11/2020,Resources and Housing,Civic Enterprise Leeds,Capital,TRANSPORT,4,12/11/2020,2011-00355,0.00,-315.00,C,Addison Motors Limited,No
Http://opendatacommunities.org/id/metropolitan-district-council/leeds,Leeds City Council,30/11/2020,Resources and Housing,Commercial Services,Transport,Road Fund Licences,323,12/11/2020,2011-00356,0.00,315.00,R,Addison Motors Limited,No
Http://opendatacommunities.org/id/metropolitan-district-council/leeds,Leeds City Council,30/11/2020,Resources and Housing,Commercial Services,Transport,Road Fund Licences,323,13/11/2020,2011-00357,0.00,315.00,R,Addison Motors Limited,No
Http://opendatacommunities.org/id/metropolitan-district-council/leeds,Leeds City Council,30/11/2020,Resources and Housing,Commercial Services,Transport,Road Fund Licences,323,13/11/2020,2011-00358,0.00,315.00,R,Addison Motors Limited,No
Http://opendatacommunities.org/id/metropolitan-district-council/leeds,Leeds City Council,30/11/2020,Resources and Housing,Commercial Services,Transport,Road Fund Licences,323,13/11/2020,2011-00359,0.00,315.00,R,Addison Motors Limited,No
Http://opendatacommunities.org/id/metropolitan-district-council/leeds,Leeds City Council,30/11/2020,Resources and Housing,Commercial Services,Transport,Road Fund Licences,323,13/11/2020,2011-00360,0.00,315.00,R,Addison Motors Limited,No
Http://opendatacommunities.org/id/metropolitan-district-council/leeds,Leeds City Council,30/11/2020,Resources and Housing,Commercial Services,Transport,Road Fund Licences,323,13/11/2020,2011-00361,0.00,315.00,R,Addison Motors Limited,No
Http://opendatacommunities.org/id/metropolitan-district-council/leeds,Leeds City Council,30/11/2020,Resources and Housing,Civic Enterprise Leeds,Capital,TRANSPORT,4,13/11/2020,2011-00362,0.00,29571.72,C,Addison Motors Limited,No
Http://opendatacommunities.org/id/metropolitan-district-council/leeds,Leeds City Council,30/11/2020,Resources and Housing,Civic Enterprise Leeds,Capital,TRANSPORT,4,13/11/2020,2011-00363,0.00,29571.72,C,Addison Motors Limited,No
Http://opendatacommunities.org/id/metropolitan-district-council/leeds,Leeds City Council,30/11/2020,Resources and Housing,Civic Enterprise Leeds,Capital,TRANSPORT,4,13/11/2020,2011-00364,0.00,29571.72,C,Addison Motors Limited,No
Http://opendatacommunities.org/id/metropolitan-district-council/leeds,Leeds City Council,30/11/2020,Resources and Housing,Commercial Services,Transport,Fuel (Non LCC Supplies),321,19/11/2020,2011-00365,0.00,315.00,R,Addison Motors Limited,No
Http://opendatacommunities.org/id/metropolitan-district-council/leeds,Leeds City Council,30/11/2020,Resources and Housing,Commercial Services,Transport,Fuel (Non LCC Supplies),321,19/11/2020,2011-00366,0.00,315.00,R,Addison Motors Limited,No
Http://opendatacommunities.org/id/metropolitan-district-council/leeds,Leeds City Council,30/11/2020,Adults and Health,Public Health,Third Party Payments,Public Health Commissioned Services,526,20/11/2020,2011-00367,0.00,4339.68,R,Addlestone & Partners,No
Http://opendatacommunities.org/id/metropolitan-district-council/leeds,Leeds City Council,30/11/2020,Communities and Environment,Parks and Countryside,Premises,Rents,141,30/11/2020,2011-00368,0.00,5991.45,R,ADDPLANT Limited,No
Http://opendatacommunities.org/id/metropolitan-district-council/leeds,Leeds City Council,30/11/2020,Resources and Housing,Technology  ,Employees,Agency Staff,8,05/10/2020,2011-00369,0.00,68959.80,R,Adecco Alfred Marks,Yes
Http://opendatacommunities.org/id/metropolitan-district-council/leeds,Leeds City Council,30/11/2020,Resources and Housing,Technology  ,Employees,Agency Staff,8,14/10/2020,2011-00370,0.00,25470.80,R,Adecco Alfred Marks,Yes
Http://opendatacommunities.org/id/metropolitan-district-council/leeds,Leeds City Council,30/11/2020,Resources and Housing,Technology  ,Employees,Agency Staff,8,27/10/2020,2011-00371,0.00,55377.17,R,Adecco Alfred Marks,Yes
Http://opendatacommunities.org/id/metropolitan-district-council/leeds,Leeds City Council,30/11/2020,Children and Families,Social Care,Third Party Payments,Services Rendered By Voluntary Sector,505,04/11/2020,2011-00372,0.00,2059.20,R,ADEL PRE SCHOOL,No
Http://opendatacommunities.org/id/metropolitan-district-council/leeds,Leeds City Council,30/11/2020,Children and Families,Social Care,Third Party Payments,Services Rendered By Other Organisations,511,06/11/2020,2011-00373,0.00,7456.81,R,ADEL PRE SCHOOL,No
Http://opendatacommunities.org/id/metropolitan-district-council/leeds,Leeds City Council,30/11/2020,Children and Families,Social Care  ,Premises,Cleaning Maintenance & Toiletries,127,09/10/2020,2011-00374,0.00,5.00,R,Adel Wood Store Limited,Yes
Http://opendatacommunities.org/id/metropolitan-district-council/leeds,Leeds City Council,30/11/2020,Children and Families,Social Care,Third Party Payments,Services Rendered By Other Organisations,511,06/11/2020,2011-00375,0.00,854.10,R,REDACTED PERSONAL DATA,No
Http://opendatacommunities.org/id/metropolitan-district-council/leeds,Leeds City Council,30/11/2020,Communities and Environment,Benefits  Wlefare and Poverty,Supplies and Services,Grant Related Expenditure,290,17/11/2020,2011-00376,0.00,500.00,R,REDACTED PERSONAL DATA,No
Http://opendatacommunities.org/id/metropolitan-district-council/leeds,Leeds City Council,30/11/2020,Resources and Housing,Leeds Building Services,Supplies and Services,Operational Materials,205,02/11/2020,2011-00377,0.00,696.76,R,ADI Global,No
Http://opendatacommunities.org/id/metropolitan-district-council/leeds,Leeds City Council,30/11/2020,Resources and Housing,Leeds Building Services,Supplies and Services,Operational Materials,205,24/11/2020,2011-00378,0.00,35.88,R,ADI Global,No
Http://opendatacommunities.org/id/metropolitan-district-council/leeds,Leeds City Council,30/11/2020,Resources and Housing,Leeds Building Services,Supplies and Services,Operational Materials,205,24/11/2020,2011-00379,0.00,55.16,R,ADI Global,No
Http://opendatacommunities.org/id/metropolitan-district-council/leeds,Leeds City Council,30/11/2020,Communities and Environment,Elections  Licensing and Registration,Income,Admissions  Booking Fees & Ticket Sales,933,19/11/2020,2011-00380,0.00,135.00,R,Adil Hussain,No
Http://opendatacommunities.org/id/metropolitan-district-council/leeds,Leeds City Council,30/11/2020,Children and Families,Social Care  ,Premises,Cleaning Maintenance & Toiletries,127,29/10/2020,2011-00381,0.00,924.10,R,Admiral Cleaning Suppl,Yes
Http://opendatacommunities.org/id/metropolitan-district-council/leeds,Leeds City Council,30/11/2020,Insurance,Insurance,Supplies and Services,Insurance Claims,248,11/11/2020,2011-00382,0.00,876.00,R,Admiral Law,No
Http://opendatacommunities.org/id/metropolitan-district-council/leeds,Leeds City Council,30/11/2020,Insurance,Insurance,Supplies and Services,Insurance Claims,248,11/11/2020,2011-00383,0.00,3642.60,R,Admiral Law,No
Http://opendatacommunities.org/id/metropolitan-district-council/leeds,Leeds City Council,30/11/2020,Insurance,Insurance,Supplies and Services,Insurance Claims,248,27/11/2020,2011-00384,0.00,350.00,R,Admiral Law,No
Http://opendatacommunities.org/id/metropolitan-district-council/leeds,Leeds City Council,30/11/2020,City Development,Libraries  Arts & Heritage  ,Supplies and Services,Computer Software & Equipment,214,02/10/2020,2011-00385,0.00,25.28,R,Adobe Creative Cloud,Yes
Http://opendatacommunities.org/id/metropolitan-district-council/leeds,Leeds City Council,30/11/2020,Children and Families,Social Care,Third Party Payments,Independent Fostering Agencies,509,04/11/2020,2011-00386,0.00,3390.00,R,Adolescent And Childrens Trust,No
Http://opendatacommunities.org/id/metropolitan-district-council/leeds,Leeds City Council,30/11/2020,Children and Families,Social Care,Third Party Payments,Independent Fostering Agencies,509,04/11/2020,2011-00387,0.00,3390.00,R,Adolescent And Childrens Trust,No
Http://opendatacommunities.org/id/metropolitan-district-council/leeds,Leeds City Council,30/11/2020,Children and Families,Social Care,Third Party Payments,Independent Fostering Agencies,509,04/11/2020,2011-00388,0.00,3570.00,R,Adolescent And Childrens Trust,No
Http://opendatacommunities.org/id/metropolitan-district-council/leeds,Leeds City Council,30/11/2020,Children and Families,Social Care,Third Party Payments,Independent Fostering Agencies,509,04/11/2020,2011-00389,0.00,3390.00,R,Adolescent And Childrens Trust,No
Http://opendatacommunities.org/id/metropolitan-district-council/leeds,Leeds City Council,30/11/2020,Children and Families,Social Care,Third Party Payments,Independent Fostering Agencies,509,04/11/2020,2011-00390,0.00,3390.00,R,Adolescent And Childrens Trust,No
Http://opendatacommunities.org/id/metropolitan-district-council/leeds,Leeds City Council,30/11/2020,Children and Families,Social Care,Third Party Payments,Independent Fostering Agencies,509,04/11/2020,2011-00391,0.00,3570.00,R,Adolescent And Childrens Trust,No
Http://opendatacommunities.org/id/metropolitan-district-council/leeds,Leeds City Council,30/11/2020,Children and Families,Social Care,Third Party Payments,Independent Fostering Agencies,509,04/11/2020,2011-00392,0.00,3390.00,R,Adolescent And Childrens Trust,No
Http://opendatacommunities.org/id/metropolitan-district-council/leeds,Leeds City Council,30/11/2020,Children and Families,Social Care,Third Party Payments,Independent Fostering Agencies,509,04/11/2020,2011-00393,0.00,4388.70,R,Adolescent And Childrens Trust,No
Http://opendatacommunities.org/id/metropolitan-district-council/leeds,Leeds City Council,30/11/2020,Children and Families,Social Care,Third Party Payments,Independent Fostering Agencies,509,04/11/2020,2011-00394,0.00,3570.00,R,Adolescent And Childrens Trust,No
Http://opendatacommunities.org/id/metropolitan-district-council/leeds,Leeds City Council,30/11/2020,Children and Families,Social Care,Third Party Payments,Independent Fostering Agencies,509,04/11/2020,2011-00395,0.00,3570.00,R,Adolescent And Childrens Trust,No
Http://opendatacommunities.org/id/metropolitan-district-council/leeds,Leeds City Council,30/11/2020,Children and Families,Social Care,Third Party Payments,Independent Fostering Agencies,509,05/11/2020,2011-00396,0.00,3570.00,R,Adolescent And Childrens Trust,No
Http://opendatacommunities.org/id/metropolitan-district-council/leeds,Leeds City Council,30/11/2020,Children and Families,Social Care,Third Party Payments,Independent Fostering Agencies,509,05/11/2020,2011-00397,0.00,3390.00,R,Adolescent And Childrens Trust,No
Http://opendatacommunities.org/id/metropolitan-district-council/leeds,Leeds City Council,30/11/2020,Children and Families,Social Care,Third Party Payments,Independent Fostering Agencies,509,05/11/2020,2011-00398,0.00,3570.00,R,Adolescent And Childrens Trust,No
Http://opendatacommunities.org/id/metropolitan-district-council/leeds,Leeds City Council,30/11/2020,Children and Families,Social Care,Third Party Payments,Independent Fostering Agencies,509,05/11/2020,2011-00399,0.00,3390.00,R,Adolescent And Childrens Trust,No
Http://opendatacommunities.org/id/metropolitan-district-council/leeds,Leeds City Council as Accountable Body,30/11/2020,Social Services Pooled Budgets,Jcs For People With Learning Disabilitie,Third Party Payments,Residential,580,13/11/2020,2011-00400,0.00,2609.36,R,ADRIAN HOUSE,No
Http://opendatacommunities.org/id/metropolitan-district-council/leeds,Leeds City Council,30/11/2020,Communities and Environment,Benefits  Wlefare and Poverty,Supplies and Services,Grant Related Expenditure,290,19/11/2020,2011-00401,0.00,500.00,R,REDACTED PERSONAL DATA,No
Http://opendatacommunities.org/id/metropolitan-district-council/leeds,Leeds City Council,30/11/2020,Children and Families,Social Care,Third Party Payments,Contact,548,06/11/2020,2011-00402,0.00,66.75,R,REDACTED PERSONAL DATA,No
Http://opendatacommunities.org/id/metropolitan-district-council/leeds,Leeds City Council,30/11/2020,Children and Families,Social Care,Third Party Payments,Contact,548,13/11/2020,2011-00403,0.00,66.75,R,REDACTED PERSONAL DATA,No
Http://opendatacommunities.org/id/metropolitan-district-council/leeds,Leeds City Council,30/11/2020,Children and Families,Social Care,Third Party Payments,Contact,548,20/11/2020,2011-00404,0.00,66.75,R,REDACTED PERSONAL DATA,No
Http://opendatacommunities.org/id/metropolitan-district-council/leeds,Leeds City Council,30/11/2020,Children and Families,Social Care,Third Party Payments,Contact,548,27/11/2020,2011-00405,0.00,66.75,R,REDACTED PERSONAL DATA,No
Http://opendatacommunities.org/id/metropolitan-district-council/leeds,Leeds City Council,30/11/2020,Children and Families,Social Care,Third Party Payments,Section 17,551,06/11/2020,2011-00406,0.00,142.86,R,REDACTED PERSONAL DATA,No
Http://opendatacommunities.org/id/metropolitan-district-council/leeds,Leeds City Council,30/11/2020,Children and Families,Social Care,Third Party Payments,Section 17,551,13/11/2020,2011-00407,0.00,142.86,R,REDACTED PERSONAL DATA,No
Http://opendatacommunities.org/id/metropolitan-district-council/leeds,Leeds City Council,30/11/2020,Children and Families,Social Care,Third Party Payments,Section 17,551,20/11/2020,2011-00408,0.00,142.86,R,REDACTED PERSONAL DATA,No
Http://opendatacommunities.org/id/metropolitan-district-council/leeds,Leeds City Council,30/11/2020,Children and Families,Social Care,Third Party Payments,Section 17,551,27/11/2020,2011-00409,0.00,142.86,R,REDACTED PERSONAL DATA,No
Http://opendatacommunities.org/id/metropolitan-district-council/leeds,Leeds City Council,30/11/2020,Communities and Environment,Parks and Countryside,Capital,OTHER COSTS,7,30/11/2020,2011-00410,0.00,684.00,C,Advanced Diesel Engineering,No
Http://opendatacommunities.org/id/metropolitan-district-council/leeds,Leeds City Council,30/11/2020,Resources and Housing,HRA Council Housing Growth Programme,Capital,LAND,1,30/11/2020,2011-00411,0.00,114863.62,C,Advantage Property Lawyers,No
Http://opendatacommunities.org/id/metropolitan-district-council/leeds,Leeds City Council as Accountable Body,30/11/2020,Social Services Pooled Budgets,Jcs For People With Learning Disabilitie,Third Party Payments,Residential,580,11/11/2020,2011-00412,0.00,17134.76,R,ADVITAM LTD,No
Http://opendatacommunities.org/id/metropolitan-district-council/leeds,Leeds City Council as Accountable Body,30/11/2020,Social Services Pooled Budgets,Jcs For People With Learning Disabilitie,Third Party Payments,Home Care,568,05/11/2020,2011-00413,0.00,199.50,R,Advonet,No
Http://opendatacommunities.org/id/metropolitan-district-council/leeds,Leeds City Council as Accountable Body,30/11/2020,Social Services Pooled Budgets,Jcs For People With Learning Disabilitie,Supplies and Services,Other Hired And Contracted Services,265,05/11/2020,2011-00414,0.00,7.50,R,Advonet,No
Http://opendatacommunities.org/id/metropolitan-district-council/leeds,Leeds City Council as Accountable Body,30/11/2020,Social Services Pooled Budgets,Jcs For People With Learning Disabilitie,Supplies and Services,Other Hired And Contracted Services,265,05/11/2020,2011-00415,0.00,150.00,R,Advonet,No
Http://opendatacommunities.org/id/metropolitan-district-council/leeds,Leeds City Council as Accountable Body,30/11/2020,Social Services Pooled Budgets,Jcs For People With Learning Disabilitie,Supplies and Services,Other Hired And Contracted Services,265,05/11/2020,2011-00416,0.00,62.40,R,Advonet,No
Http://opendatacommunities.org/id/metropolitan-district-council/leeds,Leeds City Council as Accountable Body,30/11/2020,Social Services Pooled Budgets,Jcs For People With Learning Disabilitie,Supplies and Services,Other Hired And Contracted Services,265,05/11/2020,2011-00417,0.00,15.00,R,Advonet,No
Http://opendatacommunities.org/id/metropolitan-district-council/leeds,Leeds City Council,30/11/2020,Adults and Health,Social Services Support Services,Employees,Training & Development,70,05/11/2020,2011-00418,0.00,2160.00,R,Advonet,No
Http://opendatacommunities.org/id/metropolitan-district-council/leeds,Leeds City Council as Accountable Body,30/11/2020,Social Services Pooled Budgets,Jcs For People With Learning Disabilitie,Supplies and Services,Other Hired And Contracted Services,265,13/11/2020,2011-00419,0.00,87.60,R,Advonet,No
Http://opendatacommunities.org/id/metropolitan-district-council/leeds,Leeds City Council,30/11/2020,Adults and Health,Services For Older People - 65 And Over,Third Party Payments,Payments To Voluntary Organisations,561,27/11/2020,2011-00420,0.00,103916.67,R,Advonet,No
Http://opendatacommunities.org/id/metropolitan-district-council/leeds,Leeds City Council,30/11/2020,Adults and Health,Services For Adults Under 65 Mental/Dis,Third Party Payments,Fees - Level 4,520,04/11/2020,2011-00421,0.00,198.00,R,AE BIA Assessments Limited,No
Http://opendatacommunities.org/id/metropolitan-district-council/leeds,Leeds City Council,30/11/2020,Adults and Health,Services For Adults Under 65 Mental/Dis,Third Party Payments,Fees - Level 4,520,04/11/2020,2011-00422,0.00,198.00,R,AE BIA Assessments Limited,No
Http://opendatacommunities.org/id/metropolitan-district-council/leeds,Leeds City Council,30/11/2020,Adults and Health,Services For Adults Under 65 Mental/Dis,Third Party Payments,Fees - Level 4,520,04/11/2020,2011-00423,0.00,198.00,R,AE BIA Assessments Limited,No
Http://opendatacommunities.org/id/metropolitan-district-council/leeds,Leeds City Council,30/11/2020,Adults and Health,Services For Adults Under 65 Mental/Dis,Third Party Payments,Fees - Level 4,520,12/11/2020,2011-00424,0.00,198.00,R,AE BIA Assessments Limited,No
Http://opendatacommunities.org/id/metropolitan-district-council/leeds,Leeds City Council,30/11/2020,Adults and Health,Services For Adults Under 65 Mental/Dis,Third Party Payments,Fees - Level 4,520,13/11/2020,2011-00425,0.00,198.00,R,AE BIA Assessments Limited,No
Http://opendatacommunities.org/id/metropolitan-district-council/leeds,Leeds City Council,30/11/2020,Adults and Health,Services For Adults Under 65 Mental/Dis,Third Party Payments,Fees - Level 4,520,20/11/2020,2011-00426,0.00,198.00,R,AE BIA Assessments Limited,No
Http://opendatacommunities.org/id/metropolitan-district-council/leeds,Leeds City Council,30/11/2020,Adults and Health,Services For Adults Under 65 Mental/Dis,Third Party Payments,Fees - Level 4,520,23/11/2020,2011-00427,0.00,198.00,R,AE BIA Assessments Limited,No
Http://opendatacommunities.org/id/metropolitan-district-council/leeds,Leeds City Council,30/11/2020,Adults and Health,Services For Adults Under 65 Mental/Dis,Third Party Payments,Fees - Level 4,520,24/11/2020,2011-00428,0.00,198.00,R,AE BIA Assessments Limited,No
Http://opendatacommunities.org/id/metropolitan-district-council/leeds,Leeds City Council,30/11/2020,City Development,Highways,Capital,OTHER COSTS,7,06/11/2020,2011-00429,0.00,58621.66,C,Aecom Limited,No
Http://opendatacommunities.org/id/metropolitan-district-council/leeds,Leeds City Council,30/11/2020,City Development,Highways,Capital,OTHER COSTS,7,17/11/2020,2011-00430,0.00,45109.02,C,Aecom Limited,No
Http://opendatacommunities.org/id/metropolitan-district-council/leeds,Leeds City Council,30/11/2020,City Development,Highways,Capital,OTHER COSTS,7,17/11/2020,2011-00431,0.00,82703.54,C,Aecom Limited,No
Http://opendatacommunities.org/id/metropolitan-district-council/leeds,Leeds City Council,30/11/2020,Adults and Health,Services For Adults Under 65 Mental/Dis,Third Party Payments,Home Care,568,05/11/2020,2011-00432,0.00,364.00,R,Aegis Care Solutions Ltd,No
Http://opendatacommunities.org/id/metropolitan-district-council/leeds,Leeds City Council,30/11/2020,Adults and Health,Services For Adults Under 65 Mental/Dis,Third Party Payments,Home Care,568,05/11/2020,2011-00433,0.00,1184.60,R,Aegis Care Solutions Ltd,No
Http://opendatacommunities.org/id/metropolitan-district-council/leeds,Leeds City Council,30/11/2020,Adults and Health,Services For Adults Under 65 Mental/Dis,Third Party Payments,Home Care,568,05/11/2020,2011-00434,0.00,623.00,R,Aegis Care Solutions Ltd,No
Http://opendatacommunities.org/id/metropolitan-district-council/leeds,Leeds City Council,30/11/2020,Adults and Health,Services For Adults Under 65 Mental/Dis,Third Party Payments,Home Care,568,05/11/2020,2011-00435,0.00,1100.00,R,Aegis Care Solutions Ltd,No
Http://opendatacommunities.org/id/metropolitan-district-council/leeds,Leeds City Council,30/11/2020,Adults and Health,Services For Adults Under 65 Mental/Dis,Third Party Payments,Home Care,568,05/11/2020,2011-00436,0.00,284.80,R,Aegis Care Solutions Ltd,No
Http://opendatacommunities.org/id/metropolitan-district-council/leeds,Leeds City Council,30/11/2020,Adults and Health,Services For Adults Under 65 Mental/Dis,Third Party Payments,Home Care,568,05/11/2020,2011-00437,0.00,1313.60,R,Aegis Care Solutions Ltd,No
Http://opendatacommunities.org/id/metropolitan-district-council/leeds,Leeds City Council,30/11/2020,Adults and Health,Services For Adults Under 65 Mental/Dis,Third Party Payments,Home Care,568,05/11/2020,2011-00438,0.00,1495.20,R,Aegis Care Solutions Ltd,No
Http://opendatacommunities.org/id/metropolitan-district-council/leeds,Leeds City Council,30/11/2020,Adults and Health,Services For Adults Under 65 Mental/Dis,Third Party Payments,Home Care,568,05/11/2020,2011-00439,0.00,427.20,R,Aegis Care Solutions Ltd,No
Http://opendatacommunities.org/id/metropolitan-district-council/leeds,Leeds City Council,30/11/2020,Adults and Health,Services For Adults Under 65 Mental/Dis,Third Party Payments,Home Care,568,05/11/2020,2011-00440,0.00,2633.60,R,Aegis Care Solutions Ltd,No
Http://opendatacommunities.org/id/metropolitan-district-council/leeds,Leeds City Council,30/11/2020,Adults and Health,Services For Adults Under 65 Mental/Dis,Third Party Payments,Home Care,568,05/11/2020,2011-00441,0.00,4096.00,R,Aegis Care Solutions Ltd,No
Http://opendatacommunities.org/id/metropolitan-district-council/leeds,Leeds City Council as Accountable Body,30/11/2020,Social Services Pooled Budgets,Jcs For People With Learning Disabilitie,Third Party Payments,Home Care,568,04/11/2020,2011-00442,0.00,319.60,R,Affinity Trust,No
Http://opendatacommunities.org/id/metropolitan-district-council/leeds,Leeds City Council,30/11/2020,Adults and Health,Services For Adults Under 65 Mental/Dis,Third Party Payments,HCAIT Community Support,575,04/11/2020,2011-00443,0.00,336.40,R,Affinity Trust,No
Http://opendatacommunities.org/id/metropolitan-district-council/leeds,Leeds City Council,30/11/2020,Adults and Health,Services For Older People - 65 And Over,Third Party Payments,Home Care,568,10/11/2020,2011-00444,0.00,511.36,R,Affinity Trust,No
Http://opendatacommunities.org/id/metropolitan-district-council/leeds,Leeds City Council,30/11/2020,Adults and Health,Services For Older People Under 65 P/Dis,Third Party Payments,Day Centre,564,10/11/2020,2011-00445,0.00,537.32,R,Affinity Trust,No
Http://opendatacommunities.org/id/metropolitan-district-council/leeds,Leeds City Council,30/11/2020,Adults and Health,Services For Adults Under 65 Mental/Dis,Third Party Payments,Home Care,568,10/11/2020,2011-00446,0.00,231.71,R,Affinity Trust,No
Http://opendatacommunities.org/id/metropolitan-district-council/leeds,Leeds City Council,30/11/2020,Adults and Health,Services For Older People Under 65 P/Dis,Third Party Payments,Home Care,568,10/11/2020,2011-00447,0.00,1572.67,R,Affinity Trust,No
Http://opendatacommunities.org/id/metropolitan-district-council/leeds,Leeds City Council,30/11/2020,Adults and Health,Services For Older People Under 65 P/Dis,Third Party Payments,Home Care,568,10/11/2020,2011-00448,0.00,605.52,R,Affinity Trust,No
Http://opendatacommunities.org/id/metropolitan-district-council/leeds,Leeds City Council,30/11/2020,Adults and Health,Services For Older People - 65 And Over,Third Party Payments,Home Care,568,10/11/2020,2011-00449,0.00,359.55,R,Affinity Trust,No
Http://opendatacommunities.org/id/metropolitan-district-council/leeds,Leeds City Council,30/11/2020,Adults and Health,Services For Older People Under 65 P/Dis,Third Party Payments,Home Care,568,10/11/2020,2011-00450,0.00,559.30,R,Affinity Trust,No
Http://opendatacommunities.org/id/metropolitan-district-council/leeds,Leeds City Council as Accountable Body,30/11/2020,Social Services Pooled Budgets,Jcs For People With Learning Disabilitie,Third Party Payments,Home Care,568,11/11/2020,2011-00451,0.00,639.20,R,Affinity Trust,No
Http://opendatacommunities.org/id/metropolitan-district-council/leeds,Leeds City Council as Accountable Body,30/11/2020,Social Services Pooled Budgets,Jcs For People With Learning Disabilitie,Third Party Payments,Home Care,568,16/11/2020,2011-00452,0.00,1980.00,R,Affinity Trust,No
Http://opendatacommunities.org/id/metropolitan-district-council/leeds,Leeds City Council as Accountable Body,30/11/2020,Social Services Pooled Budgets,Jcs For People With Learning Disabilitie,Third Party Payments,Home Care,568,16/11/2020,2011-00453,0.00,1080.00,R,Affinity Trust,No
Http://opendatacommunities.org/id/metropolitan-district-council/leeds,Leeds City Council as Accountable Body,30/11/2020,Social Services Pooled Budgets,Jcs For People With Learning Disabilitie,Third Party Payments,Day Centre,564,16/11/2020,2011-00454,0.00,2031.48,R,Affinity Trust,No
Http://opendatacommunities.org/id/metropolitan-district-council/leeds,Leeds City Council as Accountable Body,30/11/2020,Social Services Pooled Budgets,Jcs For People With Learning Disabilitie,Third Party Payments,Home Care,568,16/11/2020,2011-00455,0.00,770.96,R,Affinity Trust,No
Http://opendatacommunities.org/id/metropolitan-district-council/leeds,Leeds City Council as Accountable Body,30/11/2020,Social Services Pooled Budgets,Jcs For People With Learning Disabilitie,Third Party Payments,Home Care,568,16/11/2020,2011-00456,0.00,3446.80,R,Affinity Trust,No
Http://opendatacommunities.org/id/metropolitan-district-council/leeds,Leeds City Council as Accountable Body,30/11/2020,Social Services Pooled Budgets,Jcs For People With Learning Disabilitie,Third Party Payments,Day Centre,564,16/11/2020,2011-00457,0.00,525.72,R,Affinity Trust,No
Http://opendatacommunities.org/id/metropolitan-district-council/leeds,Leeds City Council as Accountable Body,30/11/2020,Social Services Pooled Budgets,Jcs For People With Learning Disabilitie,Third Party Payments,Home Care,568,16/11/2020,2011-00458,0.00,804.48,R,Affinity Trust,No
Http://opendatacommunities.org/id/metropolitan-district-council/leeds,Leeds City Council as Accountable Body,30/11/2020,Social Services Pooled Budgets,Jcs For People With Learning Disabilitie,Third Party Payments,Home Care,568,16/11/2020,2011-00459,0.00,1504.72,R,Affinity Trust,No
Http://opendatacommunities.org/id/metropolitan-district-council/leeds,Leeds City Council as Accountable Body,30/11/2020,Social Services Pooled Budgets,Jcs For People With Learning Disabilitie,Third Party Payments,Home Care,568,16/11/2020,2011-00460,0.00,1800.00,R,Affinity Trust,No
Http://opendatacommunities.org/id/metropolitan-district-council/leeds,Leeds City Council as Accountable Body,30/11/2020,Social Services Pooled Budgets,Jcs For People With Learning Disabilitie,Third Party Payments,Home Care,568,16/11/2020,2011-00461,0.00,1005.60,R,Affinity Trust,No
Http://opendatacommunities.org/id/metropolitan-district-council/leeds,Leeds City Council as Accountable Body,30/11/2020,Social Services Pooled Budgets,Jcs For People With Learning Disabilitie,Third Party Payments,Home Care,568,16/11/2020,2011-00462,0.00,360.00,R,Affinity Trust,No
Http://opendatacommunities.org/id/metropolitan-district-council/leeds,Leeds City Council as Accountable Body,30/11/2020,Social Services Pooled Budgets,Jcs For People With Learning Disabilitie,Third Party Payments,Day Centre,564,16/11/2020,2011-00463,0.00,714.78,R,Affinity Trust,No
Http://opendatacommunities.org/id/metropolitan-district-council/leeds,Leeds City Council as Accountable Body,30/11/2020,Social Services Pooled Budgets,Jcs For People With Learning Disabilitie,Third Party Payments,Home Care,568,16/11/2020,2011-00464,0.00,2346.40,R,Affinity Trust,No
Http://opendatacommunities.org/id/metropolitan-district-council/leeds,Leeds City Council as Accountable Body,30/11/2020,Social Services Pooled Budgets,Jcs For People With Learning Disabilitie,Third Party Payments,Home Care,568,16/11/2020,2011-00465,0.00,1613.28,R,Affinity Trust,No
Http://opendatacommunities.org/id/metropolitan-district-council/leeds,Leeds City Council as Accountable Body,30/11/2020,Social Services Pooled Budgets,Jcs For People With Learning Disabilitie,Third Party Payments,Home Care,568,16/11/2020,2011-00466,0.00,804.48,R,Affinity Trust,No
Http://opendatacommunities.org/id/metropolitan-district-council/leeds,Leeds City Council as Accountable Body,30/11/2020,Social Services Pooled Budgets,Jcs For People With Learning Disabilitie,Third Party Payments,Home Care,568,16/11/2020,2011-00467,0.00,4058.92,R,Affinity Trust,No
Http://opendatacommunities.org/id/metropolitan-district-council/leeds,Leeds City Council as Accountable Body,30/11/2020,Social Services Pooled Budgets,Jcs For People With Learning Disabilitie,Third Party Payments,Home Care,568,16/11/2020,2011-00468,0.00,408.64,R,Affinity Trust,No
Http://opendatacommunities.org/id/metropolitan-district-council/leeds,Leeds City Council as Accountable Body,30/11/2020,Social Services Pooled Budgets,Jcs For People With Learning Disabilitie,Third Party Payments,Home Care,568,16/11/2020,2011-00469,0.00,958.80,R,Affinity Trust,No
Http://opendatacommunities.org/id/metropolitan-district-council/leeds,Leeds City Council as Accountable Body,30/11/2020,Social Services Pooled Budgets,Jcs For People With Learning Disabilitie,Third Party Payments,Home Care,568,16/11/2020,2011-00470,0.00,359.55,R,Affinity Trust,No
Http://opendatacommunities.org/id/metropolitan-district-council/leeds,Leeds City Council as Accountable Body,30/11/2020,Social Services Pooled Budgets,Jcs For People With Learning Disabilitie,Third Party Payments,Home Care,568,16/11/2020,2011-00471,0.00,207.74,R,Affinity Trust,No
Http://opendatacommunities.org/id/metropolitan-district-council/leeds,Leeds City Council as Accountable Body,30/11/2020,Social Services Pooled Budgets,Jcs For People With Learning Disabilitie,Third Party Payments,Home Care,568,16/11/2020,2011-00472,0.00,405.00,R,Affinity Trust,No
Http://opendatacommunities.org/id/metropolitan-district-council/leeds,Leeds City Council as Accountable Body,30/11/2020,Social Services Pooled Budgets,Jcs For People With Learning Disabilitie,Third Party Payments,Day Centre,564,17/11/2020,2011-00473,0.00,1440.00,R,Affinity Trust,No
Http://opendatacommunities.org/id/metropolitan-district-council/leeds,Leeds City Council as Accountable Body,30/11/2020,Social Services Pooled Budgets,Jcs For People With Learning Disabilitie,Third Party Payments,Home Care,568,17/11/2020,2011-00474,0.00,1080.00,R,Affinity Trust,No
Http://opendatacommunities.org/id/metropolitan-district-council/leeds,Leeds City Council as Accountable Body,30/11/2020,Social Services Pooled Budgets,Jcs For People With Learning Disabilitie,Third Party Payments,Home Care,568,17/11/2020,2011-00475,0.00,1980.00,R,Affinity Trust,No
Http://opendatacommunities.org/id/metropolitan-district-council/leeds,Leeds City Council as Accountable Body,30/11/2020,Social Services Pooled Budgets,Jcs For People With Learning Disabilitie,Third Party Payments,Home Care,568,17/11/2020,2011-00476,0.00,360.00,R,Affinity Trust,No
Http://opendatacommunities.org/id/metropolitan-district-council/leeds,Leeds City Council as Accountable Body,30/11/2020,Social Services Pooled Budgets,Jcs For People With Learning Disabilitie,Third Party Payments,Home Care,568,17/11/2020,2011-00477,0.00,2346.40,R,Affinity Trust,No
Http://opendatacommunities.org/id/metropolitan-district-council/leeds,Leeds City Council as Accountable Body,30/11/2020,Social Services Pooled Budgets,Jcs For People With Learning Disabilitie,Third Party Payments,Day Centre,564,17/11/2020,2011-00478,0.00,1440.00,R,Affinity Trust,No
Http://opendatacommunities.org/id/metropolitan-district-council/leeds,Leeds City Council as Accountable Body,30/11/2020,Social Services Pooled Budgets,Jcs For People With Learning Disabilitie,Third Party Payments,Day Centre,564,17/11/2020,2011-00479,0.00,416.64,R,Affinity Trust,No
Http://opendatacommunities.org/id/metropolitan-district-council/leeds,Leeds City Council as Accountable Body,30/11/2020,Social Services Pooled Budgets,Jcs For People With Learning Disabilitie,Third Party Payments,Home Care,568,17/11/2020,2011-00480,0.00,1211.04,R,Affinity Trust,No
Http://opendatacommunities.org/id/metropolitan-district-council/leeds,Leeds City Council as Accountable Body,30/11/2020,Social Services Pooled Budgets,Jcs For People With Learning Disabilitie,Third Party Payments,Day Centre,564,17/11/2020,2011-00481,0.00,535.33,R,Affinity Trust,No
Http://opendatacommunities.org/id/metropolitan-district-council/leeds,Leeds City Council as Accountable Body,30/11/2020,Social Services Pooled Budgets,Jcs For People With Learning Disabilitie,Third Party Payments,Home Care,568,17/11/2020,2011-00482,0.00,357.00,R,Affinity Trust,No
Http://opendatacommunities.org/id/metropolitan-district-council/leeds,Leeds City Council as Accountable Body,30/11/2020,Social Services Pooled Budgets,Jcs For People With Learning Disabilitie,Third Party Payments,Home Care,568,17/11/2020,2011-00483,0.00,1086.84,R,Affinity Trust,No
Http://opendatacommunities.org/id/metropolitan-district-council/leeds,Leeds City Council as Accountable Body,30/11/2020,Social Services Pooled Budgets,Jcs For People With Learning Disabilitie,Third Party Payments,Home Care,568,17/11/2020,2011-00484,0.00,95.88,R,Affinity Trust,No
Http://opendatacommunities.org/id/metropolitan-district-council/leeds,Leeds City Council as Accountable Body,30/11/2020,Social Services Pooled Budgets,Jcs For People With Learning Disabilitie,Third Party Payments,Home Care,568,25/11/2020,2011-00485,0.00,319.60,R,Affinity Trust,No
Http://opendatacommunities.org/id/metropolitan-district-council/leeds,Leeds City Council,30/11/2020,Adults and Health,Services For Adults Under 65 Mental/Dis,Third Party Payments,HCAIT Community Support,575,25/11/2020,2011-00486,0.00,336.40,R,Affinity Trust,No
Http://opendatacommunities.org/id/metropolitan-district-council/leeds,Leeds City Council as Accountable Body,30/11/2020,Social Services Pooled Budgets,Jcs For People With Learning Disabilitie,Third Party Payments,Day Centre,564,26/11/2020,2011-00487,0.00,714.78,R,Affinity Trust,No
Http://opendatacommunities.org/id/metropolitan-district-council/leeds,Leeds City Council,30/11/2020,Adults and Health,Services For Older People Under 65 P/Dis,Third Party Payments,Sheltered Accommodation,569,11/11/2020,2011-00488,0.00,8290.80,R,Affinity Trust North Divisional Office,No
Http://opendatacommunities.org/id/metropolitan-district-council/leeds,Leeds City Council as Accountable Body,30/11/2020,Social Services Pooled Budgets,Jcs For People With Learning Disabilitie,Third Party Payments,Sheltered Accommodation,569,11/11/2020,2011-00489,0.00,113412.56,R,Affinity Trust North Divisional Office,No
Http://opendatacommunities.org/id/metropolitan-district-council/leeds,Leeds City Council,30/11/2020,Communities and Environment,Parks and Countryside  ,Transport,External Hire -Occasional,304,20/10/2020,2011-00490,0.00,950.00,R,Afi Uplift,Yes
Http://opendatacommunities.org/id/metropolitan-district-council/leeds,Leeds City Council,30/11/2020,Communities and Environment,Parks and Countryside  ,Transport,External Hire -Occasional,304,20/10/2020,2011-00491,0.00,950.00,R,Afi Uplift,Yes
Http://opendatacommunities.org/id/metropolitan-district-council/leeds,Leeds City Council,30/11/2020,Communities and Environment,Parks and Countryside  ,Transport,External Hire -Occasional,304,20/10/2020,2011-00492,0.00,950.00,R,Afi Uplift,Yes
Http://opendatacommunities.org/id/metropolitan-district-council/leeds,Leeds City Council,30/11/2020,Communities and Environment,Parks and Countryside  ,Transport,External Hire -Occasional,304,20/10/2020,2011-00493,0.00,950.00,R,Afi Uplift,Yes
Http://opendatacommunities.org/id/metropolitan-district-council/leeds,Leeds City Council,30/11/2020,Communities and Environment,Benefits  Wlefare and Poverty,Supplies and Services,Grant Related Expenditure,290,16/11/2020,2011-00494,0.00,500.00,R,REDACTED PERSONAL DATA,No
Http://opendatacommunities.org/id/metropolitan-district-council/leeds,Leeds City Council,30/11/2020,Adults and Health,Public Health,Third Party Payments,Services Rendered By Voluntary Sector,505,06/11/2020,2011-00495,0.00,30000.00,R,Age Uk Leeds,No
Http://opendatacommunities.org/id/metropolitan-district-council/leeds,Leeds City Council,30/11/2020,Communities and Environment,Customer Access,Supplies and Services,Other Hired And Contracted Services,265,27/11/2020,2011-00496,0.00,600.00,R,Agency For Good Ltd,No
Http://opendatacommunities.org/id/metropolitan-district-council/leeds,Leeds City Council,30/11/2020,Communities and Environment,Benefits  Wlefare and Poverty,Supplies and Services,Grant Related Expenditure,290,30/11/2020,2011-00497,0.00,500.00,R,REDACTED PERSONAL DATA,No
Http://opendatacommunities.org/id/metropolitan-district-council/leeds,Leeds City Council,30/11/2020,Children and Families,Social Care,Transfer Payments,Leaving Care Allowances,634,18/11/2020,2011-00498,0.00,120.00,R,REDACTED PERSONAL DATA,No
Http://opendatacommunities.org/id/metropolitan-district-council/leeds,Leeds City Council,30/11/2020,Communities and Environment,Elections  Licensing and Registration,Income,Admissions  Booking Fees & Ticket Sales,933,12/11/2020,2011-00499,0.00,135.00,R,Ahmed Aziz,No
Http://opendatacommunities.org/id/metropolitan-district-council/leeds,Leeds City Council,30/11/2020,Communities and Environment,Customer Access,Supplies and Services,Bought In Professional Services,277,04/11/2020,2011-00500,0.00,27.00,R,Ahmed Moustafa Moustafa Mousa,No
Http://opendatacommunities.org/id/metropolitan-district-council/leeds,Leeds City Council,30/11/2020,Communities and Environment,Customer Access,Supplies and Services,Bought In Professional Services,277,11/11/2020,2011-00501,0.00,31.50,R,Ahmed Moustafa Moustafa Mousa,No
Http://opendatacommunities.org/id/metropolitan-district-council/leeds,Leeds City Council,30/11/2020,Communities and Environment,Customer Access,Supplies and Services,Bought In Professional Services,277,25/11/2020,2011-00502,0.00,40.70,R,Ahmed Moustafa Moustafa Mousa,No
Http://opendatacommunities.org/id/metropolitan-district-council/leeds,Leeds City Council,30/11/2020,Communities and Environment,Benefits  Wlefare and Poverty,Supplies and Services,Grant Related Expenditure,290,26/11/2020,2011-00503,0.00,500.00,R,REDACTED PERSONAL DATA,No
Http://opendatacommunities.org/id/metropolitan-district-council/leeds,Leeds City Council,30/11/2020,Strategic Landlord,Property and Contracts,Transfer Payments,Disrepair Provision,644,10/11/2020,2011-00504,0.00,550.00,R,AHR Building Consultancy Ltd,No
Http://opendatacommunities.org/id/metropolitan-district-council/leeds,Leeds City Council,30/11/2020,Strategic Landlord,Property and Contracts,Transfer Payments,Disrepair Provision,644,10/11/2020,2011-00505,0.00,234.00,R,AHR Building Consultancy Ltd,No
Http://opendatacommunities.org/id/metropolitan-district-council/leeds,Leeds City Council,30/11/2020,Communities and Environment,Benefits  Wlefare and Poverty,Supplies and Services,Grant Related Expenditure,290,02/11/2020,2011-00506,0.00,500.00,R,REDACTED PERSONAL DATA,No
Http://opendatacommunities.org/id/metropolitan-district-council/leeds,Leeds City Council,30/11/2020,Communities and Environment,Benefits  Wlefare and Poverty,Supplies and Services,Grant Related Expenditure,290,11/11/2020,2011-00507,0.00,500.00,R,REDACTED PERSONAL DATA,No
Http://opendatacommunities.org/id/metropolitan-district-council/leeds,Leeds City Council,30/11/2020,Resources and Housing,Shared Services,Supplies and Services,Licences,266,10/11/2020,2011-00508,0.00,-405.00,R,AIDAPT BATHROOMS LTD,No
Http://opendatacommunities.org/id/metropolitan-district-council/leeds,Leeds City Council,30/11/2020,Resources and Housing,Shared Services,Supplies and Services,Licences,266,10/11/2020,2011-00509,0.00,386.85,R,AIDAPT BATHROOMS LTD,No
Http://opendatacommunities.org/id/metropolitan-district-council/leeds,Leeds City Council as Accountable Body,30/11/2020,Social Services Pooled Budgets,Leeds Community Equip Store Pooled Budgt,Supplies and Services,Other Equipment,203,10/11/2020,2011-00510,0.00,773.70,R,AIDAPT BATHROOMS LTD,No
Http://opendatacommunities.org/id/metropolitan-district-council/leeds,Leeds City Council as Accountable Body,30/11/2020,Social Services Pooled Budgets,Leeds Community Equip Store Pooled Budgt,Supplies and Services,Other Equipment,203,10/11/2020,2011-00511,0.00,260.00,R,AIDAPT BATHROOMS LTD,No
Http://opendatacommunities.org/id/metropolitan-district-council/leeds,Leeds City Council as Accountable Body,30/11/2020,Social Services Pooled Budgets,Leeds Community Equip Store Pooled Budgt,Supplies and Services,Other Equipment,203,10/11/2020,2011-00512,0.00,509.80,R,AIDAPT BATHROOMS LTD,No
Http://opendatacommunities.org/id/metropolitan-district-council/leeds,Leeds City Council,30/11/2020,Resources and Housing,Shared Services,Supplies and Services,Licences,266,10/11/2020,2011-00513,0.00,18.14,R,AIDAPT BATHROOMS LTD,No
Http://opendatacommunities.org/id/metropolitan-district-council/leeds,Leeds City Council as Accountable Body,30/11/2020,Social Services Pooled Budgets,Leeds Community Equip Store Pooled Budgt,Supplies and Services,Other Equipment,203,27/11/2020,2011-00514,0.00,171.20,R,AIDAPT BATHROOMS LTD,No
Http://opendatacommunities.org/id/metropolitan-district-council/leeds,Leeds City Council as Accountable Body,30/11/2020,Social Services Pooled Budgets,Leeds Community Equip Store Pooled Budgt,Supplies and Services,Other Equipment,203,27/11/2020,2011-00515,0.00,1444.50,R,AIDAPT BATHROOMS LTD,No
Http://opendatacommunities.org/id/metropolitan-district-council/leeds,Leeds City Council,30/11/2020,Children and Families,Social Care,Transfer Payments,Leaving Care Allowances,634,30/11/2020,2011-00516,0.00,50.00,R,REDACTED PERSONAL DATA,No
Http://opendatacommunities.org/id/metropolitan-district-council/leeds,Leeds City Council,30/11/2020,Children and Families,Partnerships & Health,Supplies and Services,Conference Meetings,253,06/11/2020,2011-00517,0.00,225.00,R,AIM PROJECT,No
Http://opendatacommunities.org/id/metropolitan-district-council/leeds,Leeds City Council,30/11/2020,Children and Families,Partnerships & Health,Supplies and Services,Conference Meetings,253,27/11/2020,2011-00518,0.00,690.00,R,AIM PROJECT,No
Http://opendatacommunities.org/id/metropolitan-district-council/leeds,Leeds City Council,30/11/2020,Communities and Environment,Benefits  Wlefare and Poverty,Supplies and Services,Grant Related Expenditure,290,30/11/2020,2011-00519,0.00,500.00,R,REDACTED PERSONAL DATA,No
Http://opendatacommunities.org/id/metropolitan-district-council/leeds,Leeds City Council,30/11/2020,Communities and Environment,Parks and Countryside,Transport,Repair & Maintenance of  Plant,342,02/11/2020,2011-00520,0.00,257.97,R,Air Solutions (Leeds) Ltd,No
Http://opendatacommunities.org/id/metropolitan-district-council/leeds,Leeds City Council,30/11/2020,Adults and Health,Public Health,Third Party Payments,Public Health Commissioned Services,526,02/11/2020,2011-00521,0.00,11079.32,R,Aire Valley Surgery,No
Http://opendatacommunities.org/id/metropolitan-district-council/leeds,Leeds City Council,30/11/2020,Communities and Environment,Parks and Countryside,Supplies and Services,Other Hired And Contracted Services,265,06/11/2020,2011-00522,0.00,697.00,R,Aire Valley Tree Services Ltd,No
Http://opendatacommunities.org/id/metropolitan-district-council/leeds,Leeds City Council,30/11/2020,Communities and Environment,Parks and Countryside,Supplies and Services,Other Hired And Contracted Services,265,25/11/2020,2011-00523,0.00,685.00,R,Aire Valley Tree Services Ltd,No
Http://opendatacommunities.org/id/metropolitan-district-council/leeds,Leeds City Council,30/11/2020,Communities and Environment,Parks and Countryside,Supplies and Services,Other Hired And Contracted Services,265,26/11/2020,2011-00524,0.00,1454.00,R,Aire Valley Tree Services Ltd,No
Http://opendatacommunities.org/id/metropolitan-district-council/leeds,Leeds City Council,30/11/2020,Adults and Health,Services For Older People - 65 And Over,Third Party Payments,Residential Care Dementia,571,11/11/2020,2011-00525,0.00,53332.21,R,Aire View Residential Home,No
Http://opendatacommunities.org/id/metropolitan-district-council/leeds,Leeds City Council,30/11/2020,Adults and Health,Services For Older People - 65 And Over,Third Party Payments,Residential,580,11/11/2020,2011-00526,0.00,4937.36,R,Aire View Residential Home,No
Http://opendatacommunities.org/id/metropolitan-district-council/leeds,Leeds City Council,30/11/2020,Adults and Health,Public Health,Third Party Payments,Public Health Commissioned Services,526,20/11/2020,2011-00527,0.00,1218.20,R,Aireborough Family Practice,No
Http://opendatacommunities.org/id/metropolitan-district-council/leeds,Leeds City Council,30/11/2020,Adults and Health,Services For Older People - 65 And Over,Third Party Payments,Residential Care Dementia,571,11/11/2020,2011-00528,0.00,1511.60,R,Airedale Care Home,No
Http://opendatacommunities.org/id/metropolitan-district-council/leeds,Leeds City Council,30/11/2020,Adults and Health,Services For Older People - 65 And Over,Third Party Payments,Residential,580,11/11/2020,2011-00529,0.00,10071.10,R,Airedale Care Home,No
Http://opendatacommunities.org/id/metropolitan-district-council/leeds,Leeds City Council,30/11/2020,Resources and Housing,Commercial Services,Premises,Fixtures & Fittings,131,05/11/2020,2011-00530,0.00,22365.00,R,AIREDALE CATERING EQUIPMENT LTD,No
Http://opendatacommunities.org/id/metropolitan-district-council/leeds,Leeds City Council,30/11/2020,Resources and Housing,Leeds Building Services,Supplies and Services,Other Hired And Contracted Services,265,05/11/2020,2011-00531,0.00,4259.00,R,AIREDALE CATERING EQUIPMENT LTD,No
Http://opendatacommunities.org/id/metropolitan-district-council/leeds,Leeds City Council,30/11/2020,Resources and Housing,Leeds Building Services,Supplies and Services,Other Hired And Contracted Services,265,06/11/2020,2011-00532,0.00,4392.00,R,AIREDALE CATERING EQUIPMENT LTD,No
Http://opendatacommunities.org/id/metropolitan-district-council/leeds,Leeds City Council,30/11/2020,Resources and Housing,Commercial Services,Supplies and Services,Operational Furniture And Equipment,203,13/11/2020,2011-00533,0.00,1206.00,R,AIREDALE CATERING EQUIPMENT LTD,No
Http://opendatacommunities.org/id/metropolitan-district-council/leeds,Leeds City Council,30/11/2020,Resources and Housing,Commercial Services,Supplies and Services,Operational Furniture And Equipment,203,13/11/2020,2011-00534,0.00,1735.00,R,AIREDALE CATERING EQUIPMENT LTD,No
Http://opendatacommunities.org/id/metropolitan-district-council/leeds,Leeds City Council,30/11/2020,Resources and Housing,Commercial Services,Supplies and Services,Operational Furniture And Equipment,203,13/11/2020,2011-00535,0.00,2335.00,R,AIREDALE CATERING EQUIPMENT LTD,No
Http://opendatacommunities.org/id/metropolitan-district-council/leeds,Leeds City Council,30/11/2020,Resources and Housing,Commercial Services,Supplies and Services,Operational Furniture And Equipment,203,19/11/2020,2011-00536,0.00,2092.00,R,AIREDALE CATERING EQUIPMENT LTD,No
Http://opendatacommunities.org/id/metropolitan-district-council/leeds,Leeds City Council,30/11/2020,Resources and Housing,Commercial Services,Premises,Fixtures & Fittings,131,20/11/2020,2011-00537,0.00,11427.00,R,AIREDALE CATERING EQUIPMENT LTD,No
Http://opendatacommunities.org/id/metropolitan-district-council/leeds,Leeds City Council,30/11/2020,Resources and Housing,Leeds Building Services,Supplies and Services,Other Hired And Contracted Services,265,25/11/2020,2011-00538,0.00,4566.00,R,AIREDALE CATERING EQUIPMENT LTD,No
Http://opendatacommunities.org/id/metropolitan-district-council/leeds,Leeds City Council,30/11/2020,Resources and Housing,Leeds Building Services,Supplies and Services,Other Hired And Contracted Services,265,25/11/2020,2011-00539,0.00,7439.00,R,AIREDALE CATERING EQUIPMENT LTD,No
Http://opendatacommunities.org/id/metropolitan-district-council/leeds,Leeds City Council,30/11/2020,City Development,Recreation,Supplies and Services,Non-Recurring Grants,227,04/11/2020,2011-00540,0.00,150.00,R,REDACTED PERSONAL DATA,No
Http://opendatacommunities.org/id/metropolitan-district-council/leeds,Leeds City Council,30/11/2020,Communities and Environment,Community Safety,Supplies and Services,Bought In Professional Services,277,05/11/2020,2011-00541,0.00,1044.80,R,AIRWAVE SOLUTIONS LTD,No
Http://opendatacommunities.org/id/metropolitan-district-council/leeds,Leeds City Council,30/11/2020,Communities and Environment,Benefits  Wlefare and Poverty,Supplies and Services,Grant Related Expenditure,290,13/11/2020,2011-00542,0.00,500.00,R,REDACTED PERSONAL DATA,No
Http://opendatacommunities.org/id/metropolitan-district-council/leeds,Leeds City Council,30/11/2020,Adults and Health,Services For Adults Under 65 Mental/Dis,Third Party Payments,Services Provided By Other NHS Bodies,522,06/11/2020,2011-00543,0.00,175.00,R,AIT Mitra Limited,No
Http://opendatacommunities.org/id/metropolitan-district-council/leeds,Leeds City Council,30/11/2020,Adults and Health,Services For Adults Under 65 Mental/Dis,Third Party Payments,Services Provided By Other NHS Bodies,522,10/11/2020,2011-00544,0.00,175.00,R,AIT Mitra Limited,No
Http://opendatacommunities.org/id/metropolitan-district-council/leeds,Leeds City Council,30/11/2020,Adults and Health,Services For Adults Under 65 Mental/Dis,Third Party Payments,Services Provided By Other NHS Bodies,522,13/11/2020,2011-00545,0.00,175.00,R,AIT Mitra Limited,No
Http://opendatacommunities.org/id/metropolitan-district-council/leeds,Leeds City Council,30/11/2020,Adults and Health,Services For Adults Under 65 Mental/Dis,Third Party Payments,Services Provided By Other NHS Bodies,522,13/11/2020,2011-00546,0.00,175.00,R,AIT Mitra Limited,No
Http://opendatacommunities.org/id/metropolitan-district-council/leeds,Leeds City Council,30/11/2020,Adults and Health,Services For Adults Under 65 Mental/Dis,Third Party Payments,Services Provided By Other NHS Bodies,522,13/11/2020,2011-00547,0.00,175.00,R,AIT Mitra Limited,No
Http://opendatacommunities.org/id/metropolitan-district-council/leeds,Leeds City Council,30/11/2020,Adults and Health,Services For Adults Under 65 Mental/Dis,Third Party Payments,Services Provided By Other NHS Bodies,522,23/11/2020,2011-00548,0.00,175.00,R,AIT Mitra Limited,No
Http://opendatacommunities.org/id/metropolitan-district-council/leeds,Leeds City Council,30/11/2020,Adults and Health,Services For Adults Under 65 Mental/Dis,Third Party Payments,Services Provided By Other NHS Bodies,522,23/11/2020,2011-00549,0.00,175.00,R,AIT Mitra Limited,No
Http://opendatacommunities.org/id/metropolitan-district-council/leeds,Leeds City Council,30/11/2020,Adults and Health,Services For Adults Under 65 Mental/Dis,Third Party Payments,Services Provided By Other NHS Bodies,522,26/11/2020,2011-00550,0.00,175.00,R,AIT Mitra Limited,No
Http://opendatacommunities.org/id/metropolitan-district-council/leeds,Leeds City Council,30/11/2020,Adults and Health,Services For Adults Under 65 Mental/Dis,Third Party Payments,Services Provided By Other NHS Bodies,522,30/11/2020,2011-00551,0.00,175.00,R,AIT Mitra Limited,No
Http://opendatacommunities.org/id/metropolitan-district-council/leeds,Leeds City Council,30/11/2020,Adults and Health,Services For Adults Under 65 Mental/Dis,Third Party Payments,Services Provided By Other NHS Bodies,522,30/11/2020,2011-00552,0.00,175.00,R,AIT Mitra Limited,No
Http://opendatacommunities.org/id/metropolitan-district-council/leeds,Leeds City Council,30/11/2020,Adults and Health,Services For Adults Under 65 Mental/Dis,Third Party Payments,Services Provided By Other NHS Bodies,522,30/11/2020,2011-00553,0.00,175.00,R,AIT Mitra Limited,No
Http://opendatacommunities.org/id/metropolitan-district-council/leeds,Leeds City Council as Accountable Body,30/11/2020,Social Services Pooled Budgets,Jcs For People With Learning Disabilitie,Third Party Payments,Residential,580,11/11/2020,2011-00554,0.00,6709.72,R,AITCH care homes,No
Http://opendatacommunities.org/id/metropolitan-district-council/leeds,Leeds City Council,30/11/2020,Resources and Housing,Leeds Building Services,Supplies and Services,Operational Materials,205,17/11/2020,2011-00555,0.00,200.00,R,AJM FIXINGS & POWER TOOLS LTD,No
Http://opendatacommunities.org/id/metropolitan-district-council/leeds,Leeds City Council,30/11/2020,Resources and Housing,Leeds Building Services,Supplies and Services,Operational Furniture And Equipment,203,17/11/2020,2011-00556,0.00,84.98,R,AJM FIXINGS & POWER TOOLS LTD,No
Http://opendatacommunities.org/id/metropolitan-district-council/leeds,Leeds City Council,30/11/2020,Resources and Housing,Leeds Building Services,Supplies and Services,Operational Furniture And Equipment,203,17/11/2020,2011-00557,0.00,3390.00,R,AJM FIXINGS & POWER TOOLS LTD,No
Http://opendatacommunities.org/id/metropolitan-district-council/leeds,Leeds City Council,30/11/2020,Resources and Housing,Leeds Building Services,Supplies and Services,Operational Materials,205,17/11/2020,2011-00558,0.00,18.96,R,AJM FIXINGS & POWER TOOLS LTD,No
Http://opendatacommunities.org/id/metropolitan-district-council/leeds,Leeds City Council,30/11/2020,Resources and Housing,Leeds Building Services,Supplies and Services,Operational Furniture And Equipment,203,17/11/2020,2011-00559,0.00,95.00,R,AJM FIXINGS & POWER TOOLS LTD,No
Http://opendatacommunities.org/id/metropolitan-district-council/leeds,Leeds City Council,30/11/2020,Resources and Housing,Leeds Building Services,Supplies and Services,Operational Furniture And Equipment,203,17/11/2020,2011-00560,0.00,339.00,R,AJM FIXINGS & POWER TOOLS LTD,No
Http://opendatacommunities.org/id/metropolitan-district-council/leeds,Leeds City Council,30/11/2020,Resources and Housing,Leeds Building Services,Supplies and Services,Operational Furniture And Equipment,203,17/11/2020,2011-00561,0.00,130.00,R,AJM FIXINGS & POWER TOOLS LTD,No
Http://opendatacommunities.org/id/metropolitan-district-council/leeds,Leeds City Council,30/11/2020,Resources and Housing,Leeds Building Services,Supplies and Services,Operational Furniture And Equipment,203,17/11/2020,2011-00562,0.00,580.00,R,AJM FIXINGS & POWER TOOLS LTD,No
Http://opendatacommunities.org/id/metropolitan-district-council/leeds,Leeds City Council,30/11/2020,Resources and Housing,Leeds Building Services,Supplies and Services,Operational Furniture And Equipment,203,17/11/2020,2011-00563,0.00,292.49,R,AJM FIXINGS & POWER TOOLS LTD,No
Http://opendatacommunities.org/id/metropolitan-district-council/leeds,Leeds City Council,30/11/2020,Resources and Housing,Leeds Building Services,Supplies and Services,Operational Furniture And Equipment,203,17/11/2020,2011-00564,0.00,133.24,R,AJM FIXINGS & POWER TOOLS LTD,No
Http://opendatacommunities.org/id/metropolitan-district-council/leeds,Leeds City Council,30/11/2020,Resources and Housing,Leeds Building Services,Supplies and Services,Operational Materials,205,17/11/2020,2011-00565,0.00,888.88,R,AJM FIXINGS & POWER TOOLS LTD,No
Http://opendatacommunities.org/id/metropolitan-district-council/leeds,Leeds City Council,30/11/2020,Resources and Housing,Leeds Building Services,Supplies and Services,Operational Furniture And Equipment,203,17/11/2020,2011-00566,0.00,447.93,R,AJM FIXINGS & POWER TOOLS LTD,No
Http://opendatacommunities.org/id/metropolitan-district-council/leeds,Leeds City Council,30/11/2020,Children and Families,Social Care,Third Party Payments,Contact,548,05/11/2020,2011-00567,0.00,4.60,R,REDACTED PERSONAL DATA,No
Http://opendatacommunities.org/id/metropolitan-district-council/leeds,Leeds City Council,30/11/2020,Children and Families,Social Care,Third Party Payments,Contact,548,05/11/2020,2011-00568,0.00,6.90,R,REDACTED PERSONAL DATA,No
Http://opendatacommunities.org/id/metropolitan-district-council/leeds,Leeds City Council,30/11/2020,Children and Families,Social Care,Third Party Payments,Contact,548,13/11/2020,2011-00569,0.00,4.60,R,REDACTED PERSONAL DATA,No
Http://opendatacommunities.org/id/metropolitan-district-council/leeds,Leeds City Council,30/11/2020,Children and Families,Social Care,Third Party Payments,Contact,548,30/11/2020,2011-00570,0.00,6.90,R,REDACTED PERSONAL DATA,No
Http://opendatacommunities.org/id/metropolitan-district-council/leeds,Leeds City Council,30/11/2020,Resources and Housing,Strategic Housing Partnerships,Capital,CONSTRUCTION,3,19/11/2020,2011-00571,0.00,5000.00,C,AKR Construction Ltd,No
Http://opendatacommunities.org/id/metropolitan-district-council/leeds,Leeds City Council,30/11/2020,Children and Families,Social Care  ,Transfer Payments,Leaving Care Grants,635,01/10/2020,2011-00572,0.00,50.33,R,Al Murad,Yes
Http://opendatacommunities.org/id/metropolitan-district-council/leeds,Leeds City Council,30/11/2020,City Development,Planning & Sustainable Development,Income,Building Regulation Fees,929,24/11/2020,2011-00573,0.00,220.00,R,Alan Brady,No
Http://opendatacommunities.org/id/metropolitan-district-council/leeds,Leeds City Council,30/11/2020,Communities and Environment,Benefits  Wlefare and Poverty,Supplies and Services,Grant Related Expenditure,290,06/11/2020,2011-00574,0.00,500.00,R,REDACTED PERSONAL DATA,No
Http://opendatacommunities.org/id/metropolitan-district-council/leeds,Leeds City Council,30/11/2020,Children and Families,Social Care,Third Party Payments,Services Rendered By Other Organisations,511,06/11/2020,2011-00575,0.00,427.05,R,REDACTED PERSONAL DATA,No
Http://opendatacommunities.org/id/metropolitan-district-council/leeds,Leeds City Council,30/11/2020,Adults and Health,Services For Older People - 65 And Over,Third Party Payments,Residential,580,11/11/2020,2011-00576,0.00,1552.60,R,Albion Court Care Home,No
Http://opendatacommunities.org/id/metropolitan-district-council/leeds,Leeds City Council,30/11/2020,Communities and Environment,Communities,Supplies and Services,Computer Software & Equipment,214,20/11/2020,2011-00577,0.00,1228.33,R,Alcium Software Ltd,No
Http://opendatacommunities.org/id/metropolitan-district-council/leeds,Leeds City Council,30/11/2020,Communities and Environment,Communities,Supplies and Services,Computer Software & Equipment,214,20/11/2020,2011-00578,0.00,1228.33,R,Alcium Software Ltd,No
Http://opendatacommunities.org/id/metropolitan-district-council/leeds,Leeds City Council,30/11/2020,Children and Families,Social Care  ,Transfer Payments,Leaving Care Grants,635,10/10/2020,2011-00579,0.00,20.98,R,Aldi,Yes
Http://opendatacommunities.org/id/metropolitan-district-council/leeds,Leeds City Council,30/11/2020,Children and Families,Social Care  ,Transfer Payments,Leaving Care Grants,635,11/10/2020,2011-00580,0.00,9.99,R,Aldi,Yes
Http://opendatacommunities.org/id/metropolitan-district-council/leeds,Leeds City Council,30/11/2020,Children and Families,Social Care  ,Supplies and Services,Crockery  Cutlery & Utensils,221,16/10/2020,2011-00581,0.00,19.98,R,Aldi 49 779,Yes
Http://opendatacommunities.org/id/metropolitan-district-council/leeds,Leeds City Council,30/11/2020,Children and Families,Social Care  ,Supplies and Services,Teaching Materials,202,23/10/2020,2011-00582,0.00,10.26,R,Aldi 49 779,Yes
Http://opendatacommunities.org/id/metropolitan-district-council/leeds,Leeds City Council,30/11/2020,Children and Families,Social Care  ,Supplies and Services,Food & Drink,231,13/10/2020,2011-00583,0.00,20.94,R,Aldi 71 779,Yes
Http://opendatacommunities.org/id/metropolitan-district-council/leeds,Leeds City Council,30/11/2020,Children and Families,Social Care  ,Transfer Payments,Leaving Care Allowances,634,27/10/2020,2011-00584,0.00,2.40,R,Aldi 71 779,Yes
Http://opendatacommunities.org/id/metropolitan-district-council/leeds,Leeds City Council,30/11/2020,Children and Families,Social Care  ,Transfer Payments,Leaving Care Allowances,634,27/10/2020,2011-00585,0.00,56.52,R,Aldi 71 779,Yes
Http://opendatacommunities.org/id/metropolitan-district-council/leeds,Leeds City Council,30/11/2020,Children and Families,Social Care  ,Supplies and Services,Food & Drink,231,05/10/2020,2011-00586,0.00,99.33,R,Aldi 85 779,Yes
Http://opendatacommunities.org/id/metropolitan-district-council/leeds,Leeds City Council,30/11/2020,Communities and Environment,Waste Management  ,Supplies and Services,Office Consumables,210,30/09/2020,2011-00587,0.00,1.50,R,Aldi 89 779,Yes
Http://opendatacommunities.org/id/metropolitan-district-council/leeds,Leeds City Council,30/11/2020,Children and Families,Social Care  ,Transfer Payments,Leaving Care Allowances,634,28/10/2020,2011-00588,0.00,38.78,R,Aldi 89 779,Yes
Http://opendatacommunities.org/id/metropolitan-district-council/leeds,Leeds City Council,30/11/2020,Adults and Health,Services For Adults Under 65 Learn/Dis  ,Transport,Private Hire,360,12/10/2020,2011-00589,0.00,140.00,R,Aldi Leeds,Yes
Http://opendatacommunities.org/id/metropolitan-district-council/leeds,Leeds City Council,30/11/2020,Children and Families,Social Care  ,Supplies and Services,Food & Drink,231,16/10/2020,2011-00590,0.00,9.02,R,Aldi Stores,Yes
Http://opendatacommunities.org/id/metropolitan-district-council/leeds,Leeds City Council,30/11/2020,Children and Families,Social Care  ,Supplies and Services,Food & Drink,231,21/10/2020,2011-00591,0.00,5.92,R,Aldi Stores,Yes
Http://opendatacommunities.org/id/metropolitan-district-council/leeds,Leeds City Council,30/11/2020,Communities and Environment,Customer Access,Supplies and Services,Bought In Professional Services,277,04/11/2020,2011-00592,0.00,25.50,R,Alena Zueva,No
Http://opendatacommunities.org/id/metropolitan-district-council/leeds,Leeds City Council,30/11/2020,Communities and Environment,Customer Access,Supplies and Services,Bought In Professional Services,277,11/11/2020,2011-00593,0.00,9.00,R,Alena Zueva,No
Http://opendatacommunities.org/id/metropolitan-district-council/leeds,Leeds City Council,30/11/2020,Communities and Environment,Customer Access,Supplies and Services,Bought In Professional Services,277,18/11/2020,2011-00594,0.00,25.50,R,Alena Zueva,No
Http://opendatacommunities.org/id/metropolitan-district-council/leeds,Leeds City Council,30/11/2020,Children and Families,Social Care,Supplies and Services,General Amenity For Clients/Residents,285,20/11/2020,2011-00595,0.00,11.30,R,REDACTED PERSONAL DATA,No
Http://opendatacommunities.org/id/metropolitan-district-council/leeds,Leeds City Council,30/11/2020,Children and Families,Social Care,Transport,Public Transport Expenses,310,20/11/2020,2011-00596,0.00,4.24,R,REDACTED PERSONAL DATA,No
Http://opendatacommunities.org/id/metropolitan-district-council/leeds,Leeds City Council,30/11/2020,Children and Families,Social Care,Third Party Payments,Placement Support,550,26/11/2020,2011-00597,0.00,14.25,R,REDACTED PERSONAL DATA,No
Http://opendatacommunities.org/id/metropolitan-district-council/leeds,Leeds City Council,30/11/2020,Children and Families,Social Care,Third Party Payments,Section 17,551,18/11/2020,2011-00598,0.00,60.00,R,REDACTED PERSONAL DATA,No
Http://opendatacommunities.org/id/metropolitan-district-council/leeds,Leeds City Council,30/11/2020,Communities and Environment,Benefits  Wlefare and Poverty,Supplies and Services,Grant Related Expenditure,290,25/11/2020,2011-00599,0.00,500.00,R,REDACTED PERSONAL DATA,No
Http://opendatacommunities.org/id/metropolitan-district-council/leeds,Leeds City Council,30/11/2020,Children and Families,Social Care,Support Services,Legal Disbursements,411,06/11/2020,2011-00600,0.00,1500.00,R,Alex Taylor,No
Http://opendatacommunities.org/id/metropolitan-district-council/leeds,Leeds City Council,30/11/2020,Resources and Housing,Civic Enterprise Leeds,Capital,TRANSPORT,4,04/11/2020,2011-00601,0.00,240.00,C,ALEX WAGG,No
Http://opendatacommunities.org/id/metropolitan-district-council/leeds,Leeds City Council,30/11/2020,Resources and Housing,Commercial Services,Supplies and Services,Other Hired And Contracted Services,265,04/11/2020,2011-00602,0.00,300.00,R,ALEX WAGG,No
Http://opendatacommunities.org/id/metropolitan-district-council/leeds,Leeds City Council,30/11/2020,Resources and Housing,Commercial Services,Supplies and Services,Other Hired And Contracted Services,265,06/11/2020,2011-00603,0.00,100.00,R,ALEX WAGG,No
Http://opendatacommunities.org/id/metropolitan-district-council/leeds,Leeds City Council,30/11/2020,Resources and Housing,Commercial Services,Supplies and Services,Other Hired And Contracted Services,265,11/11/2020,2011-00604,0.00,130.00,R,ALEX WAGG,No
Http://opendatacommunities.org/id/metropolitan-district-council/leeds,Leeds City Council,30/11/2020,Resources and Housing,Commercial Services,Supplies and Services,Other Hired And Contracted Services,265,11/11/2020,2011-00605,0.00,150.00,R,ALEX WAGG,No
Http://opendatacommunities.org/id/metropolitan-district-council/leeds,Leeds City Council,30/11/2020,Resources and Housing,Civic Enterprise Leeds,Capital,OTHER COSTS,7,13/11/2020,2011-00606,0.00,288.00,C,ALEX WAGG,No
Http://opendatacommunities.org/id/metropolitan-district-council/leeds,Leeds City Council,30/11/2020,Resources and Housing,Commercial Services,Supplies and Services,Other Hired And Contracted Services,265,13/11/2020,2011-00607,0.00,140.00,R,ALEX WAGG,No
Http://opendatacommunities.org/id/metropolitan-district-council/leeds,Leeds City Council,30/11/2020,Resources and Housing,Commercial Services,Supplies and Services,Other Hired And Contracted Services,265,13/11/2020,2011-00608,0.00,70.00,R,ALEX WAGG,No
Http://opendatacommunities.org/id/metropolitan-district-council/leeds,Leeds City Council,30/11/2020,Resources and Housing,Commercial Services,Supplies and Services,Other Hired And Contracted Services,265,13/11/2020,2011-00609,0.00,70.00,R,ALEX WAGG,No
Http://opendatacommunities.org/id/metropolitan-district-council/leeds,Leeds City Council,30/11/2020,Resources and Housing,Commercial Services,Supplies and Services,Other Hired And Contracted Services,265,13/11/2020,2011-00610,0.00,70.00,R,ALEX WAGG,No
Http://opendatacommunities.org/id/metropolitan-district-council/leeds,Leeds City Council,30/11/2020,Resources and Housing,Commercial Services,Supplies and Services,Other Hired And Contracted Services,265,13/11/2020,2011-00611,0.00,70.00,R,ALEX WAGG,No
Http://opendatacommunities.org/id/metropolitan-district-council/leeds,Leeds City Council,30/11/2020,Resources and Housing,Commercial Services,Supplies and Services,Other Hired And Contracted Services,265,13/11/2020,2011-00612,0.00,70.00,R,ALEX WAGG,No
Http://opendatacommunities.org/id/metropolitan-district-council/leeds,Leeds City Council,30/11/2020,Resources and Housing,Commercial Services,Supplies and Services,Other Hired And Contracted Services,265,13/11/2020,2011-00613,0.00,140.00,R,ALEX WAGG,No
Http://opendatacommunities.org/id/metropolitan-district-council/leeds,Leeds City Council,30/11/2020,Resources and Housing,Commercial Services,Supplies and Services,Other Hired And Contracted Services,265,19/11/2020,2011-00614,0.00,100.00,R,ALEX WAGG,No
Http://opendatacommunities.org/id/metropolitan-district-council/leeds,Leeds City Council,30/11/2020,Resources and Housing,Commercial Services,Supplies and Services,Other Hired And Contracted Services,265,19/11/2020,2011-00615,0.00,297.50,R,ALEX WAGG,No
Http://opendatacommunities.org/id/metropolitan-district-council/leeds,Leeds City Council,30/11/2020,Resources and Housing,Commercial Services,Supplies and Services,Other Hired And Contracted Services,265,19/11/2020,2011-00616,0.00,60.00,R,ALEX WAGG,No
Http://opendatacommunities.org/id/metropolitan-district-council/leeds,Leeds City Council,30/11/2020,Resources and Housing,Commercial Services,Supplies and Services,Other Hired And Contracted Services,265,20/11/2020,2011-00617,0.00,70.00,R,ALEX WAGG,No
Http://opendatacommunities.org/id/metropolitan-district-council/leeds,Leeds City Council,30/11/2020,Resources and Housing,Commercial Services,Supplies and Services,Other Hired And Contracted Services,265,20/11/2020,2011-00618,0.00,70.00,R,ALEX WAGG,No
Http://opendatacommunities.org/id/metropolitan-district-council/leeds,Leeds City Council,30/11/2020,Resources and Housing,Commercial Services,Supplies and Services,Other Hired And Contracted Services,265,27/11/2020,2011-00619,0.00,140.00,R,ALEX WAGG,No
Http://opendatacommunities.org/id/metropolitan-district-council/leeds,Leeds City Council,30/11/2020,Resources and Housing,Commercial Services,Supplies and Services,Other Hired And Contracted Services,265,27/11/2020,2011-00620,0.00,160.00,R,ALEX WAGG,No
Http://opendatacommunities.org/id/metropolitan-district-council/leeds,Leeds City Council,30/11/2020,Resources and Housing,Commercial Services,Supplies and Services,Other Hired And Contracted Services,265,27/11/2020,2011-00621,0.00,200.00,R,ALEX WAGG,No
Http://opendatacommunities.org/id/metropolitan-district-council/leeds,Leeds City Council,30/11/2020,Resources and Housing,Commercial Services,Supplies and Services,Other Hired And Contracted Services,265,27/11/2020,2011-00622,0.00,40.00,R,ALEX WAGG,No
Http://opendatacommunities.org/id/metropolitan-district-council/leeds,Leeds City Council,30/11/2020,Resources and Housing,Commercial Services,Supplies and Services,Other Hired And Contracted Services,265,27/11/2020,2011-00623,0.00,70.00,R,ALEX WAGG,No
Http://opendatacommunities.org/id/metropolitan-district-council/leeds,Leeds City Council,30/11/2020,Resources and Housing,Commercial Services,Supplies and Services,Other Hired And Contracted Services,265,27/11/2020,2011-00624,0.00,70.00,R,ALEX WAGG,No
Http://opendatacommunities.org/id/metropolitan-district-council/leeds,Leeds City Council,30/11/2020,Resources and Housing,Commercial Services,Supplies and Services,Other Hired And Contracted Services,265,27/11/2020,2011-00625,0.00,70.00,R,ALEX WAGG,No
Http://opendatacommunities.org/id/metropolitan-district-council/leeds,Leeds City Council,30/11/2020,Resources and Housing,Commercial Services,Supplies and Services,Other Hired And Contracted Services,265,27/11/2020,2011-00626,0.00,70.00,R,ALEX WAGG,No
Http://opendatacommunities.org/id/metropolitan-district-council/leeds,Leeds City Council,30/11/2020,Resources and Housing,Commercial Services,Supplies and Services,Other Hired And Contracted Services,265,27/11/2020,2011-00627,0.00,70.00,R,ALEX WAGG,No
Http://opendatacommunities.org/id/metropolitan-district-council/leeds,Leeds City Council,30/11/2020,Communities and Environment,Elections  Licensing and Registration,Income,Admissions  Booking Fees & Ticket Sales,933,17/11/2020,2011-00628,0.00,88.00,R,REDACTED PERSONAL DATA,No
Http://opendatacommunities.org/id/metropolitan-district-council/leeds,Leeds City Council,30/11/2020,Communities and Environment,Elections  Licensing and Registration,Income,Admissions  Booking Fees & Ticket Sales,933,03/11/2020,2011-00629,0.00,177.00,R,REDACTED PERSONAL DATA,No
Http://opendatacommunities.org/id/metropolitan-district-council/leeds,Leeds City Council,30/11/2020,Adults and Health,Services For Older People - 65 And Over,Third Party Payments,Residential Care Dementia,571,11/11/2020,2011-00630,0.00,17063.61,R,ALEXANDER RESIDENTIAL HOME,No
Http://opendatacommunities.org/id/metropolitan-district-council/leeds,Leeds City Council,30/11/2020,Adults and Health,Services For Older People - 65 And Over,Third Party Payments,Residential,580,11/11/2020,2011-00631,0.00,27425.62,R,ALEXANDER RESIDENTIAL HOME,No
Http://opendatacommunities.org/id/metropolitan-district-council/leeds,Leeds City Council,30/11/2020,Communities and Environment,Parks and Countryside,Transport,Public Transport Expenses,310,10/11/2020,2011-00632,0.00,4.70,R,REDACTED PERSONAL DATA,No
Http://opendatacommunities.org/id/metropolitan-district-council/leeds,Leeds City Council,30/11/2020,Adults and Health,Services For Older People - 65 And Over,Third Party Payments,Residential Care Dementia,571,11/11/2020,2011-00633,0.00,3199.60,R,ALEXANDRA COURT,No
Http://opendatacommunities.org/id/metropolitan-district-council/leeds,Leeds City Council,30/11/2020,Adults and Health,Services For Older People - 65 And Over,Third Party Payments,Residential,580,11/11/2020,2011-00634,0.00,6256.78,R,ALEXANDRA COURT,No
Http://opendatacommunities.org/id/metropolitan-district-council/leeds,Leeds City Council,30/11/2020,Adults and Health,Other Adult Services,Third Party Payments,Residential,580,09/11/2020,2011-00635,0.00,7958.64,R,Alexandra Court Residential Home,No
Http://opendatacommunities.org/id/metropolitan-district-council/leeds,Leeds City Council,30/11/2020,Communities and Environment,Benefits  Wlefare and Poverty,Supplies and Services,Grant Related Expenditure,298,24/11/2020,2011-00636,0.00,500.00,R,REDACTED PERSONAL DATA,No
Http://opendatacommunities.org/id/metropolitan-district-council/leeds,Leeds City Council,30/11/2020,Children and Families,Social Care,Third Party Payments,Services Rendered By Other Organisations,511,04/11/2020,2011-00637,0.00,514.80,R,REDACTED PERSONAL DATA,No
Http://opendatacommunities.org/id/metropolitan-district-council/leeds,Leeds City Council,30/11/2020,Adults and Health,Services For Older People - 65 And Over  ,Supplies and Services,Clothing & Uniforms,241,01/10/2020,2011-00638,0.00,104.93,R,Alexandra Website,Yes
Http://opendatacommunities.org/id/metropolitan-district-council/leeds,Leeds City Council,30/11/2020,Adults and Health,Services For Older People - 65 And Over  ,Supplies and Services,Clothing & Uniforms,241,06/10/2020,2011-00639,0.00,75.42,R,Alexandra Website,Yes
Http://opendatacommunities.org/id/metropolitan-district-council/leeds,Leeds City Council,30/11/2020,Adults and Health,Services For Older People - 65 And Over  ,Supplies and Services,Clothing & Uniforms,241,09/10/2020,2011-00640,0.00,199.76,R,Alexandra Website,Yes
Http://opendatacommunities.org/id/metropolitan-district-council/leeds,Leeds City Council,30/11/2020,Adults and Health,Services For Older People - 65 And Over  ,Supplies and Services,Operational Furniture And Equipment,203,14/10/2020,2011-00641,0.00,174.72,R,Alexandra Website,Yes
Http://opendatacommunities.org/id/metropolitan-district-council/leeds,Leeds City Council,30/11/2020,Adults and Health,Services For Older People - 65 And Over  ,Supplies and Services,Operational Furniture And Equipment,203,22/10/2020,2011-00642,0.00,29.12,R,Alexandra Website,Yes
Http://opendatacommunities.org/id/metropolitan-district-council/leeds,Leeds City Council,30/11/2020,Adults and Health,Services For Older People - 65 And Over  ,Supplies and Services,Clothing & Uniforms,241,27/10/2020,2011-00643,0.00,34.97,R,Alexandra Website,Yes
Http://opendatacommunities.org/id/metropolitan-district-council/leeds,Leeds City Council,30/11/2020,Resources and Housing,Leeds Building Services,Supplies and Services,Other Hired And Contracted Services,265,03/11/2020,2011-00644,0.00,1378.50,R,Alfred Bagnall & Sons (Leeds) Ltd,No
Http://opendatacommunities.org/id/metropolitan-district-council/leeds,Leeds City Council,30/11/2020,Resources and Housing,Leeds Building Services,Supplies and Services,Other Hired And Contracted Services,265,06/11/2020,2011-00645,0.00,670.00,R,Alfred Bagnall & Sons (Leeds) Ltd,No
Http://opendatacommunities.org/id/metropolitan-district-council/leeds,Leeds City Council,30/11/2020,Resources and Housing,Leeds Building Services,Supplies and Services,Other Hired And Contracted Services,265,17/11/2020,2011-00646,0.00,3850.00,R,Alfred Bagnall & Sons (Leeds) Ltd,No
Http://opendatacommunities.org/id/metropolitan-district-council/leeds,Leeds City Council,30/11/2020,City Development,Markets & City Centre Management,Supplies and Services,City Centre Enhancement,295,18/11/2020,2011-00647,0.00,4035.10,R,Alfred Bagnall & Sons (Leeds) Ltd,No
Http://opendatacommunities.org/id/metropolitan-district-council/leeds,Leeds City Council,30/11/2020,Resources and Housing,Leeds Building Services,Supplies and Services,Other Hired And Contracted Services,265,23/11/2020,2011-00648,0.00,300.00,R,Alfred Bagnall & Sons (Leeds) Ltd,No
Http://opendatacommunities.org/id/metropolitan-district-council/leeds,Leeds City Council,30/11/2020,Resources and Housing,Leeds Building Services,Supplies and Services,Other Hired And Contracted Services,265,24/11/2020,2011-00649,0.00,1282.81,R,Alfred Bagnall & Sons (Leeds) Ltd,No
Http://opendatacommunities.org/id/metropolitan-district-council/leeds,Leeds City Council,30/11/2020,Resources and Housing,Leeds Building Services,Supplies and Services,Other Hired And Contracted Services,265,24/11/2020,2011-00650,0.00,4240.00,R,Alfred Bagnall & Sons (Leeds) Ltd,No
Http://opendatacommunities.org/id/metropolitan-district-council/leeds,Leeds City Council,30/11/2020,Resources and Housing,Leeds Building Services,Supplies and Services,Other Hired And Contracted Services,265,24/11/2020,2011-00651,0.00,3480.00,R,Alfred Bagnall & Sons (Leeds) Ltd,No
Http://opendatacommunities.org/id/metropolitan-district-council/leeds,Leeds City Council,30/11/2020,Communities and Environment,Customer Access,Supplies and Services,Bought In Professional Services,277,04/11/2020,2011-00652,0.00,36.00,R,Ali Pourakaberian,No
Http://opendatacommunities.org/id/metropolitan-district-council/leeds,Leeds City Council,30/11/2020,Communities and Environment,Customer Access,Supplies and Services,Bought In Professional Services,277,04/11/2020,2011-00653,0.00,9.00,R,Ali Pourakaberian,No
Http://opendatacommunities.org/id/metropolitan-district-council/leeds,Leeds City Council,30/11/2020,Communities and Environment,Customer Access,Supplies and Services,Bought In Professional Services,277,04/11/2020,2011-00654,0.00,9.00,R,Ali Pourakaberian,No
Http://opendatacommunities.org/id/metropolitan-district-council/leeds,Leeds City Council,30/11/2020,Communities and Environment,Customer Access,Supplies and Services,Bought In Professional Services,277,11/11/2020,2011-00655,0.00,9.00,R,Ali Pourakaberian,No
Http://opendatacommunities.org/id/metropolitan-district-council/leeds,Leeds City Council,30/11/2020,Communities and Environment,Customer Access,Supplies and Services,Bought In Professional Services,277,18/11/2020,2011-00656,0.00,19.60,R,Ali Pourakaberian,No
Http://opendatacommunities.org/id/metropolitan-district-council/leeds,Leeds City Council,30/11/2020,Communities and Environment,Customer Access,Supplies and Services,Bought In Professional Services,277,18/11/2020,2011-00657,0.00,22.50,R,Ali Pourakaberian,No
Http://opendatacommunities.org/id/metropolitan-district-council/leeds,Leeds City Council,30/11/2020,Communities and Environment,Customer Access,Supplies and Services,Bought In Professional Services,277,18/11/2020,2011-00658,0.00,27.00,R,Ali Pourakaberian,No
Http://opendatacommunities.org/id/metropolitan-district-council/leeds,Leeds City Council,30/11/2020,Communities and Environment,Benefits  Wlefare and Poverty,Supplies and Services,Grant Related Expenditure,290,24/11/2020,2011-00659,0.00,500.00,R,REDACTED PERSONAL DATA,No
Http://opendatacommunities.org/id/metropolitan-district-council/leeds,Leeds City Council,30/11/2020,Children and Families,Social Care,Transfer Payments,Leaving Care Allowances,634,30/11/2020,2011-00660,0.00,50.00,R,REDACTED PERSONAL DATA,No
Http://opendatacommunities.org/id/metropolitan-district-council/leeds,Leeds City Council,30/11/2020,Communities and Environment,Benefits  Wlefare and Poverty,Supplies and Services,Grant Related Expenditure,298,17/11/2020,2011-00661,0.00,500.00,R,REDACTED PERSONAL DATA,No
Http://opendatacommunities.org/id/metropolitan-district-council/leeds,Leeds City Council,30/11/2020,Communities and Environment,Benefits  Wlefare and Poverty,Supplies and Services,Grant Related Expenditure,298,24/11/2020,2011-00662,0.00,500.00,R,REDACTED PERSONAL DATA,No
Http://opendatacommunities.org/id/metropolitan-district-council/leeds,Leeds City Council,30/11/2020,Children and Families,Social Care,Third Party Payments,Services Rendered By Other Organisations,511,06/11/2020,2011-00663,0.00,569.40,R,REDACTED PERSONAL DATA,No
Http://opendatacommunities.org/id/metropolitan-district-council/leeds,Leeds City Council,30/11/2020,Children and Families,Social Care,Third Party Payments,Placement Support,550,05/11/2020,2011-00664,0.00,94.32,R,REDACTED PERSONAL DATA,No
Http://opendatacommunities.org/id/metropolitan-district-council/leeds,Leeds City Council,30/11/2020,Children and Families,Learning,Supplies and Services,Teaching Furniture & Equipment,207,18/11/2020,2011-00665,0.00,120.00,R,ALL BRASS AND WOODWIND,No
Http://opendatacommunities.org/id/metropolitan-district-council/leeds,Leeds City Council,30/11/2020,Adults and Health,Services For Adults Under 65 Mental/Dis,Third Party Payments,Home Care,568,27/11/2020,2011-00666,0.00,295.50,R,All Seasons Home Care,No
Http://opendatacommunities.org/id/metropolitan-district-council/leeds,Leeds City Council,30/11/2020,Resources and Housing,Strategic Housing Partnership & Support  ,Supplies and Services,Schools related grant expenditure,299,15/10/2020,2011-00667,0.00,91.20,R,All Service,Yes
Http://opendatacommunities.org/id/metropolitan-district-council/leeds,Leeds City Council,30/11/2020,Children and Families,Social Care,Third Party Payments,Services Rendered By Other Organisations,511,04/11/2020,2011-00668,0.00,1029.60,R,All Stars Childcare,No
Http://opendatacommunities.org/id/metropolitan-district-council/leeds,Leeds City Council,30/11/2020,Children and Families,Social Care,Third Party Payments,Services Rendered By Other Organisations,511,06/11/2020,2011-00669,0.00,9181.58,R,All Stars Childcare,No
Http://opendatacommunities.org/id/metropolitan-district-council/leeds,Leeds City Council as Accountable Body,30/11/2020,Social Services Pooled Budgets,Jcs For People With Learning Disabilitie,Third Party Payments,Sheltered Accommodation,569,11/11/2020,2011-00670,0.00,19562.68,R,Allerton Avenue,No
Http://opendatacommunities.org/id/metropolitan-district-council/leeds,Leeds City Council,30/11/2020,Strategic Accounts,Miscellaneous,Supplies and Services,Non-Recurring Grants,227,30/11/2020,2011-00671,0.00,305.00,R,Allerton Bywater Cricket Club,No
Http://opendatacommunities.org/id/metropolitan-district-council/leeds,Leeds City Council,30/11/2020,Adults and Health,Public Health,Third Party Payments,Public Health Commissioned Services,526,02/11/2020,2011-00672,0.00,1495.25,R,Allerton Medical Centre,No
Http://opendatacommunities.org/id/metropolitan-district-council/leeds,Leeds City Council,30/11/2020,Adults and Health,Public Health,Third Party Payments,Public Health Commissioned Services,526,20/11/2020,2011-00673,0.00,1029.84,R,Allerton Medical Centre,No
Http://opendatacommunities.org/id/metropolitan-district-council/leeds,Leeds City Council,30/11/2020,Adults and Health,Services For Older People - 65 And Over,Third Party Payments,Nursing Care Dementia,574,11/11/2020,2011-00674,0.00,2320.36,R,ALLERTON PARK N H,No
Http://opendatacommunities.org/id/metropolitan-district-council/leeds,Leeds City Council,30/11/2020,Resources and Housing,Finance,Supplies and Services,Bank Charges,263,05/11/2020,2011-00675,0.00,100.14,R,ALLIANCE & LEICESTER COMMERCIAL BANK,No
Http://opendatacommunities.org/id/metropolitan-district-council/leeds,Leeds City Council,30/11/2020,Resources and Housing,Finance,Supplies and Services,Bank Charges,263,05/11/2020,2011-00676,0.00,113.70,R,ALLIANCE & LEICESTER COMMERCIAL BANK,No
Http://opendatacommunities.org/id/metropolitan-district-council/leeds,Leeds City Council,30/11/2020,Resources and Housing,Commercial Services,Supplies and Services,Food & Drink,231,11/11/2020,2011-00677,0.00,262.45,R,ALLIANCE DISPOSABLES LTD,No
Http://opendatacommunities.org/id/metropolitan-district-council/leeds,Leeds City Council,30/11/2020,Resources and Housing,Commercial Services,Supplies and Services,Operational Materials,205,11/11/2020,2011-00678,0.00,30.93,R,ALLIANCE DISPOSABLES LTD,No
Http://opendatacommunities.org/id/metropolitan-district-council/leeds,Leeds City Council,30/11/2020,Resources and Housing,Commercial Services,Supplies and Services,Operational Materials,205,12/11/2020,2011-00679,0.00,7.20,R,ALLIANCE DISPOSABLES LTD,No
Http://opendatacommunities.org/id/metropolitan-district-council/leeds,Leeds City Council,30/11/2020,Resources and Housing,Commercial Services,Supplies and Services,Operational Materials,205,13/11/2020,2011-00680,0.00,195.67,R,ALLIANCE DISPOSABLES LTD,No
Http://opendatacommunities.org/id/metropolitan-district-council/leeds,Leeds City Council,30/11/2020,Resources and Housing,Commercial Services,Supplies and Services,Operational Materials,205,13/11/2020,2011-00681,0.00,10.80,R,ALLIANCE DISPOSABLES LTD,No
Http://opendatacommunities.org/id/metropolitan-district-council/leeds,Leeds City Council,30/11/2020,Resources and Housing,Commercial Services,Supplies and Services,Operational Materials,205,13/11/2020,2011-00682,0.00,10.80,R,ALLIANCE DISPOSABLES LTD,No
Http://opendatacommunities.org/id/metropolitan-district-council/leeds,Leeds City Council,30/11/2020,Resources and Housing,Commercial Services,Supplies and Services,Operational Materials,205,13/11/2020,2011-00683,0.00,10.80,R,ALLIANCE DISPOSABLES LTD,No
Http://opendatacommunities.org/id/metropolitan-district-council/leeds,Leeds City Council,30/11/2020,Resources and Housing,Commercial Services,Supplies and Services,Operational Materials,205,13/11/2020,2011-00684,0.00,206.47,R,ALLIANCE DISPOSABLES LTD,No
Http://opendatacommunities.org/id/metropolitan-district-council/leeds,Leeds City Council,30/11/2020,Resources and Housing,Commercial Services,Supplies and Services,Operational Materials,205,13/11/2020,2011-00685,0.00,7.20,R,ALLIANCE DISPOSABLES LTD,No
Http://opendatacommunities.org/id/metropolitan-district-council/leeds,Leeds City Council,30/11/2020,Resources and Housing,Commercial Services,Supplies and Services,Operational Materials,205,13/11/2020,2011-00686,0.00,7.20,R,ALLIANCE DISPOSABLES LTD,No
Http://opendatacommunities.org/id/metropolitan-district-council/leeds,Leeds City Council,30/11/2020,Resources and Housing,Commercial Services,Supplies and Services,Operational Materials,205,13/11/2020,2011-00687,0.00,7.20,R,ALLIANCE DISPOSABLES LTD,No
Http://opendatacommunities.org/id/metropolitan-district-council/leeds,Leeds City Council,30/11/2020,Resources and Housing,Commercial Services,Supplies and Services,Operational Materials,205,20/11/2020,2011-00688,0.00,61.86,R,ALLIANCE DISPOSABLES LTD,No
Http://opendatacommunities.org/id/metropolitan-district-council/leeds,Leeds City Council,30/11/2020,Resources and Housing,Commercial Services,Supplies and Services,Operational Materials,205,20/11/2020,2011-00689,0.00,61.86,R,ALLIANCE DISPOSABLES LTD,No
Http://opendatacommunities.org/id/metropolitan-district-council/leeds,Leeds City Council,30/11/2020,Resources and Housing,Commercial Services,Supplies and Services,Operational Materials,205,20/11/2020,2011-00690,0.00,61.86,R,ALLIANCE DISPOSABLES LTD,No
Http://opendatacommunities.org/id/metropolitan-district-council/leeds,Leeds City Council,30/11/2020,Resources and Housing,Commercial Services,Supplies and Services,Operational Materials,205,20/11/2020,2011-00691,0.00,61.86,R,ALLIANCE DISPOSABLES LTD,No
Http://opendatacommunities.org/id/metropolitan-district-council/leeds,Leeds City Council,30/11/2020,Resources and Housing,Commercial Services,Supplies and Services,Operational Materials,205,20/11/2020,2011-00692,0.00,61.86,R,ALLIANCE DISPOSABLES LTD,No
Http://opendatacommunities.org/id/metropolitan-district-council/leeds,Leeds City Council,30/11/2020,Resources and Housing,Commercial Services,Supplies and Services,Operational Materials,205,20/11/2020,2011-00693,0.00,61.86,R,ALLIANCE DISPOSABLES LTD,No
Http://opendatacommunities.org/id/metropolitan-district-council/leeds,Leeds City Council,30/11/2020,Resources and Housing,Commercial Services,Supplies and Services,Operational Materials,205,20/11/2020,2011-00694,0.00,61.86,R,ALLIANCE DISPOSABLES LTD,No
Http://opendatacommunities.org/id/metropolitan-district-council/leeds,Leeds City Council,30/11/2020,Resources and Housing,Commercial Services,Supplies and Services,Operational Materials,205,20/11/2020,2011-00695,0.00,61.86,R,ALLIANCE DISPOSABLES LTD,No
Http://opendatacommunities.org/id/metropolitan-district-council/leeds,Leeds City Council,30/11/2020,Resources and Housing,Commercial Services,Supplies and Services,Operational Materials,205,20/11/2020,2011-00696,0.00,61.86,R,ALLIANCE DISPOSABLES LTD,No
Http://opendatacommunities.org/id/metropolitan-district-council/leeds,Leeds City Council,30/11/2020,Resources and Housing,Commercial Services,Supplies and Services,Operational Materials,205,20/11/2020,2011-00697,0.00,61.86,R,ALLIANCE DISPOSABLES LTD,No
Http://opendatacommunities.org/id/metropolitan-district-council/leeds,Leeds City Council,30/11/2020,Resources and Housing,Commercial Services,Supplies and Services,Operational Materials,205,20/11/2020,2011-00698,0.00,61.86,R,ALLIANCE DISPOSABLES LTD,No
Http://opendatacommunities.org/id/metropolitan-district-council/leeds,Leeds City Council,30/11/2020,Resources and Housing,Commercial Services,Supplies and Services,Operational Materials,205,20/11/2020,2011-00699,0.00,61.86,R,ALLIANCE DISPOSABLES LTD,No
Http://opendatacommunities.org/id/metropolitan-district-council/leeds,Leeds City Council,30/11/2020,Resources and Housing,Commercial Services,Supplies and Services,Operational Materials,205,20/11/2020,2011-00700,0.00,61.86,R,ALLIANCE DISPOSABLES LTD,No
Http://opendatacommunities.org/id/metropolitan-district-council/leeds,Leeds City Council,30/11/2020,Resources and Housing,Commercial Services,Supplies and Services,Operational Materials,205,25/11/2020,2011-00701,0.00,218.81,R,ALLIANCE DISPOSABLES LTD,No
Http://opendatacommunities.org/id/metropolitan-district-council/leeds,Leeds City Council,30/11/2020,Resources and Housing,Commercial Services,Supplies and Services,Operational Materials,205,25/11/2020,2011-00702,0.00,28.55,R,ALLIANCE DISPOSABLES LTD,No
Http://opendatacommunities.org/id/metropolitan-district-council/leeds,Leeds City Council,30/11/2020,Resources and Housing,Commercial Services,Supplies and Services,Operational Materials,205,25/11/2020,2011-00703,0.00,79.06,R,ALLIANCE DISPOSABLES LTD,No
Http://opendatacommunities.org/id/metropolitan-district-council/leeds,Leeds City Council,30/11/2020,Resources and Housing,Commercial Services,Supplies and Services,Operational Materials,205,27/11/2020,2011-00704,0.00,61.86,R,ALLIANCE DISPOSABLES LTD,No
Http://opendatacommunities.org/id/metropolitan-district-council/leeds,Leeds City Council,30/11/2020,Children and Families,Social Care,Third Party Payments,Independent Fostering Agencies,509,13/11/2020,2011-00705,0.00,3538.34,R,Alliance Foster Care,No
Http://opendatacommunities.org/id/metropolitan-district-council/leeds,Leeds City Council,30/11/2020,Children and Families,Social Care,Third Party Payments,Independent Fostering Agencies,509,13/11/2020,2011-00706,0.00,3538.34,R,Alliance Foster Care,No
Http://opendatacommunities.org/id/metropolitan-district-council/leeds,Leeds City Council,30/11/2020,Children and Families,Social Care,Third Party Payments,Independent Fostering Agencies,509,13/11/2020,2011-00707,0.00,3424.20,R,Alliance Foster Care,No
Http://opendatacommunities.org/id/metropolitan-district-council/leeds,Leeds City Council,30/11/2020,City Development,Highways,Capital,OTHER COSTS,7,10/11/2020,2011-00708,0.00,20817.00,C,ALLIED EXPLORATION & GEOTECHNICS LTD,No
Http://opendatacommunities.org/id/metropolitan-district-council/leeds,Leeds City Council,30/11/2020,City Development,Highways,Supplies and Services,Other Hired And Contracted Services,265,10/11/2020,2011-00709,0.00,25632.47,R,ALLIED EXPLORATION & GEOTECHNICS LTD,No
Http://opendatacommunities.org/id/metropolitan-district-council/leeds,Leeds City Council as Accountable Body,30/11/2020,Social Services Pooled Budgets,Jcs For People With Learning Disabilitie,Third Party Payments,Home Care,568,02/11/2020,2011-00710,0.00,1301.48,R,Allied Healthcare,No
Http://opendatacommunities.org/id/metropolitan-district-council/leeds,Leeds City Council,30/11/2020,Adults and Health,Services For Older People - 65 And Over,Third Party Payments,HCAIT Other,577,11/11/2020,2011-00711,0.00,742.64,R,Allied Healthcare,No
Http://opendatacommunities.org/id/metropolitan-district-council/leeds,Leeds City Council,30/11/2020,Adults and Health,Services For Older People - 65 And Over,Third Party Payments,Home Care,568,11/11/2020,2011-00712,0.00,778.40,R,Allied Healthcare,No
Http://opendatacommunities.org/id/metropolitan-district-council/leeds,Leeds City Council,30/11/2020,Adults and Health,Services For Older People - 65 And Over,Third Party Payments,Home Care,568,11/11/2020,2011-00713,0.00,5297.08,R,Allied Healthcare,No
Http://opendatacommunities.org/id/metropolitan-district-council/leeds,Leeds City Council,30/11/2020,Adults and Health,Services For Older People Under 65 P/Dis,Third Party Payments,Home Care,568,11/11/2020,2011-00714,0.00,1768.54,R,Allied Healthcare,No
Http://opendatacommunities.org/id/metropolitan-district-council/leeds,Leeds City Council,30/11/2020,Adults and Health,Services For Older People - 65 And Over,Third Party Payments,Home Care,568,11/11/2020,2011-00715,0.00,9717.03,R,Allied Healthcare,No
Http://opendatacommunities.org/id/metropolitan-district-council/leeds,Leeds City Council,30/11/2020,Adults and Health,Services For Older People Under 65 P/Dis,Third Party Payments,Home Care,568,11/11/2020,2011-00716,0.00,2936.60,R,Allied Healthcare,No
Http://opendatacommunities.org/id/metropolitan-district-council/leeds,Leeds City Council,30/11/2020,Adults and Health,Services For Adults Under 65 Mental/Dis,Third Party Payments,Home Care,568,11/11/2020,2011-00717,0.00,584.64,R,Allied Healthcare,No
Http://opendatacommunities.org/id/metropolitan-district-council/leeds,Leeds City Council,30/11/2020,Adults and Health,Services For Older People - 65 And Over,Third Party Payments,Home Care,568,11/11/2020,2011-00718,0.00,12404.12,R,Allied Healthcare,No
Http://opendatacommunities.org/id/metropolitan-district-council/leeds,Leeds City Council,30/11/2020,Adults and Health,Services For Older People Under 65 P/Dis,Third Party Payments,Home Care,568,11/11/2020,2011-00719,0.00,1129.77,R,Allied Healthcare,No
Http://opendatacommunities.org/id/metropolitan-district-council/leeds,Leeds City Council,30/11/2020,Adults and Health,Services For Older People Under 65 P/Dis,Third Party Payments,HCAIT Other,577,11/11/2020,2011-00720,0.00,455.71,R,Allied Healthcare,No
Http://opendatacommunities.org/id/metropolitan-district-council/leeds,Leeds City Council,30/11/2020,Adults and Health,Services For Adults Under 65 Mental/Dis,Third Party Payments,Home Care,568,11/11/2020,2011-00721,0.00,674.25,R,Allied Healthcare,No
Http://opendatacommunities.org/id/metropolitan-district-council/leeds,Leeds City Council,30/11/2020,Adults and Health,Services For Older People - 65 And Over,Third Party Payments,Home Care,568,11/11/2020,2011-00722,0.00,27335.06,R,Allied Healthcare,No
Http://opendatacommunities.org/id/metropolitan-district-council/leeds,Leeds City Council,30/11/2020,Adults and Health,Services For Older People - 65 And Over,Third Party Payments,HCAIT Other,577,11/11/2020,2011-00723,0.00,241.86,R,Allied Healthcare,No
Http://opendatacommunities.org/id/metropolitan-district-council/leeds,Leeds City Council,30/11/2020,Adults and Health,Services For Older People Under 65 P/Dis,Third Party Payments,Home Care,568,11/11/2020,2011-00724,0.00,9140.73,R,Allied Healthcare,No
Http://opendatacommunities.org/id/metropolitan-district-council/leeds,Leeds City Council as Accountable Body,30/11/2020,Social Services Pooled Budgets,Jcs For People With Learning Disabilitie,Third Party Payments,Home Care,568,12/11/2020,2011-00725,0.00,246.80,R,Allied Healthcare,No
Http://opendatacommunities.org/id/metropolitan-district-council/leeds,Leeds City Council,30/11/2020,Children and Families,Social Care,Third Party Payments,Services Rendered By Voluntary Sector,505,24/11/2020,2011-00726,0.00,256.50,R,Allied Healthcare,No
Http://opendatacommunities.org/id/metropolitan-district-council/leeds,Leeds City Council,30/11/2020,Adults and Health,Other Adult Services,Third Party Payments,Residential,580,30/11/2020,2011-00727,0.00,11469.12,R,Allied Healthcare,No
Http://opendatacommunities.org/id/metropolitan-district-council/leeds,Leeds City Council,30/11/2020,Communities and Environment,Customer Access,Supplies and Services,Printing,215,26/11/2020,2011-00728,0.00,2840.20,R,Allied Publicity Services,No
Http://opendatacommunities.org/id/metropolitan-district-council/leeds,Leeds City Council,30/11/2020,Resources and Housing,Technology  ,Supplies and Services,Computer Software & Equipment,214,05/10/2020,2011-00729,0.00,113.57,R,Alliot Technologies,Yes
Http://opendatacommunities.org/id/metropolitan-district-council/leeds,Leeds City Council,30/11/2020,Children and Families,Social Care,Third Party Payments,Contact,548,18/11/2020,2011-00730,0.00,10.20,R,REDACTED PERSONAL DATA,No
Http://opendatacommunities.org/id/metropolitan-district-council/leeds,Leeds City Council,30/11/2020,Children and Families,Social Care,Third Party Payments,Contact,548,18/11/2020,2011-00731,0.00,9.10,R,REDACTED PERSONAL DATA,No
Http://opendatacommunities.org/id/metropolitan-district-council/leeds,Leeds City Council,30/11/2020,Children and Families,Social Care,Third Party Payments,Services Rendered By Other Organisations,511,06/11/2020,2011-00732,0.00,738.76,R,REDACTED PERSONAL DATA,No
Http://opendatacommunities.org/id/metropolitan-district-council/leeds,Leeds City Council,30/11/2020,Children and Families,Social Care,Transfer Payments,16 Plus Top Up Allowance,625,24/11/2020,2011-00733,0.00,120.00,R,Allpay,No
Http://opendatacommunities.org/id/metropolitan-district-council/leeds,Leeds City Council,30/11/2020,Children and Families,Social Care,Transfer Payments,Leaving Care Allowances,634,24/11/2020,2011-00734,0.00,533.40,R,Allpay,No
Http://opendatacommunities.org/id/metropolitan-district-council/leeds,Leeds City Council,30/11/2020,Resources and Housing,Strategic Housing Partnership & Support  ,Supplies and Services,Other Hired And Contracted Services,265,09/10/2020,2011-00735,0.00,334.47,R,Allpay *robin Hood Energy,Yes
Http://opendatacommunities.org/id/metropolitan-district-council/leeds,Leeds City Council,30/11/2020,Resources and Housing,Sustainable Energy & Air Quality  ,Supplies and Services,Other Hired And Contracted Services,265,21/10/2020,2011-00736,0.00,141.50,R,Allpay *robin Hood Energy,Yes
Http://opendatacommunities.org/id/metropolitan-district-council/leeds,Leeds City Council,30/11/2020,Strategic Landlord,Housing Management,Supplies and Services,Other Hired And Contracted Services,265,05/11/2020,2011-00737,0.00,12.61,R,Allpay Limted,No
Http://opendatacommunities.org/id/metropolitan-district-council/leeds,Leeds City Council,30/11/2020,Strategic Landlord,Housing Management,Supplies and Services,Other Hired And Contracted Services,265,05/11/2020,2011-00738,0.00,1.17,R,Allpay Limted,No
Http://opendatacommunities.org/id/metropolitan-district-council/leeds,Leeds City Council,30/11/2020,Strategic Landlord,Housing Management,Supplies and Services,Other Hired And Contracted Services,265,05/11/2020,2011-00739,0.00,329.76,R,Allpay Limted,No
Http://opendatacommunities.org/id/metropolitan-district-council/leeds,Leeds City Council,30/11/2020,Resources and Housing,Finance,Supplies and Services,Bank Charges,263,30/11/2020,2011-00740,0.00,9706.30,R,Allpay Limted,No
Http://opendatacommunities.org/id/metropolitan-district-council/leeds,Leeds City Council,30/11/2020,Strategic Landlord,Housing Management,Supplies and Services,Other Hired And Contracted Services,265,30/11/2020,2011-00741,0.00,305.37,R,Allpay Limted,No
Http://opendatacommunities.org/id/metropolitan-district-council/leeds,Leeds City Council,30/11/2020,Children and Families,Social Care,Supplies and Services,Computer Software & Equipment,214,30/11/2020,2011-00742,0.00,250.00,R,Allpay Limted,No
Http://opendatacommunities.org/id/metropolitan-district-council/leeds,Leeds City Council,30/11/2020,Adults and Health,Services For Older People Under 65 P/Dis,Supplies and Services,Operational Materials,205,30/11/2020,2011-00743,0.00,129.83,R,Allpay Limted,No
Http://opendatacommunities.org/id/metropolitan-district-council/leeds,Leeds City Council,30/11/2020,Children and Families,Social Care,Supplies and Services,Computer Software & Equipment,214,30/11/2020,2011-00744,0.00,750.00,R,Allpay Limted,No
Http://opendatacommunities.org/id/metropolitan-district-council/leeds,Leeds City Council,30/11/2020,Resources and Housing,Finance,Supplies and Services,Bank Charges,263,30/11/2020,2011-00745,0.00,2982.47,R,Allpay Limted,No
Http://opendatacommunities.org/id/metropolitan-district-council/leeds,Leeds City Council,30/11/2020,Resources and Housing,Finance,Supplies and Services,Bank Charges,263,30/11/2020,2011-00746,0.00,264.18,R,Allpay Limted,No
Http://opendatacommunities.org/id/metropolitan-district-council/leeds,Leeds City Council,30/11/2020,Strategic Landlord,Housing Management,Supplies and Services,Other Hired And Contracted Services,265,30/11/2020,2011-00747,0.00,11.94,R,Allpay Limted,No
Http://opendatacommunities.org/id/metropolitan-district-council/leeds,Leeds City Council,30/11/2020,Strategic Landlord,Housing Management,Supplies and Services,Other Hired And Contracted Services,265,30/11/2020,2011-00748,0.00,1.17,R,Allpay Limted,No
Http://opendatacommunities.org/id/metropolitan-district-council/leeds,Leeds City Council,30/11/2020,City Development,Highways,Transport,Fuel (Non LCC Supplies),321,09/11/2020,2011-00749,0.00,267.39,R,Allstar Business Solutions Ltd,No
Http://opendatacommunities.org/id/metropolitan-district-council/leeds,Leeds City Council,30/11/2020,Communities and Environment,Parks and Countryside,Transport,Fuel (Non LCC Supplies),321,09/11/2020,2011-00750,0.00,500.76,R,Allstar Business Solutions Ltd,No
Http://opendatacommunities.org/id/metropolitan-district-council/leeds,Leeds City Council,30/11/2020,Children and Families,Learning,Transport,Fuel (Non LCC Supplies),321,09/11/2020,2011-00751,0.00,285.94,R,Allstar Business Solutions Ltd,No
Http://opendatacommunities.org/id/metropolitan-district-council/leeds,Leeds City Council,30/11/2020,Resources and Housing,Leeds Building Services,Transport,Fuel (Non LCC Supplies),321,12/11/2020,2011-00752,0.00,68.76,R,Allstar Business Solutions Ltd,No
Http://opendatacommunities.org/id/metropolitan-district-council/leeds,Leeds City Council,30/11/2020,Resources and Housing,Commercial Services,Transport,Fuel (Non LCC Supplies),321,30/11/2020,2011-00753,0.00,1824.38,R,Allstar Business Solutions Ltd,No
Http://opendatacommunities.org/id/metropolitan-district-council/leeds,Leeds City Council,30/11/2020,Children and Families,Social Care,Transfer Payments,Leaving Care Grants,635,03/11/2020,2011-00754,0.00,150.00,R,REDACTED PERSONAL DATA,No
Http://opendatacommunities.org/id/metropolitan-district-council/leeds,Leeds City Council,30/11/2020,Adults and Health,Services For Older People Under 65 P/Dis,Third Party Payments,Residential,580,11/11/2020,2011-00755,0.00,3534.24,R,Alne Hall,No
Http://opendatacommunities.org/id/metropolitan-district-council/leeds,Leeds City Council,30/11/2020,Children and Families,Social Care,Support Services,Legal Disbursements,411,11/11/2020,2011-00756,0.00,127.00,R,Alphabiolabs,No
Http://opendatacommunities.org/id/metropolitan-district-council/leeds,Leeds City Council,30/11/2020,Children and Families,Social Care,Support Services,Legal Disbursements,411,12/11/2020,2011-00757,0.00,17.00,R,Alphabiolabs,No
Http://opendatacommunities.org/id/metropolitan-district-council/leeds,Leeds City Council,30/11/2020,Children and Families,Social Care,Support Services,Legal Disbursements,411,13/11/2020,2011-00758,0.00,1187.00,R,Alphabiolabs,No
Http://opendatacommunities.org/id/metropolitan-district-council/leeds,Leeds City Council,30/11/2020,Children and Families,Social Care,Support Services,Legal Disbursements,411,19/11/2020,2011-00759,0.00,71.00,R,Alphabiolabs,No
Http://opendatacommunities.org/id/metropolitan-district-council/leeds,Leeds City Council,30/11/2020,Children and Families,Social Care,Support Services,Legal Disbursements,411,19/11/2020,2011-00760,0.00,141.25,R,Alphabiolabs,No
Http://opendatacommunities.org/id/metropolitan-district-council/leeds,Leeds City Council,30/11/2020,Children and Families,Social Care,Support Services,Legal Disbursements,411,19/11/2020,2011-00761,0.00,1075.00,R,Alphabiolabs,No
Http://opendatacommunities.org/id/metropolitan-district-council/leeds,Leeds City Council,30/11/2020,Children and Families,Social Care,Support Services,Legal Disbursements,411,23/11/2020,2011-00762,0.00,520.00,R,Alphabiolabs,No
Http://opendatacommunities.org/id/metropolitan-district-council/leeds,Leeds City Council,30/11/2020,Children and Families,Social Care,Support Services,Legal Disbursements,411,23/11/2020,2011-00763,0.00,95.00,R,Alphabiolabs,No
Http://opendatacommunities.org/id/metropolitan-district-council/leeds,Leeds City Council,30/11/2020,Children and Families,Social Care,Support Services,Legal Disbursements,411,27/11/2020,2011-00764,0.00,190.00,R,Alphabiolabs,No
Http://opendatacommunities.org/id/metropolitan-district-council/leeds,Leeds City Council,30/11/2020,Children and Families,Social Care,Support Services,Legal Disbursements,411,27/11/2020,2011-00765,0.00,66.50,R,Alphabiolabs,No
Http://opendatacommunities.org/id/metropolitan-district-council/leeds,Leeds City Council,30/11/2020,Strategic Landlord,Property and Contracts,Premises,General Maintenance,104,03/11/2020,2011-00766,0.00,125.00,R,Alphyra Payment Services Ltd (Payzone),No
Http://opendatacommunities.org/id/metropolitan-district-council/leeds,Leeds City Council,30/11/2020,Strategic Landlord,Property and Contracts,Premises,General Maintenance,104,03/11/2020,2011-00767,0.00,-0.97,R,Alphyra Payment Services Ltd (Payzone),No
Http://opendatacommunities.org/id/metropolitan-district-council/leeds,Leeds City Council,30/11/2020,Strategic Landlord,Property and Contracts,Premises,General Maintenance,104,10/11/2020,2011-00768,0.00,-1.10,R,Alphyra Payment Services Ltd (Payzone),No
Http://opendatacommunities.org/id/metropolitan-district-council/leeds,Leeds City Council,30/11/2020,Strategic Landlord,Property and Contracts,Premises,General Maintenance,104,12/11/2020,2011-00769,0.00,200.00,R,Alphyra Payment Services Ltd (Payzone),No
Http://opendatacommunities.org/id/metropolitan-district-council/leeds,Leeds City Council,30/11/2020,Strategic Landlord,Property and Contracts,Premises,General Maintenance,104,24/11/2020,2011-00770,0.00,50.00,R,Alphyra Payment Services Ltd (Payzone),No
Http://opendatacommunities.org/id/metropolitan-district-council/leeds,Leeds City Council,30/11/2020,Strategic Landlord,Property and Contracts,Premises,General Maintenance,104,24/11/2020,2011-00771,0.00,-0.26,R,Alphyra Payment Services Ltd (Payzone),No
